Transaction Date,Local Authority Department,Beneficiary,Purpose of Expenditure,Amount (excluding VAT),Non Recoverable VAT,Merchant Category
 01-09-2020,Balance Sheet,Personal Information - Redacted,Receipts In Advance - Other Entities And Individuals,410,0,INDIVIDUALS 
 01-09-2020,Balance Sheet,Personal Information - Redacted,Holding Account,1338.7,0,INDIVIDUALS 
 01-09-2020,Environment and Sustainable Transport,Danfo (Uk) Limited,Cleaning Services,2460.29,0,VENDOR 
 01-09-2020,Environment and Sustainable Transport,Danfo (Uk) Limited,Cleaning Services,2460.29,0,VENDOR 
 01-09-2020,Balance Sheet,Adam Khan Architects,Suspense Account,189319.71,0,COMMERCIAL SUPPLIER 
 01-09-2020,RMS,A M Forktrucks Ltd,Vehicle Hire,810.33,0,COMMERCIAL SUPPLIER 
 01-09-2020,Adults & Health,Floron Residential Home,Residential Placements - Private Contractors Payment,594.97,0,COMMERCIAL SUPPLIER 
 01-09-2020,Adults & Health,Floron Residential Home,Residential Placements - Private Contractors Payment,560.5,0,COMMERCIAL SUPPLIER 
 01-09-2020,Adults & Health,Floron Residential Home,Residential Placements - Private Contractors Payment,560.5,0,COMMERCIAL SUPPLIER 
 01-09-2020,Adults & Health,Floron Residential Home,Residential Placements - Private Contractors Payment,560.5,0,COMMERCIAL SUPPLIER 
 01-09-2020,Adults & Health,Floron Residential Home,Residential Placements - Private Contractors Payment,560.5,0,COMMERCIAL SUPPLIER 
 01-09-2020,Adults & Health,Floron Residential Home,Residential Placements - Private Contractors Payment,594.97,0,COMMERCIAL SUPPLIER 
 01-09-2020,Adults & Health,Floron Residential Home,Residential Placements - Private Contractors Payment,518.5,0,COMMERCIAL SUPPLIER 
 01-09-2020,Adults & Health,Floron Residential Home,Residential Placements - Private Contractors Payment,518.5,0,COMMERCIAL SUPPLIER 
 01-09-2020,Adults & Health,Floron Residential Home,Residential Placements - Private Contractors Payment,518.5,0,COMMERCIAL SUPPLIER 
 01-09-2020,Adults & Health,Floron Residential Home,Residential Placements - Private Contractors Payment,344.42,0,COMMERCIAL SUPPLIER 
 01-09-2020,Adults & Health,Floron Residential Home,Residential Placements - Private Contractors Payment,594.97,0,COMMERCIAL SUPPLIER 
 01-09-2020,Adults & Health,Floron Residential Home,Residential Placements - Private Contractors Payment,560.5,0,COMMERCIAL SUPPLIER 
 01-09-2020,Adults & Health,Floron Residential Home,Residential Placements - Private Contractors Payment,560.5,0,COMMERCIAL SUPPLIER 
 01-09-2020,Adults & Health,Floron Residential Home,Residential Placements - Private Contractors Payment,560.5,0,COMMERCIAL SUPPLIER 
 01-09-2020,Adults & Health,Floron Residential Home,Residential Placements - Private Contractors Payment,560.5,0,COMMERCIAL SUPPLIER 
 01-09-2020,Adults & Health,Floron Residential Home,Residential Placements - Private Contractors Payment,594.97,0,COMMERCIAL SUPPLIER 
 01-09-2020,Adults & Health,Floron Residential Home,Residential Placements - Private Contractors Payment,560.5,0,COMMERCIAL SUPPLIER 
 01-09-2020,Adults & Health,Floron Residential Home,Residential Placements - Private Contractors Payment,560.5,0,COMMERCIAL SUPPLIER 
 01-09-2020,Adults & Health,Floron Residential Home,Residential Placements - Private Contractors Payment,560.5,0,COMMERCIAL SUPPLIER 
 01-09-2020,Adults & Health,Floron Residential Home,Residential Placements - Private Contractors Payment,560.5,0,COMMERCIAL SUPPLIER 
 01-09-2020,oneSource,Daisy Corporate Services Trading Ltd,Land Line Telephone Costs,7341.26,0,COMMERCIAL SUPPLIER 
 01-09-2020,oneSource,Daisy Corporate Services Trading Ltd,Land Line Telephone Costs,3206.19,0,COMMERCIAL SUPPLIER 
 01-09-2020,Housing Revenue Account,Daisy Communications Ltd,Responsive Repairs - Mechanical And Electrical,384.66,0,COMMERCIAL SUPPLIER 
 01-09-2020,oneSource,Daisy Corporate Services Trading Ltd,Land Line Telephone Costs,16049.26,0,COMMERCIAL SUPPLIER 
 01-09-2020,Housing Revenue Account,Daisy Communications Ltd,Land Line Telephone Costs,1841.32,0,COMMERCIAL SUPPLIER 
 01-09-2020,Children and Young People,Bridging Gaps Fostering Agency,Residential Placements - Private Contractors Payment,900,0,COMMERCIAL SUPPLIER 
 01-09-2020,Children and Young People,Bridging Gaps Fostering Agency,Residential Placements - Private Contractors Payment,900,0,COMMERCIAL SUPPLIER 
 01-09-2020,Children and Young People,Bridging Gaps Fostering Agency,Residential Placements - Private Contractors Payment,1157.1,0,COMMERCIAL SUPPLIER 
 01-09-2020,Children and Young People,Bridging Gaps Fostering Agency,Residential Placements - Private Contractors Payment,900,0,COMMERCIAL SUPPLIER 
 01-09-2020,Adults & Health,Headway East London,Daycare - Private Contractors Payment,8,0,COMMERCIAL SUPPLIER 
 01-09-2020,Adults & Health,Headway East London,Daycare - Private Contractors Payment,240,0,COMMERCIAL SUPPLIER 
 01-09-2020,Adults & Health,Headway East London,Daycare - Private Contractors Payment,240,0,COMMERCIAL SUPPLIER 
 01-09-2020,Adults & Health,Headway East London,Daycare - Private Contractors Payment,240,0,COMMERCIAL SUPPLIER 
 01-09-2020,Adults & Health,Headway East London,Daycare - Private Contractors Payment,139.54,0,COMMERCIAL SUPPLIER 
 01-09-2020,Adults & Health,Headway East London,Daycare - Private Contractors Payment,157.42,0,COMMERCIAL SUPPLIER 
 01-09-2020,Adults & Health,Headway East London,Daycare - Private Contractors Payment,160.72,0,COMMERCIAL SUPPLIER 
 01-09-2020,Adults & Health,Headway East London,Daycare - Private Contractors Payment,160.72,0,COMMERCIAL SUPPLIER 
 01-09-2020,Adults & Health,Headway East London,Daycare - Private Contractors Payment,142.96,0,COMMERCIAL SUPPLIER 
 01-09-2020,Adults & Health,Headway East London,Daycare - Private Contractors Payment,160.72,0,COMMERCIAL SUPPLIER 
 01-09-2020,Adults & Health,Headway East London,Daycare - Private Contractors Payment,78.71,0,COMMERCIAL SUPPLIER 
 01-09-2020,Adults & Health,Headway East London,Daycare - Private Contractors Payment,60.83,0,COMMERCIAL SUPPLIER 
 01-09-2020,Adults & Health,Headway East London,Daycare - Private Contractors Payment,78.71,0,COMMERCIAL SUPPLIER 
 01-09-2020,Adults & Health,Headway East London,Daycare - Private Contractors Payment,78.71,0,COMMERCIAL SUPPLIER 
 01-09-2020,Adults & Health,Headway East London,Daycare - Private Contractors Payment,88.62,0,COMMERCIAL SUPPLIER 
 01-09-2020,Adults & Health,Headway East London,Daycare - Private Contractors Payment,88.62,0,COMMERCIAL SUPPLIER 
 01-09-2020,Adults & Health,Headway East London,Daycare - Private Contractors Payment,88.62,0,COMMERCIAL SUPPLIER 
 01-09-2020,Adults & Health,Headway East London,Daycare - Private Contractors Payment,88.58,0,COMMERCIAL SUPPLIER 
 01-09-2020,Children and Young People,Ansacare Fostering Agency Ltd,Residential Placements - Private Contractors Payment,1200,0,COMMERCIAL SUPPLIER 
 01-09-2020,Children and Young People,Ansacare Fostering Agency Ltd,Residential Placements - Private Contractors Payment,514.29,0,COMMERCIAL SUPPLIER 
 01-09-2020,Children and Young People,Ansacare Fostering Agency Ltd,Residential Placements - Private Contractors Payment,171.42,0,COMMERCIAL SUPPLIER 
 01-09-2020,Children and Young People,Ansacare Fostering Agency Ltd,Residential Placements - Private Contractors Payment,514.29,0,COMMERCIAL SUPPLIER 
 01-09-2020,Children and Young People,Ansacare Fostering Agency Ltd,Residential Placements - Private Contractors Payment,1714.28,0,COMMERCIAL SUPPLIER 
 01-09-2020,Children and Young People,Ansacare Fostering Agency Ltd,Residential Placements - Private Contractors Payment,1200,0,COMMERCIAL SUPPLIER 
 01-09-2020,Housing Revenue Account,Every Project Counts Ltd (Epc),Professional Services - General,34073.51,0,CIS 
 01-09-2020,Children and Young People,Connect Fostering Service Ltd,Residential Placements - Private Contractors Payment,473.71,0,VENDOR 
 01-09-2020,Children and Young People,Connect Fostering Service Ltd,Residential Placements - Private Contractors Payment,236.86,0,VENDOR 
 01-09-2020,Children and Young People,Crystal Environmental Svcs Ltd,Private Contractors Payment - Other,221.62,0,VENDOR 
 01-09-2020,RMS,Glass System Ltd,"Purchase - Equipment, Furniture And Materials",299.21,0,COMMERCIAL SUPPLIER 
 01-09-2020,RMS,Glass System Ltd,"Purchase - Equipment, Furniture And Materials",412.53,0,COMMERCIAL SUPPLIER 
 01-09-2020,RMS,Glass System Ltd,"Purchase - Equipment, Furniture And Materials",406.25,0,COMMERCIAL SUPPLIER 
 01-09-2020,RMS,Benchmarx Kitchens and Joinery,Private Contractors Payment - Other,921.47,0,COMMERCIAL SUPPLIER 
 01-09-2020,RMS,Benchmarx Kitchens and Joinery,Private Contractors Payment - Other,937.98,0,COMMERCIAL SUPPLIER 
 01-09-2020,RMS,Benchmarx Kitchens and Joinery,Private Contractors Payment - Other,613.87,0,COMMERCIAL SUPPLIER 
 01-09-2020,"People, Policy and Performance",Titan Containers A/S,Storage And Archiving,277.5,0,VENDOR 
 01-09-2020,Children and Young People,Britannia K9 Security Ltd,Security Of Premises,12225,0,COMMERCIAL SUPPLIER 
 01-09-2020,Children and Young People,Hopscotch Care Limited,Residential Placements - Private Contractors Payment,7877.1,0,COMMERCIAL SUPPLIER 
 01-09-2020,Children and Young People,Hopscotch Care Limited,Residential Placements - Private Contractors Payment,10127.7,0,COMMERCIAL SUPPLIER 
 01-09-2020,Children and Young People,Hopscotch Care Limited,Residential Placements - Private Contractors Payment,7877.1,0,COMMERCIAL SUPPLIER 
 01-09-2020,Children and Young People,Hopscotch Care Limited,Residential Placements - Private Contractors Payment,7877.1,0,COMMERCIAL SUPPLIER 
 01-09-2020,Adults & Health,Community Equipment Services-London Borough Of Croydon,"Purchase - Equipment, Furniture And Materials",408390.55,0,COMMERCIAL SUPPLIER 
 01-09-2020,Adults & Health,Community Equipment Services-London Borough Of Croydon,"Purchase - Equipment, Furniture And Materials",650000,0,COMMERCIAL SUPPLIER 
 01-09-2020,Children and Young People,National Fostering Agency,Residential Placements - Private Contractors Payment,311.37,0,COMMERCIAL SUPPLIER 
 01-09-2020,Children and Young People,National Fostering Agency,Residential Placements - Private Contractors Payment,622.74,0,COMMERCIAL SUPPLIER 
 01-09-2020,Children and Young People,Infinity Foster Care,Residential Placements - Private Contractors Payment,1141.42,0,COMMERCIAL SUPPLIER 
 01-09-2020,Children and Young People,Infinity Foster Care,Residential Placements - Private Contractors Payment,799,0,COMMERCIAL SUPPLIER 
 01-09-2020,Children and Young People,Infinity Foster Care,Residential Placements - Private Contractors Payment,799,0,COMMERCIAL SUPPLIER 
 01-09-2020,Children and Young People,Infinity Foster Care,Residential Placements - Private Contractors Payment,799,0,COMMERCIAL SUPPLIER 
 01-09-2020,Housing Revenue Account,ERND Building Services (UK) Ltd,Facilities Management,23173.8,0,COMMERCIAL SUPPLIER 
 01-09-2020,Environment and Sustainable Transport,RFW Engineering Ltd,"Purchase - Equipment, Furniture And Materials",1212,0,COMMERCIAL SUPPLIER 
 01-09-2020,Adults & Health,Bettertogether Limited,Adult Placement Scheme - Private Contractors Payment,272,0,NON COMMERCIAL SUPPLIER 
 01-09-2020,Balance Sheet,Mint Cleaning Group Holding Ltd,Suspense Account,372721.47,0,COMMERCIAL SUPPLIER 
 01-09-2020,Adults & Health,Bettertogether Limited,Adult Placement Scheme - Private Contractors Payment,272,0,NON COMMERCIAL SUPPLIER 
 01-09-2020,Adults & Health,Bettertogether Limited,Adult Placement Scheme - Private Contractors Payment,272,0,NON COMMERCIAL SUPPLIER 
 01-09-2020,Adults & Health,Bettertogether Limited,Adult Placement Scheme - Private Contractors Payment,136,0,NON COMMERCIAL SUPPLIER 
 01-09-2020,Environment and Sustainable Transport,Public Realm Services Ltd,Street Sweeping,260237.49,0,COMMERCIAL SUPPLIER 
 01-09-2020,Housing Revenue Account,Public Realm Services Ltd,Street Sweeping,150555.45,0,COMMERCIAL SUPPLIER 
 01-09-2020,Environment and Sustainable Transport,Public Realm Services Ltd,Street Sweeping,360,0,COMMERCIAL SUPPLIER 
 01-09-2020,RMS,Public Realm Services Ltd,Private Contractors Payment - Other,269.65,0,COMMERCIAL SUPPLIER 
 01-09-2020,RMS,Public Realm Services Ltd,Private Contractors Payment - Other,450.19,0,COMMERCIAL SUPPLIER 
 01-09-2020,RMS,Public Realm Services Ltd,Private Contractors Payment - Other,478.36,0,COMMERCIAL SUPPLIER 
 01-09-2020,RMS,Public Realm Services Ltd,Private Contractors Payment - Other,362.29,0,COMMERCIAL SUPPLIER 
 01-09-2020,RMS,Public Realm Services Ltd,Private Contractors Payment - Other,259.89,0,COMMERCIAL SUPPLIER 
 01-09-2020,RMS,Public Realm Services Ltd,Private Contractors Payment - Other,702.82,0,COMMERCIAL SUPPLIER 
 01-09-2020,CYP Commissioner � Brighter Futures ,Lavender Health & Social Care Limited,Payment To Health Authorities,5254.8,0,COMMERCIAL SUPPLIER 
 01-09-2020,Children and Young People,Mr Robert Wilkinson,Legal Fees,550,0,LEGAL SERVICES 
 01-09-2020,Inclusive Economy & Housing,Personal Information - Redacted,"Purchase - Equipment, Furniture And Materials",-29.98,0,Employee 
 01-09-2020,Adults & Health,Personal Information - Redacted,"Purchase - Equipment, Furniture And Materials",521.68,0,Employee 
 01-09-2020,Adults & Health,Rosy Care Limited,Daycare - Private Contractors Payment,225,0,NON COMMERCIAL SUPPLIER 
 01-09-2020,Adults & Health,Rosy Care Limited,Daycare - Private Contractors Payment,225,0,NON COMMERCIAL SUPPLIER 
 01-09-2020,Adults & Health,Rosy Care Limited,Daycare - Private Contractors Payment,225,0,NON COMMERCIAL SUPPLIER 
 01-09-2020,Adults & Health,Rosy Care Limited,Daycare - Private Contractors Payment,225,0,NON COMMERCIAL SUPPLIER 
 01-09-2020,Housing Revenue Account,BTU (installation & Maintenance) Ltd,Facilities Management,385,0,COMMERCIAL SUPPLIER 
 01-09-2020,Adults & Health,Rosy Care Limited,Daycare - Private Contractors Payment,300,0,NON COMMERCIAL SUPPLIER 
 01-09-2020,Adults & Health,Rosy Care Limited,Daycare - Private Contractors Payment,300,0,NON COMMERCIAL SUPPLIER 
 01-09-2020,Adults & Health,Rosy Care Limited,Daycare - Private Contractors Payment,300,0,NON COMMERCIAL SUPPLIER 
 01-09-2020,Adults & Health,Rosy Care Limited,Daycare - Private Contractors Payment,300,0,NON COMMERCIAL SUPPLIER 
 01-09-2020,Children and Young People,Infinity Foster Care,Residential Placements - Private Contractors Payment,799,0,COMMERCIAL SUPPLIER 
 01-09-2020,Children and Young People,Infinity Foster Care,Residential Placements - Private Contractors Payment,799,0,COMMERCIAL SUPPLIER 
 01-09-2020,Children and Young People,Infinity Foster Care,Residential Placements - Private Contractors Payment,799,0,COMMERCIAL SUPPLIER 
 01-09-2020,Children and Young People,Infinity Foster Care,Residential Placements - Private Contractors Payment,1141.42,0,COMMERCIAL SUPPLIER 
 01-09-2020,Balance Sheet,SSG,Suspense Account,23531.52,0,COMMERCIAL SUPPLIER 
 01-09-2020,Balance Sheet,SSG,Suspense Account,11136,0,COMMERCIAL SUPPLIER 
 01-09-2020,Balance Sheet,SSG,Suspense Account,11136,0,COMMERCIAL SUPPLIER 
 01-09-2020,Balance Sheet,SSG,Suspense Account,2378,0,COMMERCIAL SUPPLIER 
 01-09-2020,Balance Sheet,SSG,Capital Outlay,624.78,0,COMMERCIAL SUPPLIER 
 01-09-2020,oneSource - Non Shared,SSG,Security Of Premises,5929.63,0,COMMERCIAL SUPPLIER 
 01-09-2020,Balance Sheet,SSG,Suspense Account,8885.76,0,COMMERCIAL SUPPLIER 
 01-09-2020,Balance Sheet,SSG,Suspense Account,6218.88,0,COMMERCIAL SUPPLIER 
 01-09-2020,Adults & Health,Tender Heart Supported Accommodation,Daycare - Private Contractors Payment,266,0,VENDOR 
 01-09-2020,Adults & Health,Tender Heart Supported Accommodation,Daycare - Private Contractors Payment,57,0,VENDOR 
 01-09-2020,Adults & Health,Tender Heart Supported Accommodation,Daycare - Private Contractors Payment,266,0,VENDOR 
 01-09-2020,Housing Revenue Account,Personal Information - Redacted,Professional Services - General,785045.19,0,VENDOR 
 02-09-2020,Adults & Health,Castle Water Ltd,Water And Sewerage,1260.57,0,COMMERCIAL SUPPLIER 
 02-09-2020,Adults & Health,Medstar Domiciliary Care Services Ltd,Daycare - Private Contractors Payment,323.2,0,COMMERCIAL SUPPLIER 
 02-09-2020,Adults & Health,Medstar Domiciliary Care Services Ltd,Daycare - Private Contractors Payment,606,0,COMMERCIAL SUPPLIER 
 02-09-2020,Adults & Health,Aspirations Care T/A Newham House Supporting People,Supported Other Accommodation - Private Contractors Payment,195,0,VENDOR 
 02-09-2020,Adults & Health,Aspirations Care T/A Newham House Supporting People,Supported Other Accommodation - Private Contractors Payment,195,0,VENDOR 
 02-09-2020,Adults & Health,Aspirations Care T/A Newham House Supporting People,Supported Other Accommodation - Private Contractors Payment,195,0,VENDOR 
 02-09-2020,Adults & Health,Aspirations Care T/A Newham House Supporting People,Supported Other Accommodation - Private Contractors Payment,195,0,VENDOR 
 02-09-2020,Balance Sheet,Redspot Healthcare Services Ltd,Suspense Account,521.86,0,COMMERCIAL SUPPLIER 
 02-09-2020,Balance Sheet,Redspot Healthcare Services Ltd,Suspense Account,1304.65,0,COMMERCIAL SUPPLIER 
 02-09-2020,Balance Sheet,Redspot Healthcare Services Ltd,Suspense Account,1304.65,0,COMMERCIAL SUPPLIER 
 02-09-2020,Balance Sheet,Redspot Healthcare Services Ltd,Suspense Account,1571.75,0,COMMERCIAL SUPPLIER 
 02-09-2020,Adults & Health,Eastway Care Ltd,Daycare - Private Contractors Payment,950.4,0,COMMERCIAL SUPPLIER 
 02-09-2020,Adults & Health,Eastway Care Ltd,Daycare - Private Contractors Payment,233.6,0,COMMERCIAL SUPPLIER 
 02-09-2020,Adults & Health,Eastway Care Ltd,Daycare - Private Contractors Payment,387.18,0,COMMERCIAL SUPPLIER 
 02-09-2020,Adults & Health,Eastway Care Ltd,Daycare - Private Contractors Payment,233.6,0,COMMERCIAL SUPPLIER 
 02-09-2020,Adults & Health,Eastway Care Ltd,Daycare - Private Contractors Payment,950.4,0,COMMERCIAL SUPPLIER 
 02-09-2020,Adults & Health,Eastway Care Ltd,Daycare - Private Contractors Payment,233.6,0,COMMERCIAL SUPPLIER 
 02-09-2020,Adults & Health,Eastway Care Ltd,Daycare - Private Contractors Payment,116.8,0,COMMERCIAL SUPPLIER 
 02-09-2020,Adults & Health,Eastway Care Ltd,Daycare - Private Contractors Payment,380.16,0,COMMERCIAL SUPPLIER 
 02-09-2020,Adults & Health,Eastway Care Ltd,Daycare - Private Contractors Payment,950.4,0,COMMERCIAL SUPPLIER 
 02-09-2020,Adults & Health,Eastway Care Ltd,Daycare - Private Contractors Payment,232.16,0,COMMERCIAL SUPPLIER 
 02-09-2020,Adults & Health,Eastway Care Ltd,Daycare - Private Contractors Payment,233.6,0,COMMERCIAL SUPPLIER 
 02-09-2020,Adults & Health,Eastway Care Ltd,Daycare - Private Contractors Payment,387.18,0,COMMERCIAL SUPPLIER 
 02-09-2020,Adults & Health,Eastway Care Ltd,Daycare - Private Contractors Payment,570.24,0,COMMERCIAL SUPPLIER 
 02-09-2020,Adults & Health,Eastway Care Ltd,Daycare - Private Contractors Payment,950.4,0,COMMERCIAL SUPPLIER 
 02-09-2020,Adults & Health,Eastway Care Ltd,Daycare - Private Contractors Payment,950.4,0,COMMERCIAL SUPPLIER 
 02-09-2020,Adults & Health,Eastway Care Ltd,Daycare - Private Contractors Payment,233.6,0,COMMERCIAL SUPPLIER 
 02-09-2020,Adults & Health,Eastway Care Ltd,Daycare - Private Contractors Payment,258.12,0,COMMERCIAL SUPPLIER 
 02-09-2020,Adults & Health,Eastway Care Ltd,Daycare - Private Contractors Payment,584,0,COMMERCIAL SUPPLIER 
 02-09-2020,Adults & Health,Eastway Care Ltd,Daycare - Private Contractors Payment,645.3,0,COMMERCIAL SUPPLIER 
 02-09-2020,Adults & Health,Eastway Care Ltd,Respite Care - Private Contractors Payment,190.08,0,COMMERCIAL SUPPLIER 
 02-09-2020,Adults & Health,Eastway Care Ltd,Daycare - Private Contractors Payment,516.24,0,COMMERCIAL SUPPLIER 
 02-09-2020,Adults & Health,Eastway Care Ltd,Daycare - Private Contractors Payment,258.12,0,COMMERCIAL SUPPLIER 
 02-09-2020,Adults & Health,Eastway Care Ltd,Daycare - Private Contractors Payment,950.4,0,COMMERCIAL SUPPLIER 
 02-09-2020,Adults & Health,Eastway Care Ltd,Daycare - Private Contractors Payment,258.12,0,COMMERCIAL SUPPLIER 
 02-09-2020,Adults & Health,Eastway Care Ltd,Daycare - Private Contractors Payment,380.16,0,COMMERCIAL SUPPLIER 
 02-09-2020,Adults & Health,Eastway Care Ltd,Daycare - Private Contractors Payment,467.2,0,COMMERCIAL SUPPLIER 
 02-09-2020,Adults & Health,Eastway Care Ltd,Daycare - Private Contractors Payment,516.24,0,COMMERCIAL SUPPLIER 
 02-09-2020,Adults & Health,Eastway Care Ltd,Daycare - Private Contractors Payment,584,0,COMMERCIAL SUPPLIER 
 02-09-2020,Adults & Health,Eastway Care Ltd,Daycare - Private Contractors Payment,116.8,0,COMMERCIAL SUPPLIER 
 02-09-2020,Adults & Health,Eastway Care Ltd,Daycare - Private Contractors Payment,190.08,0,COMMERCIAL SUPPLIER 
 02-09-2020,Adults & Health,Eastway Care Ltd,Daycare - Private Contractors Payment,232.16,0,COMMERCIAL SUPPLIER 
 02-09-2020,Adults & Health,Eastway Care Ltd,Daycare - Private Contractors Payment,233.6,0,COMMERCIAL SUPPLIER 
 02-09-2020,Adults & Health,Eastway Care Ltd,Daycare - Private Contractors Payment,950.4,0,COMMERCIAL SUPPLIER 
 02-09-2020,Adults & Health,Eastway Care Ltd,Daycare - Private Contractors Payment,645.3,0,COMMERCIAL SUPPLIER 
 02-09-2020,Adults & Health,Eastway Care Ltd,Daycare - Private Contractors Payment,584,0,COMMERCIAL SUPPLIER 
 02-09-2020,Adults & Health,Eastway Care Ltd,Daycare - Private Contractors Payment,570.24,0,COMMERCIAL SUPPLIER 
 02-09-2020,Adults & Health,Eastway Care Ltd,Daycare - Private Contractors Payment,950.4,0,COMMERCIAL SUPPLIER 
 02-09-2020,Adults & Health,Eastway Care Ltd,Daycare - Private Contractors Payment,950.4,0,COMMERCIAL SUPPLIER 
 02-09-2020,Adults & Health,Eastway Care Ltd,Daycare - Private Contractors Payment,233.6,0,COMMERCIAL SUPPLIER 
 02-09-2020,Adults & Health,Eastway Care Ltd,Daycare - Private Contractors Payment,116.8,0,COMMERCIAL SUPPLIER 
 02-09-2020,Adults & Health,Eastway Care Ltd,Daycare - Private Contractors Payment,950.4,0,COMMERCIAL SUPPLIER 
 02-09-2020,Adults & Health,Eastway Care Ltd,Daycare - Private Contractors Payment,380.16,0,COMMERCIAL SUPPLIER 
 02-09-2020,Adults & Health,Eastway Care Ltd,Daycare - Private Contractors Payment,237.92,0,COMMERCIAL SUPPLIER 
 02-09-2020,Adults & Health,Eastway Care Ltd,Daycare - Private Contractors Payment,233.6,0,COMMERCIAL SUPPLIER 
 02-09-2020,Adults & Health,Eastway Care Ltd,Daycare - Private Contractors Payment,387.18,0,COMMERCIAL SUPPLIER 
 02-09-2020,Adults & Health,Eastway Care Ltd,Daycare - Private Contractors Payment,950.4,0,COMMERCIAL SUPPLIER 
 02-09-2020,Adults & Health,Eastway Care Ltd,Daycare - Private Contractors Payment,950.4,0,COMMERCIAL SUPPLIER 
 02-09-2020,Adults & Health,Eastway Care Ltd,Daycare - Private Contractors Payment,584,0,COMMERCIAL SUPPLIER 
 02-09-2020,Adults & Health,Eastway Care Ltd,Daycare - Private Contractors Payment,350.4,0,COMMERCIAL SUPPLIER 
 02-09-2020,Adults & Health,Eastway Care Ltd,Daycare - Private Contractors Payment,645.3,0,COMMERCIAL SUPPLIER 
 02-09-2020,Adults & Health,Eastway Care Ltd,Daycare - Private Contractors Payment,233.6,0,COMMERCIAL SUPPLIER 
 02-09-2020,Adults & Health,Eastway Care Ltd,Daycare - Private Contractors Payment,950.4,0,COMMERCIAL SUPPLIER 
 02-09-2020,Adults & Health,Eastway Care Ltd,Daycare - Private Contractors Payment,584,0,COMMERCIAL SUPPLIER 
 02-09-2020,Adults & Health,Eastway Care Ltd,Daycare - Private Contractors Payment,350.4,0,COMMERCIAL SUPPLIER 
 02-09-2020,Adults & Health,Eastway Care Ltd,Daycare - Private Contractors Payment,233.6,0,COMMERCIAL SUPPLIER 
 02-09-2020,Adults & Health,Eastway Care Ltd,Daycare - Private Contractors Payment,233.6,0,COMMERCIAL SUPPLIER 
 02-09-2020,Adults & Health,Eastway Care Ltd,Daycare - Private Contractors Payment,380.16,0,COMMERCIAL SUPPLIER 
 02-09-2020,Adults & Health,Eastway Care Ltd,Daycare - Private Contractors Payment,350.4,0,COMMERCIAL SUPPLIER 
 02-09-2020,Adults & Health,Eastway Care Ltd,Daycare - Private Contractors Payment,387.18,0,COMMERCIAL SUPPLIER 
 02-09-2020,Adults & Health,Eastway Care Ltd,Daycare - Private Contractors Payment,233.6,0,COMMERCIAL SUPPLIER 
 02-09-2020,Adults & Health,Eastway Care Ltd,Daycare - Private Contractors Payment,950.4,0,COMMERCIAL SUPPLIER 
 02-09-2020,Adults & Health,Eastway Care Ltd,Daycare - Private Contractors Payment,584,0,COMMERCIAL SUPPLIER 
 02-09-2020,Adults & Health,Eastway Care Ltd,Daycare - Private Contractors Payment,350.4,0,COMMERCIAL SUPPLIER 
 02-09-2020,Adults & Health,Eastway Care Ltd,Daycare - Private Contractors Payment,950.4,0,COMMERCIAL SUPPLIER 
 02-09-2020,Adults & Health,Eastway Care Ltd,Daycare - Private Contractors Payment,584,0,COMMERCIAL SUPPLIER 
 02-09-2020,Adults & Health,Eastway Care Ltd,Daycare - Private Contractors Payment,350.4,0,COMMERCIAL SUPPLIER 
 02-09-2020,Adults & Health,Eastway Care Ltd,Daycare - Private Contractors Payment,233.6,0,COMMERCIAL SUPPLIER 
 02-09-2020,Adults & Health,Eastway Care Ltd,Daycare - Private Contractors Payment,233.6,0,COMMERCIAL SUPPLIER 
 02-09-2020,Adults & Health,Eastway Care Ltd,Daycare - Private Contractors Payment,258.12,0,COMMERCIAL SUPPLIER 
 02-09-2020,Adults & Health,Eastway Care Ltd,Daycare - Private Contractors Payment,584,0,COMMERCIAL SUPPLIER 
 02-09-2020,Adults & Health,Eastway Care Ltd,Daycare - Private Contractors Payment,570.24,0,COMMERCIAL SUPPLIER 
 02-09-2020,Adults & Health,Eastway Care Ltd,Daycare - Private Contractors Payment,950.4,0,COMMERCIAL SUPPLIER 
 02-09-2020,Adults & Health,Eastway Care Ltd,Daycare - Private Contractors Payment,116.8,0,COMMERCIAL SUPPLIER 
 02-09-2020,Adults & Health,Eastway Care Ltd,Respite Care - Private Contractors Payment,190.08,0,COMMERCIAL SUPPLIER 
 02-09-2020,Adults & Health,Eastway Care Ltd,Daycare - Private Contractors Payment,645.3,0,COMMERCIAL SUPPLIER 
 02-09-2020,Adults & Health,Eastway Care Ltd,Daycare - Private Contractors Payment,475.75,0,COMMERCIAL SUPPLIER 
 02-09-2020,Adults & Health,Eastway Care Ltd,Daycare - Private Contractors Payment,129.06,0,COMMERCIAL SUPPLIER 
 02-09-2020,Adults & Health,Eastway Care Ltd,Daycare - Private Contractors Payment,584,0,COMMERCIAL SUPPLIER 
 02-09-2020,Adults & Health,Eastway Care Ltd,Daycare - Private Contractors Payment,950.4,0,COMMERCIAL SUPPLIER 
 02-09-2020,Adults & Health,Eastway Care Ltd,Respite Care - Private Contractors Payment,190.08,0,COMMERCIAL SUPPLIER 
 02-09-2020,Adults & Health,Eastway Care Ltd,Daycare - Private Contractors Payment,516.24,0,COMMERCIAL SUPPLIER 
 02-09-2020,Adults & Health,Eastway Care Ltd,Daycare - Private Contractors Payment,233.6,0,COMMERCIAL SUPPLIER 
 02-09-2020,Adults & Health,Eastway Care Ltd,Daycare - Private Contractors Payment,387.18,0,COMMERCIAL SUPPLIER 
 02-09-2020,Adults & Health,Eastway Care Ltd,Daycare - Private Contractors Payment,233.6,0,COMMERCIAL SUPPLIER 
 02-09-2020,Adults & Health,Eastway Care Ltd,Daycare - Private Contractors Payment,258.12,0,COMMERCIAL SUPPLIER 
 02-09-2020,Adults & Health,Eastway Care Ltd,Daycare - Private Contractors Payment,950.4,0,COMMERCIAL SUPPLIER 
 02-09-2020,Adults & Health,Eastway Care Ltd,Daycare - Private Contractors Payment,584,0,COMMERCIAL SUPPLIER 
 02-09-2020,Adults & Health,Eastway Care Ltd,Daycare - Private Contractors Payment,950.4,0,COMMERCIAL SUPPLIER 
 02-09-2020,Adults & Health,Eastway Care Ltd,Daycare - Private Contractors Payment,258.12,0,COMMERCIAL SUPPLIER 
 02-09-2020,Adults & Health,Eastway Care Ltd,Daycare - Private Contractors Payment,380.16,0,COMMERCIAL SUPPLIER 
 02-09-2020,Adults & Health,Eastway Care Ltd,Daycare - Private Contractors Payment,467.2,0,COMMERCIAL SUPPLIER 
 02-09-2020,Adults & Health,Eastway Care Ltd,Daycare - Private Contractors Payment,645.3,0,COMMERCIAL SUPPLIER 
 02-09-2020,Adults & Health,Eastway Care Ltd,Daycare - Private Contractors Payment,584,0,COMMERCIAL SUPPLIER 
 02-09-2020,Adults & Health,Eastway Care Ltd,Daycare - Private Contractors Payment,950.4,0,COMMERCIAL SUPPLIER 
 02-09-2020,Adults & Health,Eastway Care Ltd,Daycare - Private Contractors Payment,950.4,0,COMMERCIAL SUPPLIER 
 02-09-2020,Adults & Health,Eastway Care Ltd,Daycare - Private Contractors Payment,475.75,0,COMMERCIAL SUPPLIER 
 02-09-2020,Adults & Health,Eastway Care Ltd,Daycare - Private Contractors Payment,129.06,0,COMMERCIAL SUPPLIER 
 02-09-2020,Adults & Health,Eastway Care Ltd,Daycare - Private Contractors Payment,950.4,0,COMMERCIAL SUPPLIER 
 02-09-2020,Adults & Health,Eastway Care Ltd,Daycare - Private Contractors Payment,233.6,0,COMMERCIAL SUPPLIER 
 02-09-2020,Adults & Health,Eastway Care Ltd,Daycare - Private Contractors Payment,387.18,0,COMMERCIAL SUPPLIER 
 02-09-2020,Adults & Health,Eastway Care Ltd,Daycare - Private Contractors Payment,516.24,0,COMMERCIAL SUPPLIER 
 02-09-2020,Adults & Health,Eastway Care Ltd,Daycare - Private Contractors Payment,116.8,0,COMMERCIAL SUPPLIER 
 02-09-2020,Adults & Health,Eastway Care Ltd,Daycare - Private Contractors Payment,190.08,0,COMMERCIAL SUPPLIER 
 02-09-2020,Adults & Health,Eastway Care Ltd,Daycare - Private Contractors Payment,233.6,0,COMMERCIAL SUPPLIER 
 02-09-2020,Adults & Health,Eastway Care Ltd,Daycare - Private Contractors Payment,950.4,0,COMMERCIAL SUPPLIER 
 02-09-2020,Adults & Health,Eastway Care Ltd,Daycare - Private Contractors Payment,645.3,0,COMMERCIAL SUPPLIER 
 02-09-2020,Adults & Health,Eastway Care Ltd,Respite Care - Private Contractors Payment,190.08,0,COMMERCIAL SUPPLIER 
 02-09-2020,Adults & Health,Eastway Care Ltd,Daycare - Private Contractors Payment,475.75,0,COMMERCIAL SUPPLIER 
 02-09-2020,Adults & Health,Eastway Care Ltd,Daycare - Private Contractors Payment,129.06,0,COMMERCIAL SUPPLIER 
 02-09-2020,Adults & Health,Eastway Care Ltd,Daycare - Private Contractors Payment,584,0,COMMERCIAL SUPPLIER 
 02-09-2020,Adults & Health,Eastway Care Ltd,Daycare - Private Contractors Payment,233.6,0,COMMERCIAL SUPPLIER 
 02-09-2020,Adults & Health,Eastway Care Ltd,Daycare - Private Contractors Payment,233.6,0,COMMERCIAL SUPPLIER 
 02-09-2020,Adults & Health,Eastway Care Ltd,Daycare - Private Contractors Payment,380.16,0,COMMERCIAL SUPPLIER 
 02-09-2020,Adults & Health,Eastway Care Ltd,Daycare - Private Contractors Payment,350.4,0,COMMERCIAL SUPPLIER 
 02-09-2020,Adults & Health,Eastway Care Ltd,Daycare - Private Contractors Payment,950.4,0,COMMERCIAL SUPPLIER 
 02-09-2020,Adults & Health,Eastway Care Ltd,Daycare - Private Contractors Payment,387.18,0,COMMERCIAL SUPPLIER 
 02-09-2020,Adults & Health,Eastway Care Ltd,Daycare - Private Contractors Payment,232.16,0,COMMERCIAL SUPPLIER 
 02-09-2020,Adults & Health,Eastway Care Ltd,Daycare - Private Contractors Payment,233.6,0,COMMERCIAL SUPPLIER 
 02-09-2020,Adults & Health,Eastway Care Ltd,Daycare - Private Contractors Payment,645.3,0,COMMERCIAL SUPPLIER 
 02-09-2020,Adults & Health,Eastway Care Ltd,Daycare - Private Contractors Payment,950.4,0,COMMERCIAL SUPPLIER 
 02-09-2020,Adults & Health,Eastway Care Ltd,Daycare - Private Contractors Payment,570.24,0,COMMERCIAL SUPPLIER 
 02-09-2020,Adults & Health,Eastway Care Ltd,Daycare - Private Contractors Payment,950.4,0,COMMERCIAL SUPPLIER 
 02-09-2020,Adults & Health,Eastway Care Ltd,Daycare - Private Contractors Payment,950.4,0,COMMERCIAL SUPPLIER 
 02-09-2020,Adults & Health,Eastway Care Ltd,Daycare - Private Contractors Payment,233.6,0,COMMERCIAL SUPPLIER 
 02-09-2020,Adults & Health,Eastway Care Ltd,Daycare - Private Contractors Payment,116.8,0,COMMERCIAL SUPPLIER 
 02-09-2020,Adults & Health,Eastway Care Ltd,Daycare - Private Contractors Payment,584,0,COMMERCIAL SUPPLIER 
 02-09-2020,Adults & Health,Eastway Care Ltd,Daycare - Private Contractors Payment,350.4,0,COMMERCIAL SUPPLIER 
 02-09-2020,Adults & Health,Eastway Care Ltd,Daycare - Private Contractors Payment,950.4,0,COMMERCIAL SUPPLIER 
 02-09-2020,Adults & Health,Eastway Care Ltd,Daycare - Private Contractors Payment,584,0,COMMERCIAL SUPPLIER 
 02-09-2020,Adults & Health,Eastway Care Ltd,Daycare - Private Contractors Payment,350.4,0,COMMERCIAL SUPPLIER 
 02-09-2020,Adults & Health,Eastway Care Ltd,Daycare - Private Contractors Payment,645.3,0,COMMERCIAL SUPPLIER 
 02-09-2020,Adults & Health,Eastway Care Ltd,Daycare - Private Contractors Payment,233.6,0,COMMERCIAL SUPPLIER 
 02-09-2020,Adults & Health,Eastway Care Ltd,Daycare - Private Contractors Payment,950.4,0,COMMERCIAL SUPPLIER 
 02-09-2020,Adults & Health,Eastway Care Ltd,Daycare - Private Contractors Payment,584,0,COMMERCIAL SUPPLIER 
 02-09-2020,Adults & Health,Eastway Care Ltd,Daycare - Private Contractors Payment,233.6,0,COMMERCIAL SUPPLIER 
 02-09-2020,Adults & Health,Eastway Care Ltd,Daycare - Private Contractors Payment,129.06,0,COMMERCIAL SUPPLIER 
 02-09-2020,Adults & Health,Eastway Care Ltd,Daycare - Private Contractors Payment,584,0,COMMERCIAL SUPPLIER 
 02-09-2020,Adults & Health,Eastway Care Ltd,Daycare - Private Contractors Payment,950.4,0,COMMERCIAL SUPPLIER 
 02-09-2020,Adults & Health,Eastway Care Ltd,Daycare - Private Contractors Payment,950.4,0,COMMERCIAL SUPPLIER 
 02-09-2020,Adults & Health,Eastway Care Ltd,Daycare - Private Contractors Payment,475.75,0,COMMERCIAL SUPPLIER 
 02-09-2020,Adults & Health,Eastway Care Ltd,Daycare - Private Contractors Payment,950.4,0,COMMERCIAL SUPPLIER 
 02-09-2020,Adults & Health,Eastway Care Ltd,Daycare - Private Contractors Payment,233.6,0,COMMERCIAL SUPPLIER 
 02-09-2020,Adults & Health,Eastway Care Ltd,Daycare - Private Contractors Payment,387.18,0,COMMERCIAL SUPPLIER 
 02-09-2020,Adults & Health,Eastway Care Ltd,Daycare - Private Contractors Payment,950.4,0,COMMERCIAL SUPPLIER 
 02-09-2020,Adults & Health,Eastway Care Ltd,Daycare - Private Contractors Payment,258.12,0,COMMERCIAL SUPPLIER 
 02-09-2020,Adults & Health,Eastway Care Ltd,Daycare - Private Contractors Payment,380.16,0,COMMERCIAL SUPPLIER 
 02-09-2020,Adults & Health,Eastway Care Ltd,Daycare - Private Contractors Payment,467.2,0,COMMERCIAL SUPPLIER 
 02-09-2020,Adults & Health,Eastway Care Ltd,Daycare - Private Contractors Payment,584,0,COMMERCIAL SUPPLIER 
 02-09-2020,Adults & Health,Eastway Care Ltd,Daycare - Private Contractors Payment,233.6,0,COMMERCIAL SUPPLIER 
 02-09-2020,Adults & Health,Eastway Care Ltd,Daycare - Private Contractors Payment,350.4,0,COMMERCIAL SUPPLIER 
 02-09-2020,Adults & Health,Eastway Care Ltd,Daycare - Private Contractors Payment,190.08,0,COMMERCIAL SUPPLIER 
 02-09-2020,Adults & Health,Eastway Care Ltd,Daycare - Private Contractors Payment,116.8,0,COMMERCIAL SUPPLIER 
 02-09-2020,Adults & Health,Eastway Care Ltd,Daycare - Private Contractors Payment,258.12,0,COMMERCIAL SUPPLIER 
 02-09-2020,Adults & Health,Eastway Care Ltd,Daycare - Private Contractors Payment,380.16,0,COMMERCIAL SUPPLIER 
 02-09-2020,Adults & Health,Eastway Care Ltd,Daycare - Private Contractors Payment,467.2,0,COMMERCIAL SUPPLIER 
 02-09-2020,Adults & Health,Eastway Care Ltd,Daycare - Private Contractors Payment,584,0,COMMERCIAL SUPPLIER 
 02-09-2020,Adults & Health,Eastway Care Ltd,Daycare - Private Contractors Payment,950.4,0,COMMERCIAL SUPPLIER 
 02-09-2020,Adults & Health,Eastway Care Ltd,Daycare - Private Contractors Payment,350.4,0,COMMERCIAL SUPPLIER 
 02-09-2020,Adults & Health,Eastway Care Ltd,Daycare - Private Contractors Payment,116.8,0,COMMERCIAL SUPPLIER 
 02-09-2020,Adults & Health,Eastway Care Ltd,Daycare - Private Contractors Payment,584,0,COMMERCIAL SUPPLIER 
 02-09-2020,Adults & Health,Eastway Care Ltd,Daycare - Private Contractors Payment,350.4,0,COMMERCIAL SUPPLIER 
 02-09-2020,Adults & Health,Eastway Care Ltd,Daycare - Private Contractors Payment,950.4,0,COMMERCIAL SUPPLIER 
 02-09-2020,Adults & Health,Eastway Care Ltd,Daycare - Private Contractors Payment,584,0,COMMERCIAL SUPPLIER 
 02-09-2020,Adults & Health,Eastway Care Ltd,Daycare - Private Contractors Payment,350.4,0,COMMERCIAL SUPPLIER 
 02-09-2020,Adults & Health,Eastway Care Ltd,Daycare - Private Contractors Payment,233.6,0,COMMERCIAL SUPPLIER 
 02-09-2020,Adults & Health,Eastway Care Ltd,Daycare - Private Contractors Payment,233.6,0,COMMERCIAL SUPPLIER 
 02-09-2020,Adults & Health,Eastway Care Ltd,Daycare - Private Contractors Payment,233.6,0,COMMERCIAL SUPPLIER 
 02-09-2020,Adults & Health,Eastway Care Ltd,Daycare - Private Contractors Payment,950.4,0,COMMERCIAL SUPPLIER 
 02-09-2020,Adults & Health,Eastway Care Ltd,Daycare - Private Contractors Payment,190.08,0,COMMERCIAL SUPPLIER 
 02-09-2020,Adults & Health,Eastway Care Ltd,Daycare - Private Contractors Payment,233.6,0,COMMERCIAL SUPPLIER 
 02-09-2020,RMS,Lightning Electrical Service Ltd,Private Contractors Payment - Other,2676.16,0,COMMERCIAL SUPPLIER 
 02-09-2020,RMS,Lightning Electrical Service Ltd,Private Contractors Payment - Other,5287.9,0,COMMERCIAL SUPPLIER 
 02-09-2020,RMS,Russell Roadmarks Ltd,Private Contractors Payment - Other,784,0,CIS 
 02-09-2020,RMS,Russell Roadmarks Ltd,Private Contractors Payment - Other,22,0,CIS 
 02-09-2020,RMS,Russell Roadmarks Ltd,Private Contractors Payment - Other,85.22,0,CIS 
 02-09-2020,RMS,Russell Roadmarks Ltd,Private Contractors Payment - Other,323.01,0,CIS 
 02-09-2020,RMS,Russell Roadmarks Ltd,Private Contractors Payment - Other,120.44,0,CIS 
 02-09-2020,RMS,Russell Roadmarks Ltd,Private Contractors Payment - Other,89.77,0,CIS 
 02-09-2020,RMS,Russell Roadmarks Ltd,Private Contractors Payment - Other,199.64,0,CIS 
 02-09-2020,RMS,Russell Roadmarks Ltd,Private Contractors Payment - Other,354.11,0,CIS 
 02-09-2020,RMS,Russell Roadmarks Ltd,Private Contractors Payment - Other,177.68,0,CIS 
 02-09-2020,RMS,Russell Roadmarks Ltd,Private Contractors Payment - Other,241.08,0,CIS 
 02-09-2020,RMS,Russell Roadmarks Ltd,Private Contractors Payment - Other,152.56,0,CIS 
 02-09-2020,oneSource - Non Shared,In-Line Removal And Storage,Removal Services,1890,0,VENDOR 
 02-09-2020,Housing Revenue Account,David G Hall,Legal Fees,580,0,COMMERCIAL SUPPLIER 
 02-09-2020,Children and Young People,Children First Fostering Agency,Residential Placements - Private Contractors Payment,445.72,0,COMMERCIAL SUPPLIER 
 02-09-2020,Children and Young People,Children First Fostering Agency,Residential Placements - Private Contractors Payment,795,0,COMMERCIAL SUPPLIER 
 02-09-2020,Children and Young People,Children First Fostering Agency,Residential Placements - Private Contractors Payment,1069.33,0,COMMERCIAL SUPPLIER 
 02-09-2020,Children and Young People,Children First Fostering Agency,Residential Placements - Private Contractors Payment,795,0,COMMERCIAL SUPPLIER 
 02-09-2020,Children and Young People,Children First Fostering Agency,Residential Placements - Private Contractors Payment,795,0,COMMERCIAL SUPPLIER 
 02-09-2020,Adults & Health,Culture Care Agency Ltd,Home Care - Private Contractors Payment,504,0,COMMERCIAL SUPPLIER 
 02-09-2020,Adults & Health,Culture Care Agency Ltd,Home Care - Private Contractors Payment,598.5,0,COMMERCIAL SUPPLIER 
 02-09-2020,Adults & Health,Culture Care Agency Ltd,Daycare - Private Contractors Payment,72,0,COMMERCIAL SUPPLIER 
 02-09-2020,Adults & Health,Culture Care Agency Ltd,Home Care - Private Contractors Payment,157.5,0,COMMERCIAL SUPPLIER 
 02-09-2020,Adults & Health,Culture Care Agency Ltd,Daycare - Private Contractors Payment,90,0,COMMERCIAL SUPPLIER 
 02-09-2020,Adults & Health,Culture Care Agency Ltd,Home Care - Private Contractors Payment,504,0,COMMERCIAL SUPPLIER 
 02-09-2020,Adults & Health,Culture Care Agency Ltd,Home Care - Private Contractors Payment,130.5,0,COMMERCIAL SUPPLIER 
 02-09-2020,Adults & Health,Culture Care Agency Ltd,Respite Care - Private Contractors Payment,202.5,0,COMMERCIAL SUPPLIER 
 02-09-2020,Adults & Health,Culture Care Agency Ltd,Home Care - Private Contractors Payment,18,0,COMMERCIAL SUPPLIER 
 02-09-2020,Adults & Health,Culture Care Agency Ltd,Home Care - Private Contractors Payment,283.5,0,COMMERCIAL SUPPLIER 
 02-09-2020,Adults & Health,Culture Care Agency Ltd,Home Care - Private Contractors Payment,504,0,COMMERCIAL SUPPLIER 
 02-09-2020,Adults & Health,Culture Care Agency Ltd,Home Care - Private Contractors Payment,598.5,0,COMMERCIAL SUPPLIER 
 02-09-2020,Adults & Health,Culture Care Agency Ltd,Daycare - Private Contractors Payment,72,0,COMMERCIAL SUPPLIER 
 02-09-2020,Adults & Health,Culture Care Agency Ltd,Home Care - Private Contractors Payment,130.5,0,COMMERCIAL SUPPLIER 
 02-09-2020,Adults & Health,Culture Care Agency Ltd,Respite Care - Private Contractors Payment,202.5,0,COMMERCIAL SUPPLIER 
 02-09-2020,Adults & Health,Culture Care Agency Ltd,Home Care - Private Contractors Payment,18,0,COMMERCIAL SUPPLIER 
 02-09-2020,Adults & Health,Culture Care Agency Ltd,Daycare - Private Contractors Payment,90,0,COMMERCIAL SUPPLIER 
 02-09-2020,Adults & Health,Culture Care Agency Ltd,Home Care - Private Contractors Payment,504,0,COMMERCIAL SUPPLIER 
 02-09-2020,Adults & Health,Culture Care Agency Ltd,Home Care - Private Contractors Payment,18,0,COMMERCIAL SUPPLIER 
 02-09-2020,Adults & Health,Culture Care Agency Ltd,Daycare - Private Contractors Payment,54,0,COMMERCIAL SUPPLIER 
 02-09-2020,Adults & Health,Culture Care Agency Ltd,Home Care - Private Contractors Payment,157.5,0,COMMERCIAL SUPPLIER 
 02-09-2020,Adults & Health,Culture Care Agency Ltd,Home Care - Private Contractors Payment,94.5,0,COMMERCIAL SUPPLIER 
 02-09-2020,Adults & Health,Culture Care Agency Ltd,Home Care - Private Contractors Payment,157.5,0,COMMERCIAL SUPPLIER 
 02-09-2020,Adults & Health,Culture Care Agency Ltd,Daycare - Private Contractors Payment,72,0,COMMERCIAL SUPPLIER 
 02-09-2020,Adults & Health,Culture Care Agency Ltd,Home Care - Private Contractors Payment,130.5,0,COMMERCIAL SUPPLIER 
 02-09-2020,Adults & Health,Culture Care Agency Ltd,Respite Care - Private Contractors Payment,202.5,0,COMMERCIAL SUPPLIER 
 02-09-2020,Adults & Health,Culture Care Agency Ltd,Home Care - Private Contractors Payment,18,0,COMMERCIAL SUPPLIER 
 02-09-2020,Adults & Health,Culture Care Agency Ltd,Home Care - Private Contractors Payment,157.5,0,COMMERCIAL SUPPLIER 
 02-09-2020,Adults & Health,Culture Care Agency Ltd,Home Care - Private Contractors Payment,18,0,COMMERCIAL SUPPLIER 
 02-09-2020,Adults & Health,Culture Care Agency Ltd,Daycare - Private Contractors Payment,54,0,COMMERCIAL SUPPLIER 
 02-09-2020,Adults & Health,Culture Care Agency Ltd,Home Care - Private Contractors Payment,157.5,0,COMMERCIAL SUPPLIER 
 02-09-2020,Adults & Health,Culture Care Agency Ltd,Home Care - Private Contractors Payment,94.5,0,COMMERCIAL SUPPLIER 
 02-09-2020,Adults & Health,Culture Care Agency Ltd,Home Care - Private Contractors Payment,283.5,0,COMMERCIAL SUPPLIER 
 02-09-2020,Adults & Health,Culture Care Agency Ltd,Home Care - Private Contractors Payment,504,0,COMMERCIAL SUPPLIER 
 02-09-2020,Adults & Health,Culture Care Agency Ltd,Home Care - Private Contractors Payment,598.5,0,COMMERCIAL SUPPLIER 
 02-09-2020,Adults & Health,Culture Care Agency Ltd,Daycare - Private Contractors Payment,90,0,COMMERCIAL SUPPLIER 
 02-09-2020,Adults & Health,Culture Care Agency Ltd,Home Care - Private Contractors Payment,504,0,COMMERCIAL SUPPLIER 
 02-09-2020,Adults & Health,Culture Care Agency Ltd,Daycare - Private Contractors Payment,-13.5,0,COMMERCIAL SUPPLIER 
 02-09-2020,Adults & Health,Culture Care Agency Ltd,Home Care - Private Contractors Payment,157.5,0,COMMERCIAL SUPPLIER 
 02-09-2020,Adults & Health,Culture Care Agency Ltd,Home Care - Private Contractors Payment,613.5,0,COMMERCIAL SUPPLIER 
 02-09-2020,Adults & Health,Culture Care Agency Ltd,Home Care - Private Contractors Payment,283.5,0,COMMERCIAL SUPPLIER 
 02-09-2020,Adults & Health,Culture Care Agency Ltd,Home Care - Private Contractors Payment,18,0,COMMERCIAL SUPPLIER 
 02-09-2020,Adults & Health,Culture Care Agency Ltd,Home Care - Private Contractors Payment,130.5,0,COMMERCIAL SUPPLIER 
 02-09-2020,Adults & Health,Culture Care Agency Ltd,Home Care - Private Contractors Payment,460.2,0,COMMERCIAL SUPPLIER 
 02-09-2020,Adults & Health,Culture Care Agency Ltd,Home Care - Private Contractors Payment,342,0,COMMERCIAL SUPPLIER 
 02-09-2020,Adults & Health,Culture Care Agency Ltd,Daycare - Private Contractors Payment,90,0,COMMERCIAL SUPPLIER 
 02-09-2020,Adults & Health,Culture Care Agency Ltd,Home Care - Private Contractors Payment,158.4,0,COMMERCIAL SUPPLIER 
 02-09-2020,Adults & Health,Culture Care Agency Ltd,Home Care - Private Contractors Payment,114.9,0,COMMERCIAL SUPPLIER 
 02-09-2020,Adults & Health,Culture Care Agency Ltd,Home Care - Private Contractors Payment,18,0,COMMERCIAL SUPPLIER 
 02-09-2020,Adults & Health,Culture Care Agency Ltd,Home Care - Private Contractors Payment,126,0,COMMERCIAL SUPPLIER 
 02-09-2020,Adults & Health,Culture Care Agency Ltd,Daycare - Private Contractors Payment,72,0,COMMERCIAL SUPPLIER 
 02-09-2020,Adults & Health,Culture Care Agency Ltd,Home Care - Private Contractors Payment,94.5,0,COMMERCIAL SUPPLIER 
 02-09-2020,Adults & Health,Culture Care Agency Ltd,Home Care - Private Contractors Payment,18,0,COMMERCIAL SUPPLIER 
 02-09-2020,Adults & Health,Culture Care Agency Ltd,Daycare - Private Contractors Payment,54,0,COMMERCIAL SUPPLIER 
 02-09-2020,Adults & Health,Culture Care Agency Ltd,Home Care - Private Contractors Payment,157.5,0,COMMERCIAL SUPPLIER 
 02-09-2020,Adults & Health,Culture Care Agency Ltd,Home Care - Private Contractors Payment,94.5,0,COMMERCIAL SUPPLIER 
 02-09-2020,Adults & Health,Culture Care Agency Ltd,Home Care - Private Contractors Payment,283.5,0,COMMERCIAL SUPPLIER 
 02-09-2020,Adults & Health,Culture Care Agency Ltd,Home Care - Private Contractors Payment,18.6,0,COMMERCIAL SUPPLIER 
 02-09-2020,Adults & Health,Culture Care Agency Ltd,Daycare - Private Contractors Payment,74.4,0,COMMERCIAL SUPPLIER 
 02-09-2020,Adults & Health,Culture Care Agency Ltd,Home Care - Private Contractors Payment,195.3,0,COMMERCIAL SUPPLIER 
 02-09-2020,Adults & Health,Culture Care Agency Ltd,Respite Care - Private Contractors Payment,209.25,0,COMMERCIAL SUPPLIER 
 02-09-2020,Adults & Health,Culture Care Agency Ltd,Home Care - Private Contractors Payment,18.6,0,COMMERCIAL SUPPLIER 
 02-09-2020,Adults & Health,Culture Care Agency Ltd,Home Care - Private Contractors Payment,162.75,0,COMMERCIAL SUPPLIER 
 02-09-2020,Adults & Health,Culture Care Agency Ltd,Respite Care - Private Contractors Payment,162.75,0,COMMERCIAL SUPPLIER 
 02-09-2020,Adults & Health,Culture Care Agency Ltd,Home Care - Private Contractors Payment,292.95,0,COMMERCIAL SUPPLIER 
 02-09-2020,Adults & Health,Culture Care Agency Ltd,Home Care - Private Contractors Payment,520.8,0,COMMERCIAL SUPPLIER 
 02-09-2020,Adults & Health,Culture Care Agency Ltd,Home Care - Private Contractors Payment,618.45,0,COMMERCIAL SUPPLIER 
 02-09-2020,Adults & Health,Culture Care Agency Ltd,Daycare - Private Contractors Payment,74.4,0,COMMERCIAL SUPPLIER 
 02-09-2020,Adults & Health,Culture Care Agency Ltd,Respite Care - Private Contractors Payment,209.25,0,COMMERCIAL SUPPLIER 
 02-09-2020,Adults & Health,Culture Care Agency Ltd,Home Care - Private Contractors Payment,18.6,0,COMMERCIAL SUPPLIER 
 02-09-2020,Adults & Health,Culture Care Agency Ltd,Home Care - Private Contractors Payment,162.75,0,COMMERCIAL SUPPLIER 
 02-09-2020,Adults & Health,Culture Care Agency Ltd,Daycare - Private Contractors Payment,55.8,0,COMMERCIAL SUPPLIER 
 02-09-2020,Adults & Health,Culture Care Agency Ltd,Daycare - Private Contractors Payment,93,0,COMMERCIAL SUPPLIER 
 02-09-2020,Adults & Health,Culture Care Agency Ltd,Home Care - Private Contractors Payment,18.6,0,COMMERCIAL SUPPLIER 
 02-09-2020,Adults & Health,Culture Care Agency Ltd,Home Care - Private Contractors Payment,134.85,0,COMMERCIAL SUPPLIER 
 02-09-2020,Adults & Health,Culture Care Agency Ltd,Home Care - Private Contractors Payment,130.82,0,COMMERCIAL SUPPLIER 
 02-09-2020,Adults & Health,Culture Care Agency Ltd,Home Care - Private Contractors Payment,292.95,0,COMMERCIAL SUPPLIER 
 02-09-2020,Adults & Health,Culture Care Agency Ltd,Home Care - Private Contractors Payment,162.75,0,COMMERCIAL SUPPLIER 
 02-09-2020,Adults & Health,Culture Care Agency Ltd,Home Care - Private Contractors Payment,613.8,0,COMMERCIAL SUPPLIER 
 02-09-2020,Adults & Health,Culture Care Agency Ltd,Home Care - Private Contractors Payment,195.3,0,COMMERCIAL SUPPLIER 
 02-09-2020,Adults & Health,Culture Care Agency Ltd,Home Care - Private Contractors Payment,162.75,0,COMMERCIAL SUPPLIER 
 02-09-2020,Adults & Health,Culture Care Agency Ltd,Home Care - Private Contractors Payment,18.6,0,COMMERCIAL SUPPLIER 
 02-09-2020,Adults & Health,Culture Care Agency Ltd,Home Care - Private Contractors Payment,97.65,0,COMMERCIAL SUPPLIER 
 02-09-2020,Adults & Health,Culture Care Agency Ltd,Daycare - Private Contractors Payment,55.8,0,COMMERCIAL SUPPLIER 
 02-09-2020,Adults & Health,Culture Care Agency Ltd,Daycare - Private Contractors Payment,93,0,COMMERCIAL SUPPLIER 
 02-09-2020,Adults & Health,Culture Care Agency Ltd,Home Care - Private Contractors Payment,97.65,0,COMMERCIAL SUPPLIER 
 02-09-2020,Adults & Health,Culture Care Agency Ltd,Home Care - Private Contractors Payment,483.6,0,COMMERCIAL SUPPLIER 
 02-09-2020,Adults & Health,Culture Care Agency Ltd,Home Care - Private Contractors Payment,18.6,0,COMMERCIAL SUPPLIER 
 02-09-2020,Adults & Health,Culture Care Agency Ltd,Home Care - Private Contractors Payment,134.85,0,COMMERCIAL SUPPLIER 
 02-09-2020,Adults & Health,Culture Care Agency Ltd,Home Care - Private Contractors Payment,292.95,0,COMMERCIAL SUPPLIER 
 02-09-2020,Adults & Health,Culture Care Agency Ltd,Home Care - Private Contractors Payment,618.45,0,COMMERCIAL SUPPLIER 
 02-09-2020,Adults & Health,Culture Care Agency Ltd,Home Care - Private Contractors Payment,162.75,0,COMMERCIAL SUPPLIER 
 02-09-2020,Adults & Health,Culture Care Agency Ltd,Daycare - Private Contractors Payment,74.4,0,COMMERCIAL SUPPLIER 
 02-09-2020,Adults & Health,Culture Care Agency Ltd,Respite Care - Private Contractors Payment,209.25,0,COMMERCIAL SUPPLIER 
 02-09-2020,Adults & Health,Culture Care Agency Ltd,Home Care - Private Contractors Payment,18.6,0,COMMERCIAL SUPPLIER 
 02-09-2020,Adults & Health,Culture Care Agency Ltd,Daycare - Private Contractors Payment,74.09,0,COMMERCIAL SUPPLIER 
 02-09-2020,Adults & Health,Culture Care Agency Ltd,Home Care - Private Contractors Payment,390.91,0,COMMERCIAL SUPPLIER 
 02-09-2020,Adults & Health,Culture Care Agency Ltd,Home Care - Private Contractors Payment,18.6,0,COMMERCIAL SUPPLIER 
 02-09-2020,Adults & Health,Culture Care Agency Ltd,Respite Care - Private Contractors Payment,167.4,0,COMMERCIAL SUPPLIER 
 02-09-2020,Adults & Health,Culture Care Agency Ltd,Daycare - Private Contractors Payment,55.8,0,COMMERCIAL SUPPLIER 
 02-09-2020,Adults & Health,Culture Care Agency Ltd,Home Care - Private Contractors Payment,97.65,0,COMMERCIAL SUPPLIER 
 02-09-2020,Adults & Health,Culture Care Agency Ltd,Daycare - Private Contractors Payment,93,0,COMMERCIAL SUPPLIER 
 02-09-2020,Adults & Health,Culture Care Agency Ltd,Home Care - Private Contractors Payment,18.6,0,COMMERCIAL SUPPLIER 
 02-09-2020,Adults & Health,Culture Care Agency Ltd,Home Care - Private Contractors Payment,210.3,0,COMMERCIAL SUPPLIER 
 02-09-2020,Adults & Health,Culture Care Agency Ltd,Home Care - Private Contractors Payment,162.75,0,COMMERCIAL SUPPLIER 
 02-09-2020,Adults & Health,Culture Care Agency Ltd,Home Care - Private Contractors Payment,18.6,0,COMMERCIAL SUPPLIER 
 02-09-2020,Adults & Health,Culture Care Agency Ltd,Daycare - Private Contractors Payment,55.8,0,COMMERCIAL SUPPLIER 
 02-09-2020,Adults & Health,Culture Care Agency Ltd,Daycare - Private Contractors Payment,93,0,COMMERCIAL SUPPLIER 
 02-09-2020,Adults & Health,Culture Care Agency Ltd,Home Care - Private Contractors Payment,18.6,0,COMMERCIAL SUPPLIER 
 02-09-2020,Adults & Health,Culture Care Agency Ltd,Home Care - Private Contractors Payment,134.85,0,COMMERCIAL SUPPLIER 
 02-09-2020,Adults & Health,Culture Care Agency Ltd,Home Care - Private Contractors Payment,18.6,0,COMMERCIAL SUPPLIER 
 02-09-2020,Adults & Health,Culture Care Agency Ltd,Home Care - Private Contractors Payment,195.3,0,COMMERCIAL SUPPLIER 
 02-09-2020,Adults & Health,Culture Care Agency Ltd,Home Care - Private Contractors Payment,162.75,0,COMMERCIAL SUPPLIER 
 02-09-2020,Adults & Health,Culture Care Agency Ltd,Home Care - Private Contractors Payment,97.65,0,COMMERCIAL SUPPLIER 
 02-09-2020,Adults & Health,Culture Care Agency Ltd,Respite Care - Private Contractors Payment,167.4,0,COMMERCIAL SUPPLIER 
 02-09-2020,Adults & Health,Culture Care Agency Ltd,Home Care - Private Contractors Payment,292.95,0,COMMERCIAL SUPPLIER 
 02-09-2020,Adults & Health,Culture Care Agency Ltd,Home Care - Private Contractors Payment,520.8,0,COMMERCIAL SUPPLIER 
 02-09-2020,Adults & Health,Culture Care Agency Ltd,Home Care - Private Contractors Payment,618.45,0,COMMERCIAL SUPPLIER 
 02-09-2020,Adults & Health,Culture Care Agency Ltd,Home Care - Private Contractors Payment,162.75,0,COMMERCIAL SUPPLIER 
 02-09-2020,Adults & Health,Blossom House Specialized Care & Support Services Ltd,Daycare - Private Contractors Payment,289.8,0,VENDOR 
 02-09-2020,Adults & Health,Blossom House Specialized Care & Support Services Ltd,Daycare - Private Contractors Payment,289.8,0,VENDOR 
 02-09-2020,Adults & Health,Blossom House Specialized Care & Support Services Ltd,Daycare - Private Contractors Payment,260.4,0,VENDOR 
 02-09-2020,Adults & Health,Blossom House Specialized Care & Support Services Ltd,Daycare - Private Contractors Payment,270,0,VENDOR 
 02-09-2020,Adults & Health,Blossom House Specialized Care & Support Services Ltd,Daycare - Private Contractors Payment,270,0,VENDOR 
 02-09-2020,Adults & Health,Blossom House Specialized Care & Support Services Ltd,Daycare - Private Contractors Payment,270,0,VENDOR 
 02-09-2020,Adults & Health,Blossom House Specialized Care & Support Services Ltd,Daycare - Private Contractors Payment,30,0,VENDOR 
 02-09-2020,Adults & Health,Blossom House Specialized Care & Support Services Ltd,Daycare - Private Contractors Payment,170,0,VENDOR 
 02-09-2020,Adults & Health,Blossom House Specialized Care & Support Services Ltd,Daycare - Private Contractors Payment,170,0,VENDOR 
 02-09-2020,Adults & Health,Blossom House Specialized Care & Support Services Ltd,Daycare - Private Contractors Payment,170,0,VENDOR 
 02-09-2020,Adults & Health,Blossom House Specialized Care & Support Services Ltd,Daycare - Private Contractors Payment,170,0,VENDOR 
 02-09-2020,Children and Young People,Hope Superjobs Ltd,Additional Placements - Third Party,68,0,COMMERCIAL SUPPLIER 
 02-09-2020,Children and Young People,Hope Superjobs Ltd,Additional Placements - Third Party,68,0,COMMERCIAL SUPPLIER 
 02-09-2020,Children and Young People,Hope Superjobs Ltd,Additional Placements - Third Party,68,0,COMMERCIAL SUPPLIER 
 02-09-2020,Children and Young People,Hope Superjobs Ltd,Additional Placements - Third Party,68,0,COMMERCIAL SUPPLIER 
 02-09-2020,Children and Young People,Windows for Children,Residential Placements - Private Contractors Payment,3381.35,0,COMMERCIAL SUPPLIER 
 02-09-2020,Children and Young People,Windows for Children,Residential Placements - Private Contractors Payment,3381.35,0,COMMERCIAL SUPPLIER 
 02-09-2020,Children and Young People,Windows for Children,Residential Placements - Private Contractors Payment,3381.35,0,COMMERCIAL SUPPLIER 
 02-09-2020,Children and Young People,Windows for Children,Residential Placements - Private Contractors Payment,3381.35,0,COMMERCIAL SUPPLIER 
 02-09-2020,Children and Young People,Xpress Half Price Furniture Ltd,Section 17 - Private Contractors Payment,400,0, 
 02-09-2020,Environment and Sustainable Transport,Terberg Matec Uk Ltd,Highway Services,1360.65,0,COMMERCIAL SUPPLIER 
 02-09-2020,Children and Young People,Inclusive Care Support Ltd,Supported Other Accommodation - Private Contractors Payment,1449.25,0,COMMERCIAL SUPPLIER 
 02-09-2020,Children and Young People,Inclusive Care Support Ltd,Supported Other Accommodation - Private Contractors Payment,1449.25,0,COMMERCIAL SUPPLIER 
 02-09-2020,Children and Young People,Inclusive Care Support Ltd,Supported Other Accommodation - Private Contractors Payment,1449.25,0,COMMERCIAL SUPPLIER 
 02-09-2020,Children and Young People,Inclusive Care Support Ltd,Supported Other Accommodation - Private Contractors Payment,1449.25,0,COMMERCIAL SUPPLIER 
 02-09-2020,Adults & Health,Inclusive Care Support Ltd,Daycare - Private Contractors Payment,315,0,COMMERCIAL SUPPLIER 
 02-09-2020,Adults & Health,Inclusive Care Support Ltd,Daycare - Private Contractors Payment,315,0,COMMERCIAL SUPPLIER 
 02-09-2020,Adults & Health,Inclusive Care Support Ltd,Daycare - Private Contractors Payment,315,0,COMMERCIAL SUPPLIER 
 02-09-2020,Adults & Health,Inclusive Care Support Ltd,Daycare - Private Contractors Payment,315,0,COMMERCIAL SUPPLIER 
 02-09-2020,Children and Young People,Bramley Care Ltd t/a Apple Orchard,Residential Placements - Private Contractors Payment,3866.24,0,NON COMMERCIAL SUPPLIER 
 02-09-2020,Children and Young People,Bramley Care Ltd t/a Apple Orchard,Residential Placements - Private Contractors Payment,3866.24,0,NON COMMERCIAL SUPPLIER 
 02-09-2020,Children and Young People,Bramley Care Ltd t/a Apple Orchard,Residential Placements - Private Contractors Payment,3866.24,0,NON COMMERCIAL SUPPLIER 
 02-09-2020,Children and Young People,Bramley Care Ltd t/a Apple Orchard,Residential Placements - Private Contractors Payment,3866.24,0,NON COMMERCIAL SUPPLIER 
 02-09-2020,Children and Young People,Bramley Care Ltd t/a Apple Orchard,Residential Placements - Private Contractors Payment,3866.24,0,NON COMMERCIAL SUPPLIER 
 02-09-2020,Children and Young People,Bramley Care Ltd t/a Apple Orchard,Residential Placements - Private Contractors Payment,4418.56,0,NON COMMERCIAL SUPPLIER 
 02-09-2020,Children and Young People,Bramley Care Ltd t/a Apple Orchard,Residential Placements - Private Contractors Payment,3866.24,0,NON COMMERCIAL SUPPLIER 
 02-09-2020,Children and Young People,Bramley Care Ltd t/a Apple Orchard,Residential Placements - Private Contractors Payment,3866.24,0,NON COMMERCIAL SUPPLIER 
 02-09-2020,Children and Young People,Bramley Care Ltd t/a Apple Orchard,Residential Placements - Private Contractors Payment,3866.24,0,NON COMMERCIAL SUPPLIER 
 02-09-2020,Children and Young People,Bramley Care Ltd t/a Apple Orchard,Residential Placements - Private Contractors Payment,3866.24,0,NON COMMERCIAL SUPPLIER 
 02-09-2020,Children and Young People,Bramley Care Ltd t/a Apple Orchard,Residential Placements - Private Contractors Payment,3866.24,0,NON COMMERCIAL SUPPLIER 
 02-09-2020,Children and Young People,Bramley Care Ltd t/a Apple Orchard,Residential Placements - Private Contractors Payment,3866.24,0,NON COMMERCIAL SUPPLIER 
 02-09-2020,Children and Young People,Bramley Care Ltd t/a Apple Orchard,Residential Placements - Private Contractors Payment,3866.24,0,NON COMMERCIAL SUPPLIER 
 02-09-2020,Balance Sheet,Apex Law,Capital Outlay,1442,0,LEGAL SERVICES 
 02-09-2020,Adults & Health,Look Ahead Housing and Care Ltd,Supported Other Accommodation - Private Contractors Payment,807.49,0,COMMERCIAL SUPPLIER 
 02-09-2020,Adults & Health,Look Ahead Housing and Care Ltd,Supported Other Accommodation - Private Contractors Payment,807.49,0,COMMERCIAL SUPPLIER 
 02-09-2020,Adults & Health,Look Ahead Housing and Care Ltd,Supported Other Accommodation - Private Contractors Payment,624.65,0,COMMERCIAL SUPPLIER 
 02-09-2020,Adults & Health,Look Ahead Housing and Care Ltd,Supported Other Accommodation - Private Contractors Payment,807.49,0,COMMERCIAL SUPPLIER 
 02-09-2020,Adults & Health,Look Ahead Housing and Care Ltd,Supported Other Accommodation - Private Contractors Payment,818.3,0,COMMERCIAL SUPPLIER 
 02-09-2020,Adults & Health,Look Ahead Housing and Care Ltd,Supported Other Accommodation - Private Contractors Payment,818.3,0,COMMERCIAL SUPPLIER 
 02-09-2020,Adults & Health,Look Ahead Housing and Care Ltd,Supported Other Accommodation - Private Contractors Payment,818.3,0,COMMERCIAL SUPPLIER 
 02-09-2020,Adults & Health,Look Ahead Housing and Care Ltd,Supported Other Accommodation - Private Contractors Payment,592.22,0,COMMERCIAL SUPPLIER 
 02-09-2020,Adults & Health,Look Ahead Housing and Care Ltd,Supported Other Accommodation - Private Contractors Payment,624.65,0,COMMERCIAL SUPPLIER 
 02-09-2020,Adults & Health,Look Ahead Housing and Care Ltd,Supported Other Accommodation - Private Contractors Payment,807.49,0,COMMERCIAL SUPPLIER 
 02-09-2020,Adults & Health,Look Ahead Housing and Care Ltd,Supported Other Accommodation - Private Contractors Payment,807.49,0,COMMERCIAL SUPPLIER 
 02-09-2020,Adults & Health,Look Ahead Housing and Care Ltd,Supported Other Accommodation - Private Contractors Payment,807.49,0,COMMERCIAL SUPPLIER 
 02-09-2020,Adults & Health,Look Ahead Housing and Care Ltd,Supported Other Accommodation - Private Contractors Payment,807.49,0,COMMERCIAL SUPPLIER 
 02-09-2020,Adults & Health,Look Ahead Housing and Care Ltd,Supported Other Accommodation - Private Contractors Payment,807.49,0,COMMERCIAL SUPPLIER 
 02-09-2020,Adults & Health,Look Ahead Housing and Care Ltd,Supported Other Accommodation - Private Contractors Payment,624.65,0,COMMERCIAL SUPPLIER 
 02-09-2020,Adults & Health,Look Ahead Housing and Care Ltd,Supported Other Accommodation - Private Contractors Payment,807.49,0,COMMERCIAL SUPPLIER 
 02-09-2020,Adults & Health,Look Ahead Housing and Care Ltd,Supported Other Accommodation - Private Contractors Payment,807.49,0,COMMERCIAL SUPPLIER 
 02-09-2020,Adults & Health,Look Ahead Housing and Care Ltd,Supported Other Accommodation - Private Contractors Payment,807.49,0,COMMERCIAL SUPPLIER 
 02-09-2020,Adults & Health,Look Ahead Housing and Care Ltd,Supported Other Accommodation - Private Contractors Payment,624.65,0,COMMERCIAL SUPPLIER 
 02-09-2020,Adults & Health,Look Ahead Housing and Care Ltd,Supported Other Accommodation - Private Contractors Payment,807.49,0,COMMERCIAL SUPPLIER 
 02-09-2020,Adults & Health,Look Ahead Housing and Care Ltd,Supported Other Accommodation - Private Contractors Payment,658.46,0,COMMERCIAL SUPPLIER 
 02-09-2020,Adults & Health,Look Ahead Housing and Care Ltd,Supported Other Accommodation - Private Contractors Payment,851.18,0,COMMERCIAL SUPPLIER 
 02-09-2020,Adults & Health,Look Ahead Housing and Care Ltd,Supported Other Accommodation - Private Contractors Payment,851.18,0,COMMERCIAL SUPPLIER 
 02-09-2020,Adults & Health,Look Ahead Housing and Care Ltd,Supported Other Accommodation - Private Contractors Payment,851.18,0,COMMERCIAL SUPPLIER 
 02-09-2020,Adults & Health,Look Ahead Housing and Care Ltd,Supported Other Accommodation - Private Contractors Payment,227.13,0,COMMERCIAL SUPPLIER 
 02-09-2020,Adults & Health,Look Ahead Housing and Care Ltd,Supported Other Accommodation - Private Contractors Payment,227.13,0,COMMERCIAL SUPPLIER 
 02-09-2020,Adults & Health,Look Ahead Housing and Care Ltd,Supported Other Accommodation - Private Contractors Payment,175.69,0,COMMERCIAL SUPPLIER 
 02-09-2020,Adults & Health,Look Ahead Housing and Care Ltd,Supported Other Accommodation - Private Contractors Payment,227.13,0,COMMERCIAL SUPPLIER 
 02-09-2020,Adults & Health,Look Ahead Housing and Care Ltd,Supported Other Accommodation - Private Contractors Payment,446.69,0,COMMERCIAL SUPPLIER 
 02-09-2020,Adults & Health,Look Ahead Housing and Care Ltd,Supported Other Accommodation - Private Contractors Payment,577.45,0,COMMERCIAL SUPPLIER 
 02-09-2020,Adults & Health,Look Ahead Housing and Care Ltd,Supported Other Accommodation - Private Contractors Payment,577.45,0,COMMERCIAL SUPPLIER 
 02-09-2020,Adults & Health,Look Ahead Housing and Care Ltd,Supported Other Accommodation - Private Contractors Payment,577.45,0,COMMERCIAL SUPPLIER 
 02-09-2020,Adults & Health,Look Ahead Housing and Care Ltd,Supported Other Accommodation - Private Contractors Payment,3254.71,0,COMMERCIAL SUPPLIER 
 02-09-2020,Adults & Health,Look Ahead Housing and Care Ltd,Supported Other Accommodation - Private Contractors Payment,3254.71,0,COMMERCIAL SUPPLIER 
 02-09-2020,Adults & Health,Look Ahead Housing and Care Ltd,Supported Other Accommodation - Private Contractors Payment,3254.71,0,COMMERCIAL SUPPLIER 
 02-09-2020,Adults & Health,Look Ahead Housing and Care Ltd,Supported Other Accommodation - Private Contractors Payment,2517.79,0,COMMERCIAL SUPPLIER 
 02-09-2020,Adults & Health,Look Ahead Housing and Care Ltd,Supported Other Accommodation - Private Contractors Payment,413.4,0,COMMERCIAL SUPPLIER 
 02-09-2020,Adults & Health,Look Ahead Housing and Care Ltd,Supported Other Accommodation - Private Contractors Payment,413.4,0,COMMERCIAL SUPPLIER 
 02-09-2020,Adults & Health,Look Ahead Housing and Care Ltd,Supported Other Accommodation - Private Contractors Payment,199.8,0,COMMERCIAL SUPPLIER 
 02-09-2020,Adults & Health,Look Ahead Housing and Care Ltd,Supported Other Accommodation - Private Contractors Payment,413.4,0,COMMERCIAL SUPPLIER 
 02-09-2020,Adults & Health,Look Ahead Housing and Care Ltd,Supported Other Accommodation - Private Contractors Payment,677.77,0,COMMERCIAL SUPPLIER 
 02-09-2020,Adults & Health,Look Ahead Housing and Care Ltd,Supported Other Accommodation - Private Contractors Payment,677.77,0,COMMERCIAL SUPPLIER 
 02-09-2020,Adults & Health,Look Ahead Housing and Care Ltd,Supported Other Accommodation - Private Contractors Payment,524.33,0,COMMERCIAL SUPPLIER 
 02-09-2020,Adults & Health,Look Ahead Housing and Care Ltd,Supported Other Accommodation - Private Contractors Payment,677.77,0,COMMERCIAL SUPPLIER 
 02-09-2020,Adults & Health,Look Ahead Housing and Care Ltd,Supported Other Accommodation - Private Contractors Payment,677.77,0,COMMERCIAL SUPPLIER 
 02-09-2020,Adults & Health,Look Ahead Housing and Care Ltd,Supported Other Accommodation - Private Contractors Payment,677.77,0,COMMERCIAL SUPPLIER 
 02-09-2020,Adults & Health,Look Ahead Housing and Care Ltd,Supported Other Accommodation - Private Contractors Payment,524.33,0,COMMERCIAL SUPPLIER 
 02-09-2020,Adults & Health,Look Ahead Housing and Care Ltd,Supported Other Accommodation - Private Contractors Payment,677.77,0,COMMERCIAL SUPPLIER 
 02-09-2020,Adults & Health,Look Ahead Housing and Care Ltd,Supported Other Accommodation - Private Contractors Payment,49.56,0,COMMERCIAL SUPPLIER 
 02-09-2020,Adults & Health,Look Ahead Housing and Care Ltd,Supported Other Accommodation - Private Contractors Payment,121.64,0,COMMERCIAL SUPPLIER 
 02-09-2020,Adults & Health,Look Ahead Housing and Care Ltd,Supported Other Accommodation - Private Contractors Payment,121.64,0,COMMERCIAL SUPPLIER 
 02-09-2020,Adults & Health,Look Ahead Housing and Care Ltd,Supported Other Accommodation - Private Contractors Payment,121.64,0,COMMERCIAL SUPPLIER 
 02-09-2020,Adults & Health,Look Ahead Housing and Care Ltd,Daycare - Private Contractors Payment,160,0,COMMERCIAL SUPPLIER 
 02-09-2020,Adults & Health,Look Ahead Housing and Care Ltd,Daycare - Private Contractors Payment,160,0,COMMERCIAL SUPPLIER 
 02-09-2020,Adults & Health,Look Ahead Housing and Care Ltd,Daycare - Private Contractors Payment,31.65,0,COMMERCIAL SUPPLIER 
 02-09-2020,Adults & Health,Look Ahead Housing and Care Ltd,Daycare - Private Contractors Payment,160,0,COMMERCIAL SUPPLIER 
 02-09-2020,Adults & Health,Look Ahead Housing and Care Ltd,Supported Other Accommodation - Private Contractors Payment,206.74,0,COMMERCIAL SUPPLIER 
 02-09-2020,Adults & Health,Look Ahead Housing and Care Ltd,Supported Other Accommodation - Private Contractors Payment,126.52,0,COMMERCIAL SUPPLIER 
 02-09-2020,Adults & Health,Look Ahead Housing and Care Ltd,Supported Other Accommodation - Private Contractors Payment,206.74,0,COMMERCIAL SUPPLIER 
 02-09-2020,Adults & Health,Look Ahead Housing and Care Ltd,Supported Other Accommodation - Private Contractors Payment,260.21,0,COMMERCIAL SUPPLIER 
 02-09-2020,Adults & Health,Look Ahead Housing and Care Ltd,Supported Other Accommodation - Private Contractors Payment,260.21,0,COMMERCIAL SUPPLIER 
 02-09-2020,Adults & Health,Look Ahead Housing and Care Ltd,Supported Other Accommodation - Private Contractors Payment,260.21,0,COMMERCIAL SUPPLIER 
 02-09-2020,Adults & Health,Look Ahead Housing and Care Ltd,Supported Other Accommodation - Private Contractors Payment,201.29,0,COMMERCIAL SUPPLIER 
 02-09-2020,Adults & Health,Look Ahead Housing and Care Ltd,Supported Other Accommodation - Private Contractors Payment,168.37,0,COMMERCIAL SUPPLIER 
 02-09-2020,Adults & Health,Look Ahead Housing and Care Ltd,Supported Other Accommodation - Private Contractors Payment,168.37,0,COMMERCIAL SUPPLIER 
 02-09-2020,Adults & Health,Look Ahead Housing and Care Ltd,Supported Other Accommodation - Private Contractors Payment,130.25,0,COMMERCIAL SUPPLIER 
 02-09-2020,Adults & Health,Look Ahead Housing and Care Ltd,Supported Other Accommodation - Private Contractors Payment,168.37,0,COMMERCIAL SUPPLIER 
 02-09-2020,Adults & Health,Look Ahead Housing and Care Ltd,Supported Other Accommodation - Private Contractors Payment,392.07,0,COMMERCIAL SUPPLIER 
 02-09-2020,Adults & Health,Look Ahead Housing and Care Ltd,Supported Other Accommodation - Private Contractors Payment,392.07,0,COMMERCIAL SUPPLIER 
 02-09-2020,Adults & Health,Look Ahead Housing and Care Ltd,Supported Other Accommodation - Private Contractors Payment,392.07,0,COMMERCIAL SUPPLIER 
 02-09-2020,Adults & Health,Look Ahead Housing and Care Ltd,Supported Other Accommodation - Private Contractors Payment,303.31,0,COMMERCIAL SUPPLIER 
 02-09-2020,Adults & Health,Look Ahead Housing and Care Ltd,Supported Other Accommodation - Private Contractors Payment,677.77,0,COMMERCIAL SUPPLIER 
 02-09-2020,Adults & Health,Look Ahead Housing and Care Ltd,Supported Other Accommodation - Private Contractors Payment,677.77,0,COMMERCIAL SUPPLIER 
 02-09-2020,Adults & Health,Look Ahead Housing and Care Ltd,Supported Other Accommodation - Private Contractors Payment,524.33,0,COMMERCIAL SUPPLIER 
 02-09-2020,Adults & Health,Look Ahead Housing and Care Ltd,Supported Other Accommodation - Private Contractors Payment,677.77,0,COMMERCIAL SUPPLIER 
 02-09-2020,Children and Young People,Shared Care Services Ltd,Residential Placements - Private Contractors Payment,597.85,0,COMMERCIAL SUPPLIER 
 02-09-2020,Children and Young People,Shared Care Services Ltd,Residential Placements - Private Contractors Payment,498.21,0,COMMERCIAL SUPPLIER 
 02-09-2020,Children and Young People,Shared Care Services Ltd,Residential Placements - Private Contractors Payment,398.58,0,COMMERCIAL SUPPLIER 
 02-09-2020,Children and Young People,Shared Care Services Ltd,Residential Placements - Private Contractors Payment,697.5,0,COMMERCIAL SUPPLIER 
 02-09-2020,Children and Young People,Inclusive Care Support Ltd,Client Support - Third Party,171.36,0,COMMERCIAL SUPPLIER 
 02-09-2020,Children and Young People,Inclusive Care Support Ltd,Client Support - Third Party,184.5,0,COMMERCIAL SUPPLIER 
 02-09-2020,Children and Young People,Inclusive Care Support Ltd,Client Support - Third Party,815,0,COMMERCIAL SUPPLIER 
 02-09-2020,Children and Young People,Inclusive Care Support Ltd,Client Support - Third Party,430.5,0,COMMERCIAL SUPPLIER 
 02-09-2020,Children and Young People,Inclusive Care Support Ltd,Client Support - Third Party,430.5,0,COMMERCIAL SUPPLIER 
 02-09-2020,Children and Young People,Inclusive Care Support Ltd,Client Support - Third Party,815,0,COMMERCIAL SUPPLIER 
 02-09-2020,Children and Young People,Inclusive Care Support Ltd,Client Support - Third Party,430.5,0,COMMERCIAL SUPPLIER 
 02-09-2020,Children and Young People,Inclusive Care Support Ltd,Client Support - Third Party,430.5,0,COMMERCIAL SUPPLIER 
 02-09-2020,Children and Young People,Inclusive Care Support Ltd,Client Support - Third Party,815,0,COMMERCIAL SUPPLIER 
 02-09-2020,Children and Young People,Inclusive Care Support Ltd,Client Support - Third Party,815,0,COMMERCIAL SUPPLIER 
 02-09-2020,Inclusive Economy & Housing,Sulets,Private Contractors Payment - Other,1810,0,INDIVIDUALS 
 02-09-2020,Children and Young People,Family First Fostering,Residential Placements - Private Contractors Payment,806.97,0,COMMERCIAL SUPPLIER 
 02-09-2020,Children and Young People,Family First Fostering,Residential Placements - Private Contractors Payment,806.97,0,COMMERCIAL SUPPLIER 
 02-09-2020,Children and Young People,Family First Fostering,Residential Placements - Private Contractors Payment,806.97,0,COMMERCIAL SUPPLIER 
 02-09-2020,Children and Young People,Family First Fostering,Residential Placements - Private Contractors Payment,806.97,0,COMMERCIAL SUPPLIER 
 02-09-2020,Children and Young People,Family First Fostering,Residential Placements - Private Contractors Payment,806.97,0,COMMERCIAL SUPPLIER 
 02-09-2020,Children and Young People,Family First Fostering,Residential Placements - Private Contractors Payment,806.97,0,COMMERCIAL SUPPLIER 
 02-09-2020,Children and Young People,Family First Fostering,Residential Placements - Private Contractors Payment,806.97,0,COMMERCIAL SUPPLIER 
 02-09-2020,Children and Young People,Family First Fostering,Residential Placements - Private Contractors Payment,806.97,0,COMMERCIAL SUPPLIER 
 02-09-2020,Children and Young People,Family First Fostering,Residential Placements - Private Contractors Payment,806.75,0,COMMERCIAL SUPPLIER 
 02-09-2020,Children and Young People,Family First Fostering,Residential Placements - Private Contractors Payment,806.75,0,COMMERCIAL SUPPLIER 
 02-09-2020,Children and Young People,Family First Fostering,Residential Placements - Private Contractors Payment,806.75,0,COMMERCIAL SUPPLIER 
 02-09-2020,Children and Young People,Family First Fostering,Residential Placements - Private Contractors Payment,807.63,0,COMMERCIAL SUPPLIER 
 02-09-2020,Children and Young People,Family First Fostering,Residential Placements - Private Contractors Payment,806.93,0,COMMERCIAL SUPPLIER 
 02-09-2020,Children and Young People,Family First Fostering,Residential Placements - Private Contractors Payment,806.93,0,COMMERCIAL SUPPLIER 
 02-09-2020,Children and Young People,Family First Fostering,Residential Placements - Private Contractors Payment,806.93,0,COMMERCIAL SUPPLIER 
 02-09-2020,Children and Young People,Family First Fostering,Residential Placements - Private Contractors Payment,806.93,0,COMMERCIAL SUPPLIER 
 02-09-2020,Children and Young People,Family First Fostering,Residential Placements - Private Contractors Payment,806.93,0,COMMERCIAL SUPPLIER 
 02-09-2020,Children and Young People,Family First Fostering,Residential Placements - Private Contractors Payment,806.93,0,COMMERCIAL SUPPLIER 
 02-09-2020,Children and Young People,Family First Fostering,Residential Placements - Private Contractors Payment,806.93,0,COMMERCIAL SUPPLIER 
 02-09-2020,Children and Young People,Family First Fostering,Residential Placements - Private Contractors Payment,806.93,0,COMMERCIAL SUPPLIER 
 02-09-2020,Children and Young People,Family First Fostering,Residential Placements - Private Contractors Payment,862.75,0,COMMERCIAL SUPPLIER 
 02-09-2020,Children and Young People,Family First Fostering,Residential Placements - Private Contractors Payment,862.75,0,COMMERCIAL SUPPLIER 
 02-09-2020,Children and Young People,Family First Fostering,Residential Placements - Private Contractors Payment,862.75,0,COMMERCIAL SUPPLIER 
 02-09-2020,Children and Young People,Family First Fostering,Residential Placements - Private Contractors Payment,862.75,0,COMMERCIAL SUPPLIER 
 02-09-2020,Children and Young People,Family First Fostering,Residential Placements - Private Contractors Payment,806.97,0,COMMERCIAL SUPPLIER 
 02-09-2020,Children and Young People,Family First Fostering,Residential Placements - Private Contractors Payment,806.97,0,COMMERCIAL SUPPLIER 
 02-09-2020,Children and Young People,Family First Fostering,Residential Placements - Private Contractors Payment,806.97,0,COMMERCIAL SUPPLIER 
 02-09-2020,Children and Young People,Family First Fostering,Residential Placements - Private Contractors Payment,806.97,0,COMMERCIAL SUPPLIER 
 02-09-2020,Children and Young People,Family First Fostering,Residential Placements - Private Contractors Payment,862.75,0,COMMERCIAL SUPPLIER 
 02-09-2020,Children and Young People,Family First Fostering,Residential Placements - Private Contractors Payment,862.75,0,COMMERCIAL SUPPLIER 
 02-09-2020,Children and Young People,Family First Fostering,Residential Placements - Private Contractors Payment,862.75,0,COMMERCIAL SUPPLIER 
 02-09-2020,Children and Young People,Family First Fostering,Residential Placements - Private Contractors Payment,862.75,0,COMMERCIAL SUPPLIER 
 02-09-2020,Children and Young People,Family First Fostering,Residential Placements - Private Contractors Payment,806.93,0,COMMERCIAL SUPPLIER 
 02-09-2020,Children and Young People,Family First Fostering,Residential Placements - Private Contractors Payment,806.93,0,COMMERCIAL SUPPLIER 
 02-09-2020,Children and Young People,Family First Fostering,Residential Placements - Private Contractors Payment,806.93,0,COMMERCIAL SUPPLIER 
 02-09-2020,Children and Young People,Family First Fostering,Residential Placements - Private Contractors Payment,806.93,0,COMMERCIAL SUPPLIER 
 02-09-2020,Children and Young People,Family First Fostering,Residential Placements - Private Contractors Payment,1300,0,COMMERCIAL SUPPLIER 
 02-09-2020,Children and Young People,Family First Fostering,Residential Placements - Private Contractors Payment,1300,0,COMMERCIAL SUPPLIER 
 02-09-2020,Children and Young People,Family First Fostering,Residential Placements - Private Contractors Payment,1300,0,COMMERCIAL SUPPLIER 
 02-09-2020,Children and Young People,Family First Fostering,Residential Placements - Private Contractors Payment,1300,0,COMMERCIAL SUPPLIER 
 02-09-2020,Adults & Health,Bettertogether Limited,Adult Placement Scheme - Private Contractors Payment,272,0,NON COMMERCIAL SUPPLIER 
 02-09-2020,RMS,Public Realm Services Ltd,Private Contractors Payment - Other,291.22,0,COMMERCIAL SUPPLIER 
 02-09-2020,Adults & Health,Bettertogether Limited,Adult Placement Scheme - Private Contractors Payment,514,0,NON COMMERCIAL SUPPLIER 
 02-09-2020,Adults & Health,Bettertogether Limited,Adult Placement Scheme - Private Contractors Payment,514,0,NON COMMERCIAL SUPPLIER 
 02-09-2020,Adults & Health,Bettertogether Limited,Adult Placement Scheme - Private Contractors Payment,514,0,NON COMMERCIAL SUPPLIER 
 02-09-2020,Adults & Health,Bettertogether Limited,Adult Placement Scheme - Private Contractors Payment,514,0,NON COMMERCIAL SUPPLIER 
 02-09-2020,Children and Young People,Select Fostercare Services Ltd,Residential Placements - Private Contractors Payment,1237.5,0,COMMERCIAL SUPPLIER 
 02-09-2020,Children and Young People,Select Fostercare Services Ltd,Residential Placements - Private Contractors Payment,707.14,0,COMMERCIAL SUPPLIER 
 02-09-2020,Children and Young People,Select Fostercare Services Ltd,Residential Placements - Private Contractors Payment,1237.4,0,COMMERCIAL SUPPLIER 
 02-09-2020,Children and Young People,Select Fostercare Services Ltd,Residential Placements - Private Contractors Payment,1237.5,0,COMMERCIAL SUPPLIER 
 02-09-2020,Children and Young People,Select Fostercare Services Ltd,Residential Placements - Private Contractors Payment,1237.5,0,COMMERCIAL SUPPLIER 
 02-09-2020,Children and Young People,Select Fostercare Services Ltd,Residential Placements - Private Contractors Payment,1237.5,0,COMMERCIAL SUPPLIER 
 02-09-2020,Children and Young People,Select Fostercare Services Ltd,Residential Placements - Private Contractors Payment,1590.9,0,COMMERCIAL SUPPLIER 
 02-09-2020,oneSource,Mr George Wills,Legal Fees,300,0,LEGAL SERVICES 
 02-09-2020,Children and Young People,Jemimah Hendrick,Legal Fees,843,0,COMMERCIAL SUPPLIER 
 02-09-2020,Children and Young People,Mr Sam Prout,Legal Fees,410,0,COMMERCIAL SUPPLIER 
 02-09-2020,Children and Young People,Inclusive Care Support Ltd,Weekly Allowances - Private Contractors Payment,57.9,0,COMMERCIAL SUPPLIER 
 02-09-2020,Children and Young People,Inclusive Care Support Ltd,Supported Other Accommodation - Private Contractors Payment,410,0,COMMERCIAL SUPPLIER 
 02-09-2020,Children and Young People,Inclusive Care Support Ltd,Weekly Allowances - Private Contractors Payment,57.9,0,COMMERCIAL SUPPLIER 
 02-09-2020,Children and Young People,Inclusive Care Support Ltd,Supported Other Accommodation - Private Contractors Payment,815,0,COMMERCIAL SUPPLIER 
 02-09-2020,Children and Young People,Inclusive Care Support Ltd,Weekly Allowances - Private Contractors Payment,57.9,0,COMMERCIAL SUPPLIER 
 02-09-2020,Children and Young People,Inclusive Care Support Ltd,Supported Other Accommodation - Private Contractors Payment,410,0,COMMERCIAL SUPPLIER 
 02-09-2020,Children and Young People,Inclusive Care Support Ltd,Supported Other Accommodation - Private Contractors Payment,410,0,COMMERCIAL SUPPLIER 
 02-09-2020,Children and Young People,Inclusive Care Support Ltd,Supported Other Accommodation - Private Contractors Payment,410,0,COMMERCIAL SUPPLIER 
 02-09-2020,Children and Young People,Inclusive Care Support Ltd,Supported Other Accommodation - Private Contractors Payment,815,0,COMMERCIAL SUPPLIER 
 02-09-2020,Children and Young People,Inclusive Care Support Ltd,Weekly Allowances - Private Contractors Payment,57.9,0,COMMERCIAL SUPPLIER 
 02-09-2020,Children and Young People,Inclusive Care Support Ltd,Supported Other Accommodation - Private Contractors Payment,815,0,COMMERCIAL SUPPLIER 
 02-09-2020,Children and Young People,Inclusive Care Support Ltd,Supported Other Accommodation - Private Contractors Payment,815,0,COMMERCIAL SUPPLIER 
 02-09-2020,Children and Young People,Inclusive Care Support Ltd,Client Support - Third Party,574,0,COMMERCIAL SUPPLIER 
 02-09-2020,Children and Young People,Inclusive Care Support Ltd,Supported Other Accommodation - Private Contractors Payment,815,0,COMMERCIAL SUPPLIER 
 02-09-2020,Children and Young People,Inclusive Care Support Ltd,Supported Other Accommodation - Private Contractors Payment,815,0,COMMERCIAL SUPPLIER 
 02-09-2020,Children and Young People,Inclusive Care Support Ltd,Client Support - Third Party,574,0,COMMERCIAL SUPPLIER 
 02-09-2020,Children and Young People,Inclusive Care Support Ltd,Client Support - Third Party,574,0,COMMERCIAL SUPPLIER 
 02-09-2020,Children and Young People,Inclusive Care Support Ltd,Supported Other Accommodation - Private Contractors Payment,815,0,COMMERCIAL SUPPLIER 
 02-09-2020,Children and Young People,Inclusive Care Support Ltd,Client Support - Third Party,574,0,COMMERCIAL SUPPLIER 
 02-09-2020,Children and Young People,Inclusive Care Support Ltd,Supported Other Accommodation - Private Contractors Payment,815,0,COMMERCIAL SUPPLIER 
 02-09-2020,Children and Young People,Inclusive Care Support Ltd,Supported Other Accommodation - Private Contractors Payment,751.75,0,COMMERCIAL SUPPLIER 
 02-09-2020,Children and Young People,Inclusive Care Support Ltd,Supported Other Accommodation - Private Contractors Payment,751.75,0,COMMERCIAL SUPPLIER 
 02-09-2020,Children and Young People,Inclusive Care Support Ltd,Supported Other Accommodation - Private Contractors Payment,751.75,0,COMMERCIAL SUPPLIER 
 02-09-2020,Children and Young People,Inclusive Care Support Ltd,Supported Other Accommodation - Private Contractors Payment,751.75,0,COMMERCIAL SUPPLIER 
 02-09-2020,Children and Young People,Inclusive Care Support Ltd,Client Support - Third Party,815,0,COMMERCIAL SUPPLIER 
 02-09-2020,Children and Young People,Inclusive Care Support Ltd,Client Support - Third Party,815,0,COMMERCIAL SUPPLIER 
 02-09-2020,Children and Young People,Inclusive Care Support Ltd,Client Support - Third Party,815,0,COMMERCIAL SUPPLIER 
 02-09-2020,Children and Young People,Inclusive Care Support Ltd,Client Support - Third Party,815,0,COMMERCIAL SUPPLIER 
 02-09-2020,Children and Young People,Inclusive Care Support Ltd,Supported Other Accommodation - Private Contractors Payment,205,0,COMMERCIAL SUPPLIER 
 02-09-2020,Children and Young People,Inclusive Care Support Ltd,Supported Other Accommodation - Private Contractors Payment,815,0,COMMERCIAL SUPPLIER 
 02-09-2020,Children and Young People,Inclusive Care Support Ltd,Supported Other Accommodation - Private Contractors Payment,205,0,COMMERCIAL SUPPLIER 
 02-09-2020,Children and Young People,Inclusive Care Support Ltd,Supported Other Accommodation - Private Contractors Payment,205,0,COMMERCIAL SUPPLIER 
 02-09-2020,Children and Young People,Inclusive Care Support Ltd,Supported Other Accommodation - Private Contractors Payment,205,0,COMMERCIAL SUPPLIER 
 02-09-2020,Children and Young People,Inclusive Care Support Ltd,Supported Other Accommodation - Private Contractors Payment,815,0,COMMERCIAL SUPPLIER 
 02-09-2020,Children and Young People,Inclusive Care Support Ltd,Supported Other Accommodation - Private Contractors Payment,815,0,COMMERCIAL SUPPLIER 
 02-09-2020,Children and Young People,Inclusive Care Support Ltd,Supported Other Accommodation - Private Contractors Payment,815,0,COMMERCIAL SUPPLIER 
 02-09-2020,Children and Young People,Inclusive Care Support Ltd,Client Support - Third Party,2418.5,0,COMMERCIAL SUPPLIER 
 02-09-2020,Children and Young People,Inclusive Care Support Ltd,Supported Other Accommodation - Private Contractors Payment,798.44,0,COMMERCIAL SUPPLIER 
 02-09-2020,Children and Young People,Inclusive Care Support Ltd,Client Support - Third Party,2418.5,0,COMMERCIAL SUPPLIER 
 02-09-2020,Children and Young People,Inclusive Care Support Ltd,Client Support - Third Party,2418.5,0,COMMERCIAL SUPPLIER 
 02-09-2020,Children and Young People,Inclusive Care Support Ltd,Supported Other Accommodation - Private Contractors Payment,798.44,0,COMMERCIAL SUPPLIER 
 02-09-2020,Children and Young People,Inclusive Care Support Ltd,Supported Other Accommodation - Private Contractors Payment,798.44,0,COMMERCIAL SUPPLIER 
 02-09-2020,Children and Young People,Inclusive Care Support Ltd,Client Support - Third Party,2418.5,0,COMMERCIAL SUPPLIER 
 02-09-2020,Children and Young People,Inclusive Care Support Ltd,Supported Other Accommodation - Private Contractors Payment,798.44,0,COMMERCIAL SUPPLIER 
 02-09-2020,Children and Young People,Inclusive Care Support Ltd,Supported Other Accommodation - Private Contractors Payment,751.75,0,COMMERCIAL SUPPLIER 
 02-09-2020,Children and Young People,Inclusive Care Support Ltd,Client Support - Third Party,122.5,0,COMMERCIAL SUPPLIER 
 02-09-2020,Children and Young People,Inclusive Care Support Ltd,Supported Other Accommodation - Private Contractors Payment,751.75,0,COMMERCIAL SUPPLIER 
 02-09-2020,Children and Young People,Inclusive Care Support Ltd,Client Support - Third Party,122.5,0,COMMERCIAL SUPPLIER 
 02-09-2020,Children and Young People,Inclusive Care Support Ltd,Supported Other Accommodation - Private Contractors Payment,751.75,0,COMMERCIAL SUPPLIER 
 02-09-2020,Children and Young People,Inclusive Care Support Ltd,Client Support - Third Party,122.5,0,COMMERCIAL SUPPLIER 
 02-09-2020,Children and Young People,Inclusive Care Support Ltd,Supported Other Accommodation - Private Contractors Payment,751.75,0,COMMERCIAL SUPPLIER 
 02-09-2020,Children and Young People,Inclusive Care Support Ltd,Client Support - Third Party,122.5,0,COMMERCIAL SUPPLIER 
 02-09-2020,Children and Young People,Oakhampton Properties Ltd,Section 17 - Private Contractors Payment,1891.24,0,COMMERCIAL SUPPLIER 
 02-09-2020,Children and Young People,Youth Reality Homes Ltd,Supported Other Accommodation - Private Contractors Payment,1200,0,NON COMMERCIAL SUPPLIER 
 02-09-2020,Children and Young People,Youth Reality Homes Ltd,Supported Other Accommodation - Private Contractors Payment,1200,0,NON COMMERCIAL SUPPLIER 
 02-09-2020,Children and Young People,Youth Reality Homes Ltd,Supported Other Accommodation - Private Contractors Payment,1200,0,NON COMMERCIAL SUPPLIER 
 02-09-2020,Children and Young People,Youth Reality Homes Ltd,Supported Other Accommodation - Private Contractors Payment,1200,0,NON COMMERCIAL SUPPLIER 
 02-09-2020,Balance Sheet,Neilcott Construction Ltd.,Capital Outlay,790480.24,0,CIS 
 02-09-2020,Children and Young People,adam HTT LTd T/A Adam,Additional Placements - Third Party,64.75,0,VENDOR 
 02-09-2020,Children and Young People,adam HTT LTd T/A Adam,Additional Placements - Third Party,64.75,0,VENDOR 
 02-09-2020,Children and Young People,adam HTT LTd T/A Adam,Additional Placements - Third Party,64.75,0,VENDOR 
 02-09-2020,Children and Young People,adam HTT LTd T/A Adam,Additional Placements - Third Party,126,0,VENDOR 
 02-09-2020,Children and Young People,adam HTT LTd T/A Adam,Additional Placements - Third Party,64.75,0,VENDOR 
 02-09-2020,Children and Young People,adam HTT LTd T/A Adam,Additional Placements - Third Party,56,0,VENDOR 
 02-09-2020,Children and Young People,adam HTT LTd T/A Adam,Additional Placements - Third Party,194.25,0,VENDOR 
 02-09-2020,Children and Young People,adam HTT LTd T/A Adam,Additional Placements - Third Party,81,0,VENDOR 
 02-09-2020,Children and Young People,adam HTT LTd T/A Adam,Additional Placements - Third Party,194.25,0,VENDOR 
 02-09-2020,Children and Young People,adam HTT LTd T/A Adam,Additional Placements - Third Party,390,0,VENDOR 
 02-09-2020,Children and Young People,adam HTT LTd T/A Adam,Additional Placements - Third Party,52,0,VENDOR 
 02-09-2020,Children and Young People,adam HTT LTd T/A Adam,Additional Placements - Third Party,117,0,VENDOR 
 02-09-2020,Children and Young People,adam HTT LTd T/A Adam,Additional Placements - Third Party,106.4,0,VENDOR 
 02-09-2020,Children and Young People,adam HTT LTd T/A Adam,Additional Placements - Third Party,339.15,0,VENDOR 
 02-09-2020,Children and Young People,adam HTT LTd T/A Adam,Additional Placements - Third Party,52,0,VENDOR 
 02-09-2020,Children and Young People,adam HTT LTd T/A Adam,Additional Placements - Third Party,65,0,VENDOR 
 02-09-2020,Children and Young People,adam HTT LTd T/A Adam,Additional Placements - Third Party,67.5,0,VENDOR 
 02-09-2020,Children and Young People,adam HTT LTd T/A Adam,Additional Placements - Third Party,56,0,VENDOR 
 02-09-2020,Children and Young People,adam HTT LTd T/A Adam,Additional Placements - Third Party,297,0,VENDOR 
 02-09-2020,Children and Young People,adam HTT LTd T/A Adam,Additional Placements - Third Party,50.2,0,VENDOR 
 02-09-2020,Children and Young People,adam HTT LTd T/A Adam,Additional Placements - Third Party,50.2,0,VENDOR 
 02-09-2020,Children and Young People,adam HTT LTd T/A Adam,Additional Placements - Third Party,55.96,0,VENDOR 
 02-09-2020,Children and Young People,adam HTT LTd T/A Adam,Additional Placements - Third Party,175.3,0,VENDOR 
 02-09-2020,Children and Young People,adam HTT LTd T/A Adam,Additional Placements - Third Party,132.45,0,VENDOR 
 02-09-2020,Children and Young People,adam HTT LTd T/A Adam,Additional Placements - Third Party,497.8,0,VENDOR 
 02-09-2020,Children and Young People,adam HTT LTd T/A Adam,Additional Placements - Third Party,563.4,0,VENDOR 
 02-09-2020,Children and Young People,adam HTT LTd T/A Adam,Additional Placements - Third Party,70.12,0,VENDOR 
 02-09-2020,Children and Young People,adam HTT LTd T/A Adam,Additional Placements - Third Party,52,0,VENDOR 
 02-09-2020,Children and Young People,adam HTT LTd T/A Adam,Additional Placements - Third Party,55.96,0,VENDOR 
 02-09-2020,Children and Young People,adam HTT LTd T/A Adam,Additional Placements - Third Party,259.01,0,VENDOR 
 02-09-2020,Children and Young People,adam HTT LTd T/A Adam,Additional Placements - Third Party,216,0,VENDOR 
 02-09-2020,Children and Young People,adam HTT LTd T/A Adam,Additional Placements - Third Party,232.78,0,VENDOR 
 02-09-2020,Children and Young People,adam HTT LTd T/A Adam,Additional Placements - Third Party,121.5,0,VENDOR 
 02-09-2020,Children and Young People,adam HTT LTd T/A Adam,Additional Placements - Third Party,351,0,VENDOR 
 02-09-2020,Children and Young People,adam HTT LTd T/A Adam,Additional Placements - Third Party,910,0,VENDOR 
 02-09-2020,Children and Young People,adam HTT LTd T/A Adam,Additional Placements - Third Party,135,0,VENDOR 
 02-09-2020,Children and Young People,adam HTT LTd T/A Adam,Additional Placements - Third Party,178.5,0,VENDOR 
 02-09-2020,Children and Young People,adam HTT LTd T/A Adam,Additional Placements - Third Party,148.5,0,VENDOR 
 02-09-2020,Children and Young People,adam HTT LTd T/A Adam,Additional Placements - Third Party,65,0,VENDOR 
 02-09-2020,Children and Young People,adam HTT LTd T/A Adam,Additional Placements - Third Party,420,0,VENDOR 
 02-09-2020,Children and Young People,adam HTT LTd T/A Adam,Additional Placements - Third Party,420,0,VENDOR 
 02-09-2020,Children and Young People,adam HTT LTd T/A Adam,Additional Placements - Third Party,420,0,VENDOR 
 02-09-2020,Children and Young People,adam HTT LTd T/A Adam,Additional Placements - Third Party,420,0,VENDOR 
 02-09-2020,Children and Young People,adam HTT LTd T/A Adam,Additional Placements - Third Party,420,0,VENDOR 
 02-09-2020,Children and Young People,adam HTT LTd T/A Adam,Additional Placements - Third Party,83.4,0,VENDOR 
 02-09-2020,Children and Young People,adam HTT LTd T/A Adam,Additional Placements - Third Party,60,0,VENDOR 
 02-09-2020,Children and Young People,adam HTT LTd T/A Adam,Additional Placements - Third Party,490,0,VENDOR 
 02-09-2020,Children and Young People,adam HTT LTd T/A Adam,Additional Placements - Third Party,82.5,0,VENDOR 
 02-09-2020,Children and Young People,adam HTT LTd T/A Adam,Additional Placements - Third Party,82.5,0,VENDOR 
 02-09-2020,Children and Young People,adam HTT LTd T/A Adam,Additional Placements - Third Party,68.26,0,VENDOR 
 02-09-2020,Children and Young People,adam HTT LTd T/A Adam,Additional Placements - Third Party,68.26,0,VENDOR 
 02-09-2020,Children and Young People,adam HTT LTd T/A Adam,Additional Placements - Third Party,68.26,0,VENDOR 
 02-09-2020,Children and Young People,adam HTT LTd T/A Adam,Additional Placements - Third Party,108,0,VENDOR 
 02-09-2020,Children and Young People,adam HTT LTd T/A Adam,Additional Placements - Third Party,220,0,VENDOR 
 02-09-2020,Children and Young People,adam HTT LTd T/A Adam,Additional Placements - Third Party,123,0,VENDOR 
 02-09-2020,Children and Young People,adam HTT LTd T/A Adam,Additional Placements - Third Party,65,0,VENDOR 
 02-09-2020,Children and Young People,adam HTT LTd T/A Adam,Additional Placements - Third Party,95.2,0,VENDOR 
 02-09-2020,Children and Young People,adam HTT LTd T/A Adam,Additional Placements - Third Party,81.6,0,VENDOR 
 02-09-2020,Children and Young People,adam HTT LTd T/A Adam,Additional Placements - Third Party,95.2,0,VENDOR 
 02-09-2020,Children and Young People,adam HTT LTd T/A Adam,Additional Placements - Third Party,150,0,VENDOR 
 02-09-2020,Children and Young People,adam HTT LTd T/A Adam,Additional Placements - Third Party,150,0,VENDOR 
 02-09-2020,Children and Young People,adam HTT LTd T/A Adam,Additional Placements - Third Party,150,0,VENDOR 
 02-09-2020,Children and Young People,adam HTT LTd T/A Adam,Additional Placements - Third Party,150,0,VENDOR 
 02-09-2020,Children and Young People,adam HTT LTd T/A Adam,Additional Placements - Third Party,150,0,VENDOR 
 02-09-2020,Children and Young People,adam HTT LTd T/A Adam,Additional Placements - Third Party,100,0,VENDOR 
 02-09-2020,Children and Young People,adam HTT LTd T/A Adam,Additional Placements - Third Party,51.8,0,VENDOR 
 02-09-2020,Children and Young People,adam HTT LTd T/A Adam,Additional Placements - Third Party,51.8,0,VENDOR 
 02-09-2020,Children and Young People,adam HTT LTd T/A Adam,Additional Placements - Third Party,400,0,VENDOR 
 02-09-2020,Children and Young People,adam HTT LTd T/A Adam,Additional Placements - Third Party,400,0,VENDOR 
 02-09-2020,Children and Young People,adam HTT LTd T/A Adam,Additional Placements - Third Party,229.5,0,VENDOR 
 02-09-2020,Children and Young People,adam HTT LTd T/A Adam,Additional Placements - Third Party,229.5,0,VENDOR 
 02-09-2020,Children and Young People,adam HTT LTd T/A Adam,Additional Placements - Third Party,229.5,0,VENDOR 
 02-09-2020,Children and Young People,adam HTT LTd T/A Adam,Additional Placements - Third Party,142.45,0,VENDOR 
 02-09-2020,Children and Young People,adam HTT LTd T/A Adam,Additional Placements - Third Party,122,0,VENDOR 
 02-09-2020,Children and Young People,adam HTT LTd T/A Adam,Additional Placements - Third Party,122,0,VENDOR 
 02-09-2020,Children and Young People,adam HTT LTd T/A Adam,Additional Placements - Third Party,209.25,0,VENDOR 
 02-09-2020,Children and Young People,adam HTT LTd T/A Adam,Additional Placements - Third Party,209.25,0,VENDOR 
 02-09-2020,Children and Young People,adam HTT LTd T/A Adam,Additional Placements - Third Party,209.25,0,VENDOR 
 02-09-2020,Children and Young People,adam HTT LTd T/A Adam,Additional Placements - Third Party,155.4,0,VENDOR 
 02-09-2020,Children and Young People,adam HTT LTd T/A Adam,Additional Placements - Third Party,155.4,0,VENDOR 
 02-09-2020,Children and Young People,adam HTT LTd T/A Adam,Additional Placements - Third Party,155.4,0,VENDOR 
 02-09-2020,Children and Young People,adam HTT LTd T/A Adam,Additional Placements - Third Party,187.5,0,VENDOR 
 02-09-2020,Children and Young People,adam HTT LTd T/A Adam,Additional Placements - Third Party,52.8,0,VENDOR 
 02-09-2020,Children and Young People,adam HTT LTd T/A Adam,Additional Placements - Third Party,650,0,VENDOR 
 02-09-2020,Children and Young People,adam HTT LTd T/A Adam,Additional Placements - Third Party,298.35,0,VENDOR 
 02-09-2020,Children and Young People,adam HTT LTd T/A Adam,Additional Placements - Third Party,162,0,VENDOR 
 02-09-2020,Children and Young People,adam HTT LTd T/A Adam,Additional Placements - Third Party,650,0,VENDOR 
 02-09-2020,Children and Young People,adam HTT LTd T/A Adam,Additional Placements - Third Party,265.66,0,VENDOR 
 02-09-2020,Children and Young People,adam HTT LTd T/A Adam,Additional Placements - Third Party,64.75,0,VENDOR 
 02-09-2020,RMS,Bates Office Services Ltd,"Purchase - Equipment, Furniture And Materials",4893,0,COMMERCIAL SUPPLIER 
 02-09-2020,RMS,Bates Office Services Ltd,"Purchase - Equipment, Furniture And Materials",4893,0,COMMERCIAL SUPPLIER 
 02-09-2020,Children and Young People,Inclusive Care Support Ltd,Weekly Allowances - Private Contractors Payment,57.9,0,COMMERCIAL SUPPLIER 
 02-09-2020,Children and Young People,Inclusive Care Support Ltd,Supported Other Accommodation - Private Contractors Payment,4116,0,COMMERCIAL SUPPLIER 
 02-09-2020,Children and Young People,Inclusive Care Support Ltd,Supported Other Accommodation - Private Contractors Payment,815,0,COMMERCIAL SUPPLIER 
 02-09-2020,Children and Young People,Inclusive Care Support Ltd,Weekly Allowances - Private Contractors Payment,57.9,0,COMMERCIAL SUPPLIER 
 02-09-2020,Children and Young People,Inclusive Care Support Ltd,Supported Other Accommodation - Private Contractors Payment,815,0,COMMERCIAL SUPPLIER 
 02-09-2020,Children and Young People,Inclusive Care Support Ltd,Weekly Allowances - Private Contractors Payment,57.9,0,COMMERCIAL SUPPLIER 
 02-09-2020,Children and Young People,Inclusive Care Support Ltd,Weekly Allowances - Private Contractors Payment,57.9,0,COMMERCIAL SUPPLIER 
 02-09-2020,Children and Young People,Inclusive Care Support Ltd,Supported Other Accommodation - Private Contractors Payment,4116,0,COMMERCIAL SUPPLIER 
 02-09-2020,Children and Young People,Inclusive Care Support Ltd,Supported Other Accommodation - Private Contractors Payment,815,0,COMMERCIAL SUPPLIER 
 02-09-2020,Children and Young People,Inclusive Care Support Ltd,Supported Other Accommodation - Private Contractors Payment,4116,0,COMMERCIAL SUPPLIER 
 02-09-2020,Children and Young People,Inclusive Care Support Ltd,Supported Other Accommodation - Private Contractors Payment,815,0,COMMERCIAL SUPPLIER 
 02-09-2020,Children and Young People,Inclusive Care Support Ltd,Supported Other Accommodation - Private Contractors Payment,4116,0,COMMERCIAL SUPPLIER 
 03-09-2020,Inclusive Economy & Housing,Personal Information - Redacted,Compensation,1050,0,INDIVIDUALS 
 03-09-2020,Inclusive Economy & Housing,Personal Information - Redacted,Private Contractors Payment - Other,3000,0,INDIVIDUALS 
 03-09-2020,Inclusive Economy & Housing,Personal Information - Redacted,Private Contractors Payment - Other,3000,0,INDIVIDUALS 
 03-09-2020,Inclusive Economy & Housing,Personal Information - Redacted,Private Contractors Payment - Other,600,0,INDIVIDUALS 
 03-09-2020,Inclusive Economy & Housing,Personal Information - Redacted,Private Contractors Payment - Other,800,0,INDIVIDUALS 
 03-09-2020,Balance Sheet,City View Hotel Ltd,Suspense Account,21375,0,COMMERCIAL SUPPLIER 
 03-09-2020,Adults & Health,Stannah Lift Services Ltd,Private Contractors Payment - Other,951.06,0,NON COMMERCIAL SUPPLIER 
 03-09-2020,Adults & Health,Stannah Lift Services Ltd,Private Contractors Payment - Other,2703,0,NON COMMERCIAL SUPPLIER 
 03-09-2020,Environment and Sustainable Transport,Greener Solutions,Highway Services,64.15,0,VENDOR 
 03-09-2020,Environment and Sustainable Transport,Greener Solutions,Highway Services,105.5,0,VENDOR 
 03-09-2020,Environment and Sustainable Transport,Greener Solutions,Highway Services,105.5,0,VENDOR 
 03-09-2020,Environment and Sustainable Transport,Greener Solutions,Highway Services,105.5,0,VENDOR 
 03-09-2020,Environment and Sustainable Transport,Greener Solutions,Highway Services,219.6,0,VENDOR 
 03-09-2020,Environment and Sustainable Transport,Greener Solutions,Highway Services,98,0,VENDOR 
 03-09-2020,Environment and Sustainable Transport,Greener Solutions,Highway Services,0.4,0,VENDOR 
 03-09-2020,Environment and Sustainable Transport,Greener Solutions,Highway Services,107.4,0,VENDOR 
 03-09-2020,RMS,Lightning Electrical Service Ltd,Private Contractors Payment - Other,2144.64,0,COMMERCIAL SUPPLIER 
 03-09-2020,RMS,Lightning Electrical Service Ltd,Private Contractors Payment - Other,3890.89,0,COMMERCIAL SUPPLIER 
 03-09-2020,Adults & Health,Br3Ak Free,Payments To Voluntary Sector,40,0,VENDOR 
 03-09-2020,Adults & Health,Br3Ak Free,Payments To Voluntary Sector,40,0,VENDOR 
 03-09-2020,Adults & Health,Br3Ak Free,Payments To Voluntary Sector,40,0,VENDOR 
 03-09-2020,Adults & Health,Br3Ak Free,Daycare - Private Contractors Payment,310.12,0,VENDOR 
 03-09-2020,Adults & Health,Br3Ak Free,Daycare - Private Contractors Payment,310.12,0,VENDOR 
 03-09-2020,Adults & Health,Br3Ak Free,Daycare - Private Contractors Payment,310.12,0,VENDOR 
 03-09-2020,Adults & Health,Br3Ak Free,Daycare - Private Contractors Payment,310.12,0,VENDOR 
 03-09-2020,Adults & Health,Br3Ak Free,Payments To Voluntary Sector,39.92,0,VENDOR 
 03-09-2020,Adults & Health,Br3Ak Free,Daycare - Private Contractors Payment,350.12,0,VENDOR 
 03-09-2020,Adults & Health,Br3Ak Free,Daycare - Private Contractors Payment,350.12,0,VENDOR 
 03-09-2020,Adults & Health,Br3Ak Free,Daycare - Private Contractors Payment,350.12,0,VENDOR 
 03-09-2020,Adults & Health,Br3Ak Free,Daycare - Private Contractors Payment,350.04,0,VENDOR 
 03-09-2020,Adults & Health,Br3Ak Free,Daycare - Private Contractors Payment,350,0,VENDOR 
 03-09-2020,Adults & Health,Br3Ak Free,Daycare - Private Contractors Payment,350,0,VENDOR 
 03-09-2020,Adults & Health,Br3Ak Free,Daycare - Private Contractors Payment,350,0,VENDOR 
 03-09-2020,Adults & Health,Br3Ak Free,Daycare - Private Contractors Payment,350.4,0,VENDOR 
 03-09-2020,RMS,Glass System Ltd,"Purchase - Equipment, Furniture And Materials",533.97,0,COMMERCIAL SUPPLIER 
 03-09-2020,RMS,Glass System Ltd,"Purchase - Equipment, Furniture And Materials",313.71,0,COMMERCIAL SUPPLIER 
 03-09-2020,RMS,Glass System Ltd,"Purchase - Equipment, Furniture And Materials",356.13,0,COMMERCIAL SUPPLIER 
 03-09-2020,RMS,Glass System Ltd,"Purchase - Equipment, Furniture And Materials",468.84,0,COMMERCIAL SUPPLIER 
 03-09-2020,RMS,Glass System Ltd,"Purchase - Equipment, Furniture And Materials",315.12,0,COMMERCIAL SUPPLIER 
 03-09-2020,RMS,Benchmarx Kitchens and Joinery,Private Contractors Payment - Other,621.32,0,COMMERCIAL SUPPLIER 
 03-09-2020,RMS,Benchmarx Kitchens and Joinery,Private Contractors Payment - Other,523.81,0,COMMERCIAL SUPPLIER 
 03-09-2020,RMS,Benchmarx Kitchens and Joinery,Private Contractors Payment - Other,523.81,0,COMMERCIAL SUPPLIER 
 03-09-2020,RMS,Benchmarx Kitchens and Joinery,"Purchase - Equipment, Furniture And Materials",517.52,0,COMMERCIAL SUPPLIER 
 03-09-2020,Housing Revenue Account,Tunstall Healthcare Uk Ltd,"Purchase - Equipment, Furniture And Materials",3750,0,VENDOR 
 03-09-2020,Balance Sheet,Paul Happe Contracts,Capital Outlay,89650.74,0,CIS 
 03-09-2020,Balance Sheet,Paul Happe Contracts,Capital Outlay,69773.89,0,CIS 
 03-09-2020,Children and Young People,Hope Superjobs Ltd,Additional Placements - Third Party,300,0,COMMERCIAL SUPPLIER 
 03-09-2020,Children and Young People,Hope Superjobs Ltd,Additional Placements - Third Party,75,0,COMMERCIAL SUPPLIER 
 03-09-2020,RMS,Southern Drain Services Ltd,Private Contractors Payment - Other,220,0,COMMERCIAL SUPPLIER 
 03-09-2020,RMS,Southern Drain Services Ltd,Private Contractors Payment - Other,220,0,COMMERCIAL SUPPLIER 
 03-09-2020,Adults & Health,Chenai Holistic Homecare Agency Ltd,Private Contractors Payment - Other,651,0,VENDOR 
 03-09-2020,Adults & Health,Chenai Holistic Homecare Agency Ltd,Private Contractors Payment - Other,666,0,VENDOR 
 03-09-2020,Adults & Health,Chenai Holistic Homecare Agency Ltd,Private Contractors Payment - Other,293.32,0,VENDOR 
 03-09-2020,Adults & Health,Chenai Holistic Homecare Agency Ltd,Private Contractors Payment - Other,12.46,0,VENDOR 
 03-09-2020,Adults & Health,Chenai Holistic Homecare Agency Ltd,Private Contractors Payment - Other,18.6,0,VENDOR 
 03-09-2020,Adults & Health,Chenai Holistic Homecare Agency Ltd,Private Contractors Payment - Other,307.95,0,VENDOR 
 03-09-2020,Adults & Health,Chenai Holistic Homecare Agency Ltd,Private Contractors Payment - Other,55.8,0,VENDOR 
 03-09-2020,Adults & Health,Chenai Holistic Homecare Agency Ltd,Private Contractors Payment - Other,651,0,VENDOR 
 03-09-2020,Adults & Health,Chenai Holistic Homecare Agency Ltd,Daycare - Private Contractors Payment,37.2,0,VENDOR 
 03-09-2020,Adults & Health,Chenai Holistic Homecare Agency Ltd,Home Care - Private Contractors Payment,37.2,0,VENDOR 
 03-09-2020,Adults & Health,Chenai Holistic Homecare Agency Ltd,Home Care - Private Contractors Payment,37.2,0,VENDOR 
 03-09-2020,Adults & Health,Chenai Holistic Homecare Agency Ltd,Home Care - Private Contractors Payment,37.2,0,VENDOR 
 03-09-2020,Adults & Health,Chenai Holistic Homecare Agency Ltd,Home Care - Private Contractors Payment,260.4,0,VENDOR 
 03-09-2020,Adults & Health,Chenai Holistic Homecare Agency Ltd,Home Care - Private Contractors Payment,37.2,0,VENDOR 
 03-09-2020,Adults & Health,Chenai Holistic Homecare Agency Ltd,Home Care - Private Contractors Payment,260.4,0,VENDOR 
 03-09-2020,Adults & Health,Chenai Holistic Homecare Agency Ltd,Home Care - Private Contractors Payment,97.65,0,VENDOR 
 03-09-2020,Adults & Health,Chenai Holistic Homecare Agency Ltd,Home Care - Private Contractors Payment,46.5,0,VENDOR 
 03-09-2020,Adults & Health,Chenai Holistic Homecare Agency Ltd,Respite Care - Private Contractors Payment,120.9,0,VENDOR 
 03-09-2020,Adults & Health,Chenai Holistic Homecare Agency Ltd,Home Care - Private Contractors Payment,455.7,0,VENDOR 
 03-09-2020,Adults & Health,Chenai Holistic Homecare Agency Ltd,Daycare - Private Contractors Payment,55.8,0,VENDOR 
 03-09-2020,Adults & Health,Chenai Holistic Homecare Agency Ltd,Home Care - Private Contractors Payment,18.6,0,VENDOR 
 03-09-2020,Adults & Health,Chenai Holistic Homecare Agency Ltd,Home Care - Private Contractors Payment,37.2,0,VENDOR 
 03-09-2020,Adults & Health,Chenai Holistic Homecare Agency Ltd,Daycare - Private Contractors Payment,37.2,0,VENDOR 
 03-09-2020,Adults & Health,Chenai Holistic Homecare Agency Ltd,Home Care - Private Contractors Payment,37.2,0,VENDOR 
 03-09-2020,Adults & Health,Chenai Holistic Homecare Agency Ltd,Home Care - Private Contractors Payment,9.3,0,VENDOR 
 03-09-2020,Adults & Health,Chenai Holistic Homecare Agency Ltd,Home Care - Private Contractors Payment,37.2,0,VENDOR 
 03-09-2020,Adults & Health,Chenai Holistic Homecare Agency Ltd,Home Care - Private Contractors Payment,37.2,0,VENDOR 
 03-09-2020,Adults & Health,Chenai Holistic Homecare Agency Ltd,Home Care - Private Contractors Payment,46.5,0,VENDOR 
 03-09-2020,Adults & Health,Chenai Holistic Homecare Agency Ltd,Home Care - Private Contractors Payment,130.2,0,VENDOR 
 03-09-2020,Adults & Health,Chenai Holistic Homecare Agency Ltd,Respite Care - Private Contractors Payment,120.9,0,VENDOR 
 03-09-2020,Adults & Health,Chenai Holistic Homecare Agency Ltd,Home Care - Private Contractors Payment,18.6,0,VENDOR 
 03-09-2020,Adults & Health,Chenai Holistic Homecare Agency Ltd,Home Care - Private Contractors Payment,455.7,0,VENDOR 
 03-09-2020,Adults & Health,Chenai Holistic Homecare Agency Ltd,Daycare - Private Contractors Payment,18.6,0,VENDOR 
 03-09-2020,Adults & Health,Chenai Holistic Homecare Agency Ltd,Daycare - Private Contractors Payment,55.8,0,VENDOR 
 03-09-2020,Adults & Health,Chenai Holistic Homecare Agency Ltd,Home Care - Private Contractors Payment,37.2,0,VENDOR 
 03-09-2020,Adults & Health,Chenai Holistic Homecare Agency Ltd,Home Care - Private Contractors Payment,97.65,0,VENDOR 
 03-09-2020,Adults & Health,Chenai Holistic Homecare Agency Ltd,Home Care - Private Contractors Payment,260.4,0,VENDOR 
 03-09-2020,Adults & Health,Chenai Holistic Homecare Agency Ltd,Daycare - Private Contractors Payment,102.3,0,VENDOR 
 03-09-2020,Adults & Health,Chenai Holistic Homecare Agency Ltd,Home Care - Private Contractors Payment,18.6,0,VENDOR 
 03-09-2020,Adults & Health,Chenai Holistic Homecare Agency Ltd,Daycare - Private Contractors Payment,18.6,0,VENDOR 
 03-09-2020,Adults & Health,Chenai Holistic Homecare Agency Ltd,Home Care - Private Contractors Payment,455.7,0,VENDOR 
 03-09-2020,Adults & Health,Chenai Holistic Homecare Agency Ltd,Daycare - Private Contractors Payment,55.8,0,VENDOR 
 03-09-2020,Adults & Health,Chenai Holistic Homecare Agency Ltd,Home Care - Private Contractors Payment,37.2,0,VENDOR 
 03-09-2020,Adults & Health,Chenai Holistic Homecare Agency Ltd,Home Care - Private Contractors Payment,145.2,0,VENDOR 
 03-09-2020,Adults & Health,Chenai Holistic Homecare Agency Ltd,Home Care - Private Contractors Payment,275.4,0,VENDOR 
 03-09-2020,Adults & Health,Chenai Holistic Homecare Agency Ltd,Home Care - Private Contractors Payment,34.78,0,VENDOR 
 03-09-2020,Adults & Health,Chenai Holistic Homecare Agency Ltd,Daycare - Private Contractors Payment,102.3,0,VENDOR 
 03-09-2020,Adults & Health,Chenai Holistic Homecare Agency Ltd,Home Care - Private Contractors Payment,112.65,0,VENDOR 
 03-09-2020,Adults & Health,Chenai Holistic Homecare Agency Ltd,Home Care - Private Contractors Payment,275.4,0,VENDOR 
 03-09-2020,Adults & Health,Chenai Holistic Homecare Agency Ltd,Daycare - Private Contractors Payment,37.2,0,VENDOR 
 03-09-2020,Adults & Health,Chenai Holistic Homecare Agency Ltd,Home Care - Private Contractors Payment,24.3,0,VENDOR 
 03-09-2020,Adults & Health,Chenai Holistic Homecare Agency Ltd,Home Care - Private Contractors Payment,37.2,0,VENDOR 
 03-09-2020,Adults & Health,Chenai Holistic Homecare Agency Ltd,Home Care - Private Contractors Payment,260.4,0,VENDOR 
 03-09-2020,Adults & Health,Chenai Holistic Homecare Agency Ltd,Home Care - Private Contractors Payment,46.5,0,VENDOR 
 03-09-2020,Adults & Health,Chenai Holistic Homecare Agency Ltd,Home Care - Private Contractors Payment,145.2,0,VENDOR 
 03-09-2020,Adults & Health,Chenai Holistic Homecare Agency Ltd,Respite Care - Private Contractors Payment,135.9,0,VENDOR 
 03-09-2020,Adults & Health,Chenai Holistic Homecare Agency Ltd,Home Care - Private Contractors Payment,27.9,0,VENDOR 
 03-09-2020,Adults & Health,Chenai Holistic Homecare Agency Ltd,Home Care - Private Contractors Payment,260.4,0,VENDOR 
 03-09-2020,Adults & Health,Chenai Holistic Homecare Agency Ltd,Home Care - Private Contractors Payment,455.7,0,VENDOR 
 03-09-2020,Adults & Health,Chenai Holistic Homecare Agency Ltd,Daycare - Private Contractors Payment,55.8,0,VENDOR 
 03-09-2020,Adults & Health,Chenai Holistic Homecare Agency Ltd,Home Care - Private Contractors Payment,13.95,0,VENDOR 
 03-09-2020,Adults & Health,Chenai Holistic Homecare Agency Ltd,Home Care - Private Contractors Payment,46.5,0,VENDOR 
 03-09-2020,Adults & Health,Chenai Holistic Homecare Agency Ltd,Home Care - Private Contractors Payment,37.2,0,VENDOR 
 03-09-2020,Adults & Health,Chenai Holistic Homecare Agency Ltd,Home Care - Private Contractors Payment,260.4,0,VENDOR 
 03-09-2020,Adults & Health,Chenai Holistic Homecare Agency Ltd,Home Care - Private Contractors Payment,37.2,0,VENDOR 
 03-09-2020,Adults & Health,Chenai Holistic Homecare Agency Ltd,Respite Care - Private Contractors Payment,120.9,0,VENDOR 
 03-09-2020,Adults & Health,Chenai Holistic Homecare Agency Ltd,Private Contractors Payment - Other,651,0,VENDOR 
 03-09-2020,Adults & Health,Chenai Holistic Homecare Agency Ltd,Private Contractors Payment - Other,83.7,0,VENDOR 
 03-09-2020,Adults & Health,Chenai Holistic Homecare Agency Ltd,Private Contractors Payment - Other,18.6,0,VENDOR 
 03-09-2020,Adults & Health,Chenai Holistic Homecare Agency Ltd,Private Contractors Payment - Other,18.6,0,VENDOR 
 03-09-2020,Adults & Health,Chenai Holistic Homecare Agency Ltd,Private Contractors Payment - Other,41.85,0,VENDOR 
 03-09-2020,Adults & Health,Chenai Holistic Homecare Agency Ltd,Private Contractors Payment - Other,83.7,0,VENDOR 
 03-09-2020,Adults & Health,Chenai Holistic Homecare Agency Ltd,Private Contractors Payment - Other,18.6,0,VENDOR 
 03-09-2020,Adults & Health,Chenai Holistic Homecare Agency Ltd,Private Contractors Payment - Other,83.7,0,VENDOR 
 03-09-2020,CYP Commissioner � Brighter Futures ,Caramel Rock,Arts And Leisure Costs,5348,0,COMMERCIAL SUPPLIER 
 03-09-2020,RMS,British Standards Institution,"Purchase - Equipment, Furniture And Materials",683,0,COMMERCIAL SUPPLIER 
 03-09-2020,Children and Young People,Dormwell Ltd T/A Street Support,Supported Other Accommodation - Private Contractors Payment,350,0,FOSTER CARERS 
 03-09-2020,Children and Young People,Dormwell Ltd T/A Street Support,Supported Other Accommodation - Private Contractors Payment,350,0,FOSTER CARERS 
 03-09-2020,Children and Young People,Dormwell Ltd T/A Street Support,Supported Other Accommodation - Private Contractors Payment,350,0,FOSTER CARERS 
 03-09-2020,Children and Young People,Dormwell Ltd T/A Street Support,Supported Other Accommodation - Private Contractors Payment,350,0,FOSTER CARERS 
 03-09-2020,Children and Young People,Dormwell Ltd T/A Street Support,Supported Other Accommodation - Private Contractors Payment,350,0,FOSTER CARERS 
 03-09-2020,Children and Young People,Dormwell Ltd T/A Street Support,Supported Other Accommodation - Private Contractors Payment,25,0,FOSTER CARERS 
 03-09-2020,Children and Young People,Dormwell Ltd T/A Street Support,Supported Other Accommodation - Private Contractors Payment,25,0,FOSTER CARERS 
 03-09-2020,Children and Young People,Dormwell Ltd T/A Street Support,Supported Other Accommodation - Private Contractors Payment,25,0,FOSTER CARERS 
 03-09-2020,Children and Young People,Dormwell Ltd T/A Street Support,Supported Other Accommodation - Private Contractors Payment,350,0,FOSTER CARERS 
 03-09-2020,Children and Young People,Dormwell Ltd T/A Street Support,Supported Other Accommodation - Private Contractors Payment,350,0,FOSTER CARERS 
 03-09-2020,Children and Young People,Dormwell Ltd T/A Street Support,Supported Other Accommodation - Private Contractors Payment,350,0,FOSTER CARERS 
 03-09-2020,Children and Young People,Dormwell Ltd T/A Street Support,Supported Other Accommodation - Private Contractors Payment,25,0,FOSTER CARERS 
 03-09-2020,Children and Young People,Dormwell Ltd T/A Street Support,Client Support - Third Party,-25,0,FOSTER CARERS 
 03-09-2020,Children and Young People,Dormwell Ltd T/A Street Support,Client Support - Third Party,75,0,FOSTER CARERS 
 03-09-2020,Children and Young People,Dormwell Ltd T/A Street Support,Client Support - Third Party,75,0,FOSTER CARERS 
 03-09-2020,Children and Young People,Dormwell Ltd T/A Street Support,Client Support - Third Party,75,0,FOSTER CARERS 
 03-09-2020,Children and Young People,Dormwell Ltd T/A Street Support,Supported Other Accommodation - Private Contractors Payment,350,0,FOSTER CARERS 
 03-09-2020,Children and Young People,Dormwell Ltd T/A Street Support,Supported Other Accommodation - Private Contractors Payment,350,0,FOSTER CARERS 
 03-09-2020,Children and Young People,Dormwell Ltd T/A Street Support,Supported Other Accommodation - Private Contractors Payment,350,0,FOSTER CARERS 
 03-09-2020,Children and Young People,Dormwell Ltd T/A Street Support,Supported Other Accommodation - Private Contractors Payment,350,0,FOSTER CARERS 
 03-09-2020,Children and Young People,Dormwell Ltd T/A Street Support,Client Support - Third Party,350,0,FOSTER CARERS 
 03-09-2020,Children and Young People,Dormwell Ltd T/A Street Support,Client Support - Third Party,350,0,FOSTER CARERS 
 03-09-2020,Children and Young People,Dormwell Ltd T/A Street Support,Client Support - Third Party,350,0,FOSTER CARERS 
 03-09-2020,Children and Young People,Dormwell Ltd T/A Street Support,Client Support - Third Party,350,0,FOSTER CARERS 
 03-09-2020,Children and Young People,Dormwell Ltd T/A Street Support,Supported Other Accommodation - Private Contractors Payment,350,0,FOSTER CARERS 
 03-09-2020,Children and Young People,Dormwell Ltd T/A Street Support,Supported Other Accommodation - Private Contractors Payment,350,0,FOSTER CARERS 
 03-09-2020,Children and Young People,Dormwell Ltd T/A Street Support,Supported Other Accommodation - Private Contractors Payment,250,0,FOSTER CARERS 
 03-09-2020,Children and Young People,Dormwell Ltd T/A Street Support,Supported Other Accommodation - Private Contractors Payment,350,0,FOSTER CARERS 
 03-09-2020,Children and Young People,Dormwell Ltd T/A Street Support,Supported Other Accommodation - Private Contractors Payment,425,0,FOSTER CARERS 
 03-09-2020,Children and Young People,Dormwell Ltd T/A Street Support,Supported Other Accommodation - Private Contractors Payment,425,0,FOSTER CARERS 
 03-09-2020,Children and Young People,Dormwell Ltd T/A Street Support,Supported Other Accommodation - Private Contractors Payment,425,0,FOSTER CARERS 
 03-09-2020,Children and Young People,Dormwell Ltd T/A Street Support,Supported Other Accommodation - Private Contractors Payment,425,0,FOSTER CARERS 
 03-09-2020,Children and Young People,Dormwell Ltd T/A Street Support,Client Support - Third Party,525,0,FOSTER CARERS 
 03-09-2020,Children and Young People,Dormwell Ltd T/A Street Support,Client Support - Third Party,403.57,0,FOSTER CARERS 
 03-09-2020,Children and Young People,Dormwell Ltd T/A Street Support,Supported Other Accommodation - Private Contractors Payment,350,0,FOSTER CARERS 
 03-09-2020,Children and Young People,Dormwell Ltd T/A Street Support,Supported Other Accommodation - Private Contractors Payment,350,0,FOSTER CARERS 
 03-09-2020,Children and Young People,Dormwell Ltd T/A Street Support,Supported Other Accommodation - Private Contractors Payment,350,0,FOSTER CARERS 
 03-09-2020,Children and Young People,Dormwell Ltd T/A Street Support,Supported Other Accommodation - Private Contractors Payment,350,0,FOSTER CARERS 
 03-09-2020,Children and Young People,Dormwell Ltd T/A Street Support,Supported Other Accommodation - Private Contractors Payment,850,0,FOSTER CARERS 
 03-09-2020,Children and Young People,Dormwell Ltd T/A Street Support,Supported Other Accommodation - Private Contractors Payment,850,0,FOSTER CARERS 
 03-09-2020,Children and Young People,Dormwell Ltd T/A Street Support,Supported Other Accommodation - Private Contractors Payment,850,0,FOSTER CARERS 
 03-09-2020,Children and Young People,Dormwell Ltd T/A Street Support,Supported Other Accommodation - Private Contractors Payment,850,0,FOSTER CARERS 
 03-09-2020,Children and Young People,Dormwell Ltd T/A Street Support,Supported Other Accommodation - Private Contractors Payment,350,0,FOSTER CARERS 
 03-09-2020,Children and Young People,Dormwell Ltd T/A Street Support,Supported Other Accommodation - Private Contractors Payment,350,0,FOSTER CARERS 
 03-09-2020,Children and Young People,Dormwell Ltd T/A Street Support,Supported Other Accommodation - Private Contractors Payment,350,0,FOSTER CARERS 
 03-09-2020,Children and Young People,Dormwell Ltd T/A Street Support,Supported Other Accommodation - Private Contractors Payment,350,0,FOSTER CARERS 
 03-09-2020,Children and Young People,Dormwell Ltd T/A Street Support,Client Support - Third Party,125,0,FOSTER CARERS 
 03-09-2020,Children and Young People,Dormwell Ltd T/A Street Support,Client Support - Third Party,450,0,FOSTER CARERS 
 03-09-2020,Children and Young People,Dormwell Ltd T/A Street Support,Client Support - Third Party,425,0,FOSTER CARERS 
 03-09-2020,Children and Young People,Dormwell Ltd T/A Street Support,Client Support - Third Party,425,0,FOSTER CARERS 
 03-09-2020,Children and Young People,Dormwell Ltd T/A Street Support,Client Support - Third Party,425,0,FOSTER CARERS 
 03-09-2020,Children and Young People,Dormwell Ltd T/A Street Support,Client Support - Third Party,425,0,FOSTER CARERS 
 03-09-2020,Children and Young People,Dormwell Ltd T/A Street Support,Supported Other Accommodation - Private Contractors Payment,350,0,FOSTER CARERS 
 03-09-2020,Children and Young People,Dormwell Ltd T/A Street Support,Supported Other Accommodation - Private Contractors Payment,350,0,FOSTER CARERS 
 03-09-2020,Children and Young People,Dormwell Ltd T/A Street Support,Supported Other Accommodation - Private Contractors Payment,350,0,FOSTER CARERS 
 03-09-2020,Children and Young People,Dormwell Ltd T/A Street Support,Supported Other Accommodation - Private Contractors Payment,350,0,FOSTER CARERS 
 03-09-2020,Children and Young People,Dormwell Ltd T/A Street Support,Client Support - Third Party,350,0,FOSTER CARERS 
 03-09-2020,Children and Young People,Dormwell Ltd T/A Street Support,Client Support - Third Party,350,0,FOSTER CARERS 
 03-09-2020,Children and Young People,Dormwell Ltd T/A Street Support,Client Support - Third Party,350,0,FOSTER CARERS 
 03-09-2020,Children and Young People,Dormwell Ltd T/A Street Support,Client Support - Third Party,350,0,FOSTER CARERS 
 03-09-2020,Children and Young People,Dormwell Ltd T/A Street Support,Client Support - Third Party,525,0,FOSTER CARERS 
 03-09-2020,Children and Young People,Dormwell Ltd T/A Street Support,Client Support - Third Party,50,0,FOSTER CARERS 
 03-09-2020,Children and Young People,Dormwell Ltd T/A Street Support,Client Support - Third Party,525,0,FOSTER CARERS 
 03-09-2020,Children and Young People,Dormwell Ltd T/A Street Support,Client Support - Third Party,50,0,FOSTER CARERS 
 03-09-2020,Children and Young People,Dormwell Ltd T/A Street Support,Client Support - Third Party,525,0,FOSTER CARERS 
 03-09-2020,Children and Young People,Dormwell Ltd T/A Street Support,Client Support - Third Party,525,0,FOSTER CARERS 
 03-09-2020,Children and Young People,Dormwell Ltd T/A Street Support,Client Support - Third Party,-50,0,FOSTER CARERS 
 03-09-2020,Children and Young People,Dormwell Ltd T/A Street Support,Client Support - Third Party,50,0,FOSTER CARERS 
 03-09-2020,Children and Young People,Dormwell Ltd T/A Street Support,Client Support - Third Party,350,0,FOSTER CARERS 
 03-09-2020,Children and Young People,Dormwell Ltd T/A Street Support,Client Support - Third Party,350,0,FOSTER CARERS 
 03-09-2020,Children and Young People,Dormwell Ltd T/A Street Support,Client Support - Third Party,350,0,FOSTER CARERS 
 03-09-2020,Children and Young People,Dormwell Ltd T/A Street Support,Client Support - Third Party,350,0,FOSTER CARERS 
 03-09-2020,Children and Young People,Dormwell Ltd T/A Street Support,Client Support - Third Party,425,0,FOSTER CARERS 
 03-09-2020,Children and Young People,Dormwell Ltd T/A Street Support,Client Support - Third Party,425,0,FOSTER CARERS 
 03-09-2020,Children and Young People,Dormwell Ltd T/A Street Support,Client Support - Third Party,425,0,FOSTER CARERS 
 03-09-2020,Children and Young People,Dormwell Ltd T/A Street Support,Client Support - Third Party,425,0,FOSTER CARERS 
 03-09-2020,Children and Young People,Dormwell Ltd T/A Street Support,Supported Other Accommodation - Private Contractors Payment,50,0,FOSTER CARERS 
 03-09-2020,Children and Young People,Dormwell Ltd T/A Street Support,Supported Other Accommodation - Private Contractors Payment,325,0,FOSTER CARERS 
 03-09-2020,Children and Young People,Dormwell Ltd T/A Street Support,Supported Other Accommodation - Private Contractors Payment,50,0,FOSTER CARERS 
 03-09-2020,Children and Young People,Dormwell Ltd T/A Street Support,Supported Other Accommodation - Private Contractors Payment,325,0,FOSTER CARERS 
 03-09-2020,Children and Young People,Dormwell Ltd T/A Street Support,Supported Other Accommodation - Private Contractors Payment,325,0,FOSTER CARERS 
 03-09-2020,Children and Young People,Dormwell Ltd T/A Street Support,Supported Other Accommodation - Private Contractors Payment,325,0,FOSTER CARERS 
 03-09-2020,Children and Young People,Dormwell Ltd T/A Street Support,Supported Other Accommodation - Private Contractors Payment,50,0,FOSTER CARERS 
 03-09-2020,Children and Young People,Dormwell Ltd T/A Street Support,Supported Other Accommodation - Private Contractors Payment,50,0,FOSTER CARERS 
 03-09-2020,Children and Young People,Dormwell Ltd T/A Street Support,Client Support - Third Party,25,0,FOSTER CARERS 
 03-09-2020,Children and Young People,Dormwell Ltd T/A Street Support,Client Support - Third Party,475,0,FOSTER CARERS 
 03-09-2020,Children and Young People,Dormwell Ltd T/A Street Support,Client Support - Third Party,25,0,FOSTER CARERS 
 03-09-2020,Children and Young People,Dormwell Ltd T/A Street Support,Client Support - Third Party,475,0,FOSTER CARERS 
 03-09-2020,Children and Young People,Dormwell Ltd T/A Street Support,Client Support - Third Party,25,0,FOSTER CARERS 
 03-09-2020,Children and Young People,Dormwell Ltd T/A Street Support,Client Support - Third Party,475,0,FOSTER CARERS 
 03-09-2020,Children and Young People,Dormwell Ltd T/A Street Support,Client Support - Third Party,25,0,FOSTER CARERS 
 03-09-2020,Children and Young People,Dormwell Ltd T/A Street Support,Client Support - Third Party,475,0,FOSTER CARERS 
 03-09-2020,Children and Young People,Dormwell Ltd T/A Street Support,Supported Other Accommodation - Private Contractors Payment,350,0,FOSTER CARERS 
 03-09-2020,Children and Young People,Dormwell Ltd T/A Street Support,Supported Other Accommodation - Private Contractors Payment,350,0,FOSTER CARERS 
 03-09-2020,Children and Young People,Dormwell Ltd T/A Street Support,Supported Other Accommodation - Private Contractors Payment,350,0,FOSTER CARERS 
 03-09-2020,Children and Young People,Dormwell Ltd T/A Street Support,Supported Other Accommodation - Private Contractors Payment,350,0,FOSTER CARERS 
 03-09-2020,Children and Young People,Dormwell Ltd T/A Street Support,Supported Other Accommodation - Private Contractors Payment,875,0,FOSTER CARERS 
 03-09-2020,Children and Young People,Dormwell Ltd T/A Street Support,Supported Other Accommodation - Private Contractors Payment,875,0,FOSTER CARERS 
 03-09-2020,Children and Young People,Dormwell Ltd T/A Street Support,Supported Other Accommodation - Private Contractors Payment,875,0,FOSTER CARERS 
 03-09-2020,Children and Young People,Dormwell Ltd T/A Street Support,Supported Other Accommodation - Private Contractors Payment,875,0,FOSTER CARERS 
 03-09-2020,Children and Young People,Dormwell Ltd T/A Street Support,Client Support - Third Party,350,0,FOSTER CARERS 
 03-09-2020,Children and Young People,Dormwell Ltd T/A Street Support,Client Support - Third Party,350,0,FOSTER CARERS 
 03-09-2020,Children and Young People,Dormwell Ltd T/A Street Support,Client Support - Third Party,350,0,FOSTER CARERS 
 03-09-2020,Children and Young People,Dormwell Ltd T/A Street Support,Client Support - Third Party,350,0,FOSTER CARERS 
 03-09-2020,Children and Young People,Dormwell Ltd T/A Street Support,Client Support - Third Party,350,0,FOSTER CARERS 
 03-09-2020,Children and Young People,Dormwell Ltd T/A Street Support,Client Support - Third Party,350,0,FOSTER CARERS 
 03-09-2020,Children and Young People,Dormwell Ltd T/A Street Support,Client Support - Third Party,300,0,FOSTER CARERS 
 03-09-2020,Children and Young People,Dormwell Ltd T/A Street Support,Client Support - Third Party,200,0,FOSTER CARERS 
 03-09-2020,Children and Young People,Dormwell Ltd T/A Street Support,Client Support - Third Party,100,0,FOSTER CARERS 
 03-09-2020,Children and Young People,Dormwell Ltd T/A Street Support,Client Support - Third Party,100,0,FOSTER CARERS 
 03-09-2020,Children and Young People,Dormwell Ltd T/A Street Support,Supported Other Accommodation - Private Contractors Payment,475,0,FOSTER CARERS 
 03-09-2020,Children and Young People,Dormwell Ltd T/A Street Support,Supported Other Accommodation - Private Contractors Payment,475,0,FOSTER CARERS 
 03-09-2020,Children and Young People,Dormwell Ltd T/A Street Support,Supported Other Accommodation - Private Contractors Payment,475,0,FOSTER CARERS 
 03-09-2020,Children and Young People,Dormwell Ltd T/A Street Support,Supported Other Accommodation - Private Contractors Payment,475,0,FOSTER CARERS 
 03-09-2020,Children and Young People,Dormwell Ltd T/A Street Support,Supported Other Accommodation - Private Contractors Payment,425,0,FOSTER CARERS 
 03-09-2020,Children and Young People,Dormwell Ltd T/A Street Support,Supported Other Accommodation - Private Contractors Payment,425,0,FOSTER CARERS 
 03-09-2020,Children and Young People,Dormwell Ltd T/A Street Support,Supported Other Accommodation - Private Contractors Payment,425,0,FOSTER CARERS 
 03-09-2020,Children and Young People,Dormwell Ltd T/A Street Support,Supported Other Accommodation - Private Contractors Payment,425,0,FOSTER CARERS 
 03-09-2020,Children and Young People,Dormwell Ltd T/A Street Support,Supported Other Accommodation - Private Contractors Payment,350,0,FOSTER CARERS 
 03-09-2020,Children and Young People,Dormwell Ltd T/A Street Support,Supported Other Accommodation - Private Contractors Payment,450,0,FOSTER CARERS 
 03-09-2020,Children and Young People,Dormwell Ltd T/A Street Support,Supported Other Accommodation - Private Contractors Payment,350,0,FOSTER CARERS 
 03-09-2020,Children and Young People,Dormwell Ltd T/A Street Support,Supported Other Accommodation - Private Contractors Payment,350,0,FOSTER CARERS 
 03-09-2020,Children and Young People,Newcombe Lodge Priory,Residential Placements - Private Contractors Payment,8357.1,0,COMMERCIAL SUPPLIER 
 03-09-2020,Children and Young People,Newcombe Lodge Priory,Residential Placements - Private Contractors Payment,5849.97,0,COMMERCIAL SUPPLIER 
 03-09-2020,Children and Young People,Newcombe Lodge Priory,Residential Placements - Private Contractors Payment,5849.97,0,COMMERCIAL SUPPLIER 
 03-09-2020,Children and Young People,Newcombe Lodge Priory,Residential Placements - Private Contractors Payment,5849.97,0,COMMERCIAL SUPPLIER 
 03-09-2020,Balance Sheet,Kay Rowe Nursery School,Long Term Government Grant Receipts In Advance - Capital,20000,0,VENDOR 
 03-09-2020,Adults & Health,Bettertogether Limited,Adult Placement Scheme - Private Contractors Payment,812,0,NON COMMERCIAL SUPPLIER 
 03-09-2020,Adults & Health,Bettertogether Limited,Adult Placement Scheme - Private Contractors Payment,812,0,NON COMMERCIAL SUPPLIER 
 03-09-2020,Adults & Health,Bettertogether Limited,Adult Placement Scheme - Private Contractors Payment,812,0,NON COMMERCIAL SUPPLIER 
 03-09-2020,Adults & Health,Bettertogether Limited,Adult Placement Scheme - Private Contractors Payment,812,0,NON COMMERCIAL SUPPLIER 
 03-09-2020,Adults & Health,Bettertogether Limited,Adult Placement Scheme - Private Contractors Payment,812,0,NON COMMERCIAL SUPPLIER 
 03-09-2020,Adults & Health,Bettertogether Limited,Adult Placement Scheme - Private Contractors Payment,812,0,NON COMMERCIAL SUPPLIER 
 03-09-2020,Adults & Health,Bettertogether Limited,Adult Placement Scheme - Private Contractors Payment,812,0,NON COMMERCIAL SUPPLIER 
 03-09-2020,Adults & Health,Bettertogether Limited,Adult Placement Scheme - Private Contractors Payment,812,0,NON COMMERCIAL SUPPLIER 
 03-09-2020,Adults & Health,Bettertogether Limited,Adult Placement Scheme - Private Contractors Payment,514,0,NON COMMERCIAL SUPPLIER 
 03-09-2020,Adults & Health,Bettertogether Limited,Adult Placement Scheme - Private Contractors Payment,514,0,NON COMMERCIAL SUPPLIER 
 03-09-2020,Adults & Health,Bettertogether Limited,Adult Placement Scheme - Private Contractors Payment,514,0,NON COMMERCIAL SUPPLIER 
 03-09-2020,Adults & Health,Bettertogether Limited,Adult Placement Scheme - Private Contractors Payment,514,0,NON COMMERCIAL SUPPLIER 
 03-09-2020,RMS,Public Realm Services Ltd,Private Contractors Payment - Other,292.2,0,COMMERCIAL SUPPLIER 
 03-09-2020,RMS,Tgl,Private Contractors Payment - Other,0,0,VENDOR 
 03-09-2020,RMS,Tgl,Private Contractors Payment - Other,460.8,0,VENDOR 
 03-09-2020,RMS,Door-Stop International Ltd,"Purchase - Equipment, Furniture And Materials",538.4,0,VENDOR 
 03-09-2020,RMS,Door-Stop International Ltd,"Purchase - Equipment, Furniture And Materials",482.18,0,VENDOR 
 03-09-2020,RMS,Door-Stop International Ltd,"Purchase - Equipment, Furniture And Materials",474.79,0,VENDOR 
 03-09-2020,RMS,Door-Stop International Ltd,"Purchase - Equipment, Furniture And Materials",516.9,0,VENDOR 
 03-09-2020,Environment and Sustainable Transport,London Borough of Camden,Payment To Other Local Authorities,641342,0,LOCAL AUTHORITY SERVICES 
 03-09-2020,oneSource,Personal Information - Redacted,Ict Software,64,0,Employee 
 03-09-2020,oneSource,Personal Information - Redacted,Ict Software,320,0,Employee 
 03-09-2020,Children and Young People,Oak Housing Ltd,Consultancy Fees,3360,0,COMMERCIAL SUPPLIER 
 03-09-2020,Children and Young People,Atlantic Lodge (Housing) Ltd,Supported Other Accommodation - Private Contractors Payment,325,0,COMMERCIAL SUPPLIER 
 03-09-2020,Children and Young People,Atlantic Lodge (Housing) Ltd,Supported Other Accommodation - Private Contractors Payment,325,0,COMMERCIAL SUPPLIER 
 03-09-2020,Children and Young People,Atlantic Lodge (Housing) Ltd,Supported Other Accommodation - Private Contractors Payment,117.63,0,COMMERCIAL SUPPLIER 
 03-09-2020,Children and Young People,Atlantic Lodge (Housing) Ltd,Supported Other Accommodation - Private Contractors Payment,325,0,COMMERCIAL SUPPLIER 
 03-09-2020,Children and Young People,Atlantic Lodge (Housing) Ltd,Supported Other Accommodation - Private Contractors Payment,325,0,COMMERCIAL SUPPLIER 
 03-09-2020,Children and Young People,Atlantic Lodge (Housing) Ltd,Client Support - Third Party,335,0,COMMERCIAL SUPPLIER 
 03-09-2020,Children and Young People,Atlantic Lodge (Housing) Ltd,Client Support - Third Party,335,0,COMMERCIAL SUPPLIER 
 03-09-2020,Children and Young People,Atlantic Lodge (Housing) Ltd,Client Support - Third Party,335,0,COMMERCIAL SUPPLIER 
 03-09-2020,Children and Young People,Atlantic Lodge (Housing) Ltd,Client Support - Third Party,335,0,COMMERCIAL SUPPLIER 
 03-09-2020,Children and Young People,Atlantic Lodge (Housing) Ltd,Client Support - Third Party,143.57,0,COMMERCIAL SUPPLIER 
 03-09-2020,oneSource - Non Shared,RIBA Enterprises Ltd,Consultancy Fees,5250,0,COMMERCIAL SUPPLIER 
 03-09-2020,Children and Young People,Oak Housing Ltd,Consultancy Fees,2520,0,COMMERCIAL SUPPLIER 
 03-09-2020,Environment and Sustainable Transport,AllTyres Trading Ltd,Highway Services,279.8,0,COMMERCIAL SUPPLIER 
 03-09-2020,Environment and Sustainable Transport,AllTyres Trading Ltd,Highway Services,132,0,COMMERCIAL SUPPLIER 
 04-09-2020,Adults & Health,Personal Information - Redacted,Supported Other Accommodation - Private Contractors Payment,593.6,0,VENDOR 
 04-09-2020,Adults & Health,Personal Information - Redacted,Supported Other Accommodation - Private Contractors Payment,689,0,VENDOR 
 04-09-2020,Adults & Health,Personal Information - Redacted,Supported Other Accommodation - Private Contractors Payment,964.18,0,VENDOR 
 04-09-2020,Adults & Health,Personal Information - Redacted,Supported Other Accommodation - Private Contractors Payment,593.6,0,VENDOR 
 04-09-2020,Adults & Health,Personal Information - Redacted,Supported Other Accommodation - Private Contractors Payment,689,0,VENDOR 
 04-09-2020,Adults & Health,Personal Information - Redacted,Supported Other Accommodation - Private Contractors Payment,964.18,0,VENDOR 
 04-09-2020,Adults & Health,Personal Information - Redacted,Supported Other Accommodation - Private Contractors Payment,593.6,0,VENDOR 
 04-09-2020,Adults & Health,Personal Information - Redacted,Supported Other Accommodation - Private Contractors Payment,689,0,VENDOR 
 04-09-2020,Adults & Health,Personal Information - Redacted,Supported Other Accommodation - Private Contractors Payment,964.18,0,VENDOR 
 04-09-2020,Adults & Health,Personal Information - Redacted,Supported Other Accommodation - Private Contractors Payment,964.18,0,VENDOR 
 04-09-2020,Adults & Health,Personal Information - Redacted,Supported Other Accommodation - Private Contractors Payment,593.6,0,VENDOR 
 04-09-2020,Adults & Health,Personal Information - Redacted,Supported Other Accommodation - Private Contractors Payment,689,0,VENDOR 
 04-09-2020,Adults & Health,Personal Information - Redacted,Supported Other Accommodation - Private Contractors Payment,477,0,VENDOR 
 04-09-2020,Adults & Health,Personal Information - Redacted,Supported Other Accommodation - Private Contractors Payment,477,0,VENDOR 
 04-09-2020,Adults & Health,Personal Information - Redacted,Supported Other Accommodation - Private Contractors Payment,477,0,VENDOR 
 04-09-2020,Adults & Health,Personal Information - Redacted,Supported Other Accommodation - Private Contractors Payment,477,0,VENDOR 
 04-09-2020,Adults & Health,Personal Information - Redacted,Supported Other Accommodation - Private Contractors Payment,667.8,0,VENDOR 
 04-09-2020,Adults & Health,Personal Information - Redacted,Supported Other Accommodation - Private Contractors Payment,636,0,VENDOR 
 04-09-2020,Adults & Health,Personal Information - Redacted,Supported Other Accommodation - Private Contractors Payment,636,0,VENDOR 
 04-09-2020,Adults & Health,Personal Information - Redacted,Supported Other Accommodation - Private Contractors Payment,667.8,0,VENDOR 
 04-09-2020,Adults & Health,Personal Information - Redacted,Supported Other Accommodation - Private Contractors Payment,667.8,0,VENDOR 
 04-09-2020,Adults & Health,Personal Information - Redacted,Supported Other Accommodation - Private Contractors Payment,636,0,VENDOR 
 04-09-2020,Adults & Health,Personal Information - Redacted,Supported Other Accommodation - Private Contractors Payment,636,0,VENDOR 
 04-09-2020,Adults & Health,Personal Information - Redacted,Supported Other Accommodation - Private Contractors Payment,667.8,0,VENDOR 
 04-09-2020,Adults & Health,Personal Information - Redacted,Supported Other Accommodation - Private Contractors Payment,636,0,VENDOR 
 04-09-2020,Adults & Health,Personal Information - Redacted,Supported Other Accommodation - Private Contractors Payment,636,0,VENDOR 
 04-09-2020,Adults & Health,Personal Information - Redacted,Supported Other Accommodation - Private Contractors Payment,636,0,VENDOR 
 04-09-2020,Adults & Health,Personal Information - Redacted,Supported Other Accommodation - Private Contractors Payment,553.32,0,VENDOR 
 04-09-2020,Adults & Health,Personal Information - Redacted,Supported Other Accommodation - Private Contractors Payment,795,0,VENDOR 
 04-09-2020,Adults & Health,Personal Information - Redacted,Supported Other Accommodation - Private Contractors Payment,795,0,VENDOR 
 04-09-2020,Adults & Health,Personal Information - Redacted,Supported Other Accommodation - Private Contractors Payment,553.32,0,VENDOR 
 04-09-2020,Adults & Health,Personal Information - Redacted,Supported Other Accommodation - Private Contractors Payment,553.32,0,VENDOR 
 04-09-2020,Adults & Health,Personal Information - Redacted,Supported Other Accommodation - Private Contractors Payment,795,0,VENDOR 
 04-09-2020,Adults & Health,Personal Information - Redacted,Supported Other Accommodation - Private Contractors Payment,795,0,VENDOR 
 04-09-2020,Adults & Health,Personal Information - Redacted,Supported Other Accommodation - Private Contractors Payment,553.32,0,VENDOR 
 04-09-2020,Adults & Health,Personal Information - Redacted,Supported Other Accommodation - Private Contractors Payment,636,0,VENDOR 
 04-09-2020,Children and Young People,Dr Anastasia Bem,Legal Fees,1296,0,NON COMMERCIAL SUPPLIER 
 04-09-2020,Adults & Health,Newham Community Project,Payment To Health Authorities,677.25,0,COMMERCIAL SUPPLIER 
 04-09-2020,Environment and Sustainable Transport,R.A.M Fleet Solutions Ltd,"Purchase - Equipment, Furniture And Materials",1750,0,COMMERCIAL SUPPLIER 
 04-09-2020,Children and Young People,The Xcel 2000 Fostercare,Residential Placements - Private Contractors Payment,661.5,0,VENDOR 
 04-09-2020,Children and Young People,Lextox,Legal Fees,209.75,0,COMMERCIAL SUPPLIER 
 04-09-2020,RMS,John McGuinness Roofing Contractors Ltd,Private Contractors Payment - Other,5820.74,0,COMMERCIAL SUPPLIER 
 04-09-2020,RMS,John McGuinness Roofing Contractors Ltd,Private Contractors Payment - Other,3880.49,0,COMMERCIAL SUPPLIER 
 04-09-2020,Children and Young People,Fusion Fostering,Residential Placements - Private Contractors Payment,750,0,COMMERCIAL SUPPLIER 
 04-09-2020,Children and Young People,Fusion Fostering,Residential Placements - Private Contractors Payment,750,0,COMMERCIAL SUPPLIER 
 04-09-2020,Children and Young People,Fusion Fostering,Residential Placements - Private Contractors Payment,750,0,COMMERCIAL SUPPLIER 
 04-09-2020,Children and Young People,Fusion Fostering,Residential Placements - Private Contractors Payment,750,0,COMMERCIAL SUPPLIER 
 04-09-2020,Children and Young People,Fusion Fostering,Residential Placements - Private Contractors Payment,750,0,COMMERCIAL SUPPLIER 
 04-09-2020,Children and Young People,Fusion Fostering,Residential Placements - Private Contractors Payment,750,0,COMMERCIAL SUPPLIER 
 04-09-2020,Children and Young People,Fusion Fostering,Residential Placements - Private Contractors Payment,750,0,COMMERCIAL SUPPLIER 
 04-09-2020,Children and Young People,Fusion Fostering,Residential Placements - Private Contractors Payment,750,0,COMMERCIAL SUPPLIER 
 04-09-2020,RMS,Stuga Machinery Ltd,"Purchase - Equipment, Furniture And Materials",492.22,0,VENDOR 
 04-09-2020,RMS,Stuga Machinery Ltd,"Purchase - Equipment, Furniture And Materials",12.19,0,VENDOR 
 04-09-2020,Balance Sheet,Every Project Counts Ltd (Epc),Capital Outlay,8575,0,CIS 
 04-09-2020,Balance Sheet,Every Project Counts Ltd (Epc),Capital Outlay,40816.86,0,CIS 
 04-09-2020,Balance Sheet,Every Project Counts Ltd (Epc),Capital Outlay,1877.5,0,CIS 
 04-09-2020,Environment and Sustainable Transport,Craemer UK Ltd,Highway Services,11187,0,COMMERCIAL SUPPLIER 
 04-09-2020,Balance Sheet,Teachers Pensions,Pension Fund Sundry Creditor,1724597.97,0,NON COMMERCIAL SUPPLIER 
 04-09-2020,Balance Sheet,Teachers Pensions,Pension Fund Sundry Creditor,121115.53,0,NON COMMERCIAL SUPPLIER 
 04-09-2020,Balance Sheet,Teachers Pensions,Pension Fund Sundry Creditor,108535.18,0,NON COMMERCIAL SUPPLIER 
 04-09-2020,Balance Sheet,Teachers Pensions,Pension Fund Sundry Creditor,65288.68,0,NON COMMERCIAL SUPPLIER 
 04-09-2020,Children and Young People,Banya Family Placement Agency Ltd,Residential Placements - Private Contractors Payment,814.6,0,COMMERCIAL SUPPLIER 
 04-09-2020,Children and Young People,Banya Family Placement Agency Ltd,Residential Placements - Private Contractors Payment,814.6,0,COMMERCIAL SUPPLIER 
 04-09-2020,Children and Young People,Banya Family Placement Agency Ltd,Residential Placements - Private Contractors Payment,814.6,0,COMMERCIAL SUPPLIER 
 04-09-2020,Children and Young People,Banya Family Placement Agency Ltd,Residential Placements - Private Contractors Payment,820.16,0,COMMERCIAL SUPPLIER 
 04-09-2020,Children and Young People,Banya Family Placement Agency Ltd,Residential Placements - Private Contractors Payment,814.6,0,COMMERCIAL SUPPLIER 
 04-09-2020,Children and Young People,Banya Family Placement Agency Ltd,Residential Placements - Private Contractors Payment,814.6,0,COMMERCIAL SUPPLIER 
 04-09-2020,Children and Young People,Banya Family Placement Agency Ltd,Residential Placements - Private Contractors Payment,814.6,0,COMMERCIAL SUPPLIER 
 04-09-2020,Children and Young People,Banya Family Placement Agency Ltd,Residential Placements - Private Contractors Payment,814.56,0,COMMERCIAL SUPPLIER 
 04-09-2020,RMS,Benchmarx Kitchens and Joinery,Private Contractors Payment - Other,800,0,COMMERCIAL SUPPLIER 
 04-09-2020,Children and Young People,Newhaven 16 Plus Ltd,Supported Other Accommodation - Private Contractors Payment,210,0,VENDOR 
 04-09-2020,Children and Young People,Newhaven 16 Plus Ltd,Supported Other Accommodation - Private Contractors Payment,210,0,VENDOR 
 04-09-2020,Children and Young People,Newhaven 16 Plus Ltd,Supported Other Accommodation - Private Contractors Payment,210,0,VENDOR 
 04-09-2020,Children and Young People,Newhaven 16 Plus Ltd,Supported Other Accommodation - Private Contractors Payment,210,0,VENDOR 
 04-09-2020,Children and Young People,Newhaven 16 Plus Ltd,Supported Other Accommodation - Private Contractors Payment,210,0,VENDOR 
 04-09-2020,Children and Young People,Newhaven 16 Plus Ltd,Supported Other Accommodation - Private Contractors Payment,210,0,VENDOR 
 04-09-2020,Children and Young People,Newhaven 16 Plus Ltd,Supported Other Accommodation - Private Contractors Payment,210,0,VENDOR 
 04-09-2020,Children and Young People,Newhaven 16 Plus Ltd,Supported Other Accommodation - Private Contractors Payment,210,0,VENDOR 
 04-09-2020,Children and Young People,Newhaven 16 Plus Ltd,Supported Other Accommodation - Private Contractors Payment,100,0,VENDOR 
 04-09-2020,Children and Young People,Newhaven 16 Plus Ltd,Supported Other Accommodation - Private Contractors Payment,100,0,VENDOR 
 04-09-2020,Children and Young People,Newhaven 16 Plus Ltd,Supported Other Accommodation - Private Contractors Payment,100,0,VENDOR 
 04-09-2020,Children and Young People,Newhaven 16 Plus Ltd,Supported Other Accommodation - Private Contractors Payment,100,0,VENDOR 
 04-09-2020,Children and Young People,Newhaven 16 Plus Ltd,Supported Other Accommodation - Private Contractors Payment,250,0,VENDOR 
 04-09-2020,Children and Young People,Newhaven 16 Plus Ltd,Supported Other Accommodation - Private Contractors Payment,250,0,VENDOR 
 04-09-2020,Children and Young People,Newhaven 16 Plus Ltd,Supported Other Accommodation - Private Contractors Payment,250,0,VENDOR 
 04-09-2020,Children and Young People,Newhaven 16 Plus Ltd,Supported Other Accommodation - Private Contractors Payment,250,0,VENDOR 
 04-09-2020,Children and Young People,Newhaven 16 Plus Ltd,Supported Other Accommodation - Private Contractors Payment,250,0,VENDOR 
 04-09-2020,Children and Young People,Newhaven 16 Plus Ltd,Supported Other Accommodation - Private Contractors Payment,250,0,VENDOR 
 04-09-2020,Children and Young People,Newhaven 16 Plus Ltd,Supported Other Accommodation - Private Contractors Payment,250,0,VENDOR 
 04-09-2020,Children and Young People,Newhaven 16 Plus Ltd,Supported Other Accommodation - Private Contractors Payment,250,0,VENDOR 
 04-09-2020,Children and Young People,Newhaven 16 Plus Ltd,Supported Other Accommodation - Private Contractors Payment,850,0,VENDOR 
 04-09-2020,Children and Young People,Newhaven 16 Plus Ltd,Supported Other Accommodation - Private Contractors Payment,850,0,VENDOR 
 04-09-2020,Children and Young People,Newhaven 16 Plus Ltd,Supported Other Accommodation - Private Contractors Payment,850,0,VENDOR 
 04-09-2020,Children and Young People,Newhaven 16 Plus Ltd,Supported Other Accommodation - Private Contractors Payment,850,0,VENDOR 
 04-09-2020,Children and Young People,Newhaven 16 Plus Ltd,Supported Other Accommodation - Private Contractors Payment,250,0,VENDOR 
 04-09-2020,Children and Young People,Newhaven 16 Plus Ltd,Supported Other Accommodation - Private Contractors Payment,250,0,VENDOR 
 04-09-2020,Children and Young People,Newhaven 16 Plus Ltd,Supported Other Accommodation - Private Contractors Payment,250,0,VENDOR 
 04-09-2020,Children and Young People,Newhaven 16 Plus Ltd,Supported Other Accommodation - Private Contractors Payment,250,0,VENDOR 
 04-09-2020,Children and Young People,Newhaven 16 Plus Ltd,Supported Other Accommodation - Private Contractors Payment,250,0,VENDOR 
 04-09-2020,Children and Young People,Newhaven 16 Plus Ltd,Supported Other Accommodation - Private Contractors Payment,250,0,VENDOR 
 04-09-2020,Children and Young People,Newhaven 16 Plus Ltd,Supported Other Accommodation - Private Contractors Payment,250,0,VENDOR 
 04-09-2020,Children and Young People,Newhaven 16 Plus Ltd,Supported Other Accommodation - Private Contractors Payment,250,0,VENDOR 
 04-09-2020,Children and Young People,Newhaven 16 Plus Ltd,Supported Other Accommodation - Private Contractors Payment,250,0,VENDOR 
 04-09-2020,Children and Young People,Newhaven 16 Plus Ltd,Supported Other Accommodation - Private Contractors Payment,250,0,VENDOR 
 04-09-2020,Children and Young People,Newhaven 16 Plus Ltd,Supported Other Accommodation - Private Contractors Payment,250,0,VENDOR 
 04-09-2020,Children and Young People,Newhaven 16 Plus Ltd,Supported Other Accommodation - Private Contractors Payment,250,0,VENDOR 
 04-09-2020,Children and Young People,Newhaven 16 Plus Ltd,Supported Other Accommodation - Private Contractors Payment,850,0,VENDOR 
 04-09-2020,Children and Young People,Newhaven 16 Plus Ltd,Supported Other Accommodation - Private Contractors Payment,850,0,VENDOR 
 04-09-2020,Children and Young People,Newhaven 16 Plus Ltd,Supported Other Accommodation - Private Contractors Payment,850,0,VENDOR 
 04-09-2020,Children and Young People,Newhaven 16 Plus Ltd,Supported Other Accommodation - Private Contractors Payment,850,0,VENDOR 
 04-09-2020,Children and Young People,Newhaven 16 Plus Ltd,Supported Other Accommodation - Private Contractors Payment,250,0,VENDOR 
 04-09-2020,Children and Young People,Newhaven 16 Plus Ltd,Supported Other Accommodation - Private Contractors Payment,250,0,VENDOR 
 04-09-2020,Children and Young People,Newhaven 16 Plus Ltd,Supported Other Accommodation - Private Contractors Payment,250,0,VENDOR 
 04-09-2020,Children and Young People,Newhaven 16 Plus Ltd,Supported Other Accommodation - Private Contractors Payment,250,0,VENDOR 
 04-09-2020,Children and Young People,Newhaven 16 Plus Ltd,Client Support - Third Party,250,0,VENDOR 
 04-09-2020,Children and Young People,Newhaven 16 Plus Ltd,Client Support - Third Party,250,0,VENDOR 
 04-09-2020,Children and Young People,Newhaven 16 Plus Ltd,Client Support - Third Party,250,0,VENDOR 
 04-09-2020,Children and Young People,Newhaven 16 Plus Ltd,Client Support - Third Party,250,0,VENDOR 
 04-09-2020,Children and Young People,Newhaven 16 Plus Ltd,Client Support - Third Party,250,0,VENDOR 
 04-09-2020,Children and Young People,Newhaven 16 Plus Ltd,Client Support - Third Party,250,0,VENDOR 
 04-09-2020,Children and Young People,Newhaven 16 Plus Ltd,Client Support - Third Party,250,0,VENDOR 
 04-09-2020,Children and Young People,Newhaven 16 Plus Ltd,Client Support - Third Party,250,0,VENDOR 
 04-09-2020,Children and Young People,Newhaven 16 Plus Ltd,Client Support - Third Party,250,0,VENDOR 
 04-09-2020,Children and Young People,Newhaven 16 Plus Ltd,Client Support - Third Party,250,0,VENDOR 
 04-09-2020,Children and Young People,Newhaven 16 Plus Ltd,Client Support - Third Party,250,0,VENDOR 
 04-09-2020,Children and Young People,Newhaven 16 Plus Ltd,Client Support - Third Party,250,0,VENDOR 
 04-09-2020,Environment and Sustainable Transport,Sparshatt Truck & Van Ltd,Highway Services,201.4,0,COMMERCIAL SUPPLIER 
 04-09-2020,Environment and Sustainable Transport,Sparshatt Truck & Van Ltd,Highway Services,66,0,COMMERCIAL SUPPLIER 
 04-09-2020,Environment and Sustainable Transport,Sparshatt Truck & Van Ltd,Highway Services,60.4,0,COMMERCIAL SUPPLIER 
 04-09-2020,Adults & Health,York Hotel,Supported Other Accommodation - Private Contractors Payment,60,0,COMMERCIAL SUPPLIER 
 04-09-2020,Adults & Health,York Hotel,Supported Other Accommodation - Private Contractors Payment,300,0,COMMERCIAL SUPPLIER 
 04-09-2020,Adults & Health,York Hotel,Supported Other Accommodation - Private Contractors Payment,60,0,COMMERCIAL SUPPLIER 
 04-09-2020,Adults & Health,York Hotel,Supported Other Accommodation - Private Contractors Payment,420,0,COMMERCIAL SUPPLIER 
 04-09-2020,Adults & Health,York Hotel,Supported Other Accommodation - Private Contractors Payment,120,0,COMMERCIAL SUPPLIER 
 04-09-2020,Adults & Health,York Hotel,Supported Other Accommodation - Private Contractors Payment,350,0,COMMERCIAL SUPPLIER 
 04-09-2020,Resources,Jones Lang LaSalle Ltd,Consultancy Fees,387500,0,COMMERCIAL SUPPLIER 
 04-09-2020,Adults & Health,Bangladesh Parents And Carers Association,Daycare - Private Contractors Payment,456,0,VENDOR 
 04-09-2020,Adults & Health,Bangladesh Parents And Carers Association,Daycare - Private Contractors Payment,456,0,VENDOR 
 04-09-2020,Adults & Health,Bangladesh Parents And Carers Association,Daycare - Private Contractors Payment,456,0,VENDOR 
 04-09-2020,Adults & Health,Bangladesh Parents And Carers Association,Daycare - Private Contractors Payment,456,0,VENDOR 
 04-09-2020,Adults & Health,Bangladesh Parents And Carers Association,Daycare - Private Contractors Payment,245,0,VENDOR 
 04-09-2020,Adults & Health,Bangladesh Parents And Carers Association,Daycare - Private Contractors Payment,245,0,VENDOR 
 04-09-2020,Adults & Health,Bangladesh Parents And Carers Association,Daycare - Private Contractors Payment,245,0,VENDOR 
 04-09-2020,Adults & Health,Bangladesh Parents And Carers Association,Daycare - Private Contractors Payment,245,0,VENDOR 
 04-09-2020,Adults & Health,Bangladesh Parents And Carers Association,Daycare - Private Contractors Payment,341.88,0,VENDOR 
 04-09-2020,Adults & Health,Bangladesh Parents And Carers Association,Daycare - Private Contractors Payment,341.88,0,VENDOR 
 04-09-2020,Adults & Health,Bangladesh Parents And Carers Association,Daycare - Private Contractors Payment,341.88,0,VENDOR 
 04-09-2020,Adults & Health,Bangladesh Parents And Carers Association,Daycare - Private Contractors Payment,341.88,0,VENDOR 
 04-09-2020,Adults & Health,Bangladesh Parents And Carers Association,Daycare - Private Contractors Payment,98,0,VENDOR 
 04-09-2020,Adults & Health,Bangladesh Parents And Carers Association,Daycare - Private Contractors Payment,98,0,VENDOR 
 04-09-2020,Adults & Health,Bangladesh Parents And Carers Association,Daycare - Private Contractors Payment,98,0,VENDOR 
 04-09-2020,Adults & Health,Bangladesh Parents And Carers Association,Daycare - Private Contractors Payment,65,0,VENDOR 
 04-09-2020,Adults & Health,Bangladesh Parents And Carers Association,Daycare - Private Contractors Payment,98,0,VENDOR 
 04-09-2020,Adults & Health,Bangladesh Parents And Carers Association,Daycare - Private Contractors Payment,58.8,0,VENDOR 
 04-09-2020,Adults & Health,Bangladesh Parents And Carers Association,Daycare - Private Contractors Payment,58.8,0,VENDOR 
 04-09-2020,Adults & Health,Bangladesh Parents And Carers Association,Daycare - Private Contractors Payment,25.8,0,VENDOR 
 04-09-2020,Adults & Health,Bangladesh Parents And Carers Association,Daycare - Private Contractors Payment,58.8,0,VENDOR 
 04-09-2020,Adults & Health,Bangladesh Parents And Carers Association,Daycare - Private Contractors Payment,58.8,0,VENDOR 
 04-09-2020,Adults & Health,Bangladesh Parents And Carers Association,Daycare - Private Contractors Payment,196,0,VENDOR 
 04-09-2020,Adults & Health,Bangladesh Parents And Carers Association,Daycare - Private Contractors Payment,196,0,VENDOR 
 04-09-2020,Adults & Health,Bangladesh Parents And Carers Association,Daycare - Private Contractors Payment,196,0,VENDOR 
 04-09-2020,Adults & Health,Bangladesh Parents And Carers Association,Daycare - Private Contractors Payment,196,0,VENDOR 
 04-09-2020,Adults & Health,Bangladesh Parents And Carers Association,Daycare - Private Contractors Payment,98,0,VENDOR 
 04-09-2020,Adults & Health,Bangladesh Parents And Carers Association,Daycare - Private Contractors Payment,98,0,VENDOR 
 04-09-2020,Adults & Health,Bangladesh Parents And Carers Association,Daycare - Private Contractors Payment,98,0,VENDOR 
 04-09-2020,Adults & Health,Bangladesh Parents And Carers Association,Daycare - Private Contractors Payment,98,0,VENDOR 
 04-09-2020,Adults & Health,Bangladesh Parents And Carers Association,Daycare - Private Contractors Payment,196,0,VENDOR 
 04-09-2020,Adults & Health,Bangladesh Parents And Carers Association,Daycare - Private Contractors Payment,196,0,VENDOR 
 04-09-2020,Adults & Health,Bangladesh Parents And Carers Association,Daycare - Private Contractors Payment,196,0,VENDOR 
 04-09-2020,Adults & Health,Bangladesh Parents And Carers Association,Daycare - Private Contractors Payment,196,0,VENDOR 
 04-09-2020,Adults & Health,Bangladesh Parents And Carers Association,Daycare - Private Contractors Payment,342,0,VENDOR 
 04-09-2020,Adults & Health,Bangladesh Parents And Carers Association,Daycare - Private Contractors Payment,342,0,VENDOR 
 04-09-2020,Adults & Health,Bangladesh Parents And Carers Association,Daycare - Private Contractors Payment,342,0,VENDOR 
 04-09-2020,Adults & Health,Bangladesh Parents And Carers Association,Daycare - Private Contractors Payment,342,0,VENDOR 
 04-09-2020,Adults & Health,Bangladesh Parents And Carers Association,Daycare - Private Contractors Payment,105.98,0,VENDOR 
 04-09-2020,Adults & Health,Bangladesh Parents And Carers Association,Daycare - Private Contractors Payment,105.98,0,VENDOR 
 04-09-2020,Adults & Health,Bangladesh Parents And Carers Association,Daycare - Private Contractors Payment,105.98,0,VENDOR 
 04-09-2020,Adults & Health,Bangladesh Parents And Carers Association,Daycare - Private Contractors Payment,105.98,0,VENDOR 
 04-09-2020,Adults & Health,Bangladesh Parents And Carers Association,Daycare - Private Contractors Payment,243,0,VENDOR 
 04-09-2020,Adults & Health,Bangladesh Parents And Carers Association,Daycare - Private Contractors Payment,243,0,VENDOR 
 04-09-2020,Adults & Health,Bangladesh Parents And Carers Association,Daycare - Private Contractors Payment,243,0,VENDOR 
 04-09-2020,Adults & Health,Bangladesh Parents And Carers Association,Daycare - Private Contractors Payment,342,0,VENDOR 
 04-09-2020,Adults & Health,Bangladesh Parents And Carers Association,Daycare - Private Contractors Payment,342,0,VENDOR 
 04-09-2020,Adults & Health,Bangladesh Parents And Carers Association,Daycare - Private Contractors Payment,342,0,VENDOR 
 04-09-2020,Adults & Health,Bangladesh Parents And Carers Association,Daycare - Private Contractors Payment,342,0,VENDOR 
 04-09-2020,Adults & Health,Bangladesh Parents And Carers Association,Daycare - Private Contractors Payment,98,0,VENDOR 
 04-09-2020,Adults & Health,Bangladesh Parents And Carers Association,Daycare - Private Contractors Payment,98,0,VENDOR 
 04-09-2020,Adults & Health,Bangladesh Parents And Carers Association,Daycare - Private Contractors Payment,98,0,VENDOR 
 04-09-2020,Adults & Health,Bangladesh Parents And Carers Association,Daycare - Private Contractors Payment,98,0,VENDOR 
 04-09-2020,Adults & Health,Bangladesh Parents And Carers Association,Daycare - Private Contractors Payment,98,0,VENDOR 
 04-09-2020,Adults & Health,Bangladesh Parents And Carers Association,Daycare - Private Contractors Payment,98,0,VENDOR 
 04-09-2020,Adults & Health,Bangladesh Parents And Carers Association,Daycare - Private Contractors Payment,98,0,VENDOR 
 04-09-2020,Adults & Health,Bangladesh Parents And Carers Association,Daycare - Private Contractors Payment,98,0,VENDOR 
 04-09-2020,Adults & Health,Bangladesh Parents And Carers Association,Daycare - Private Contractors Payment,176.4,0,VENDOR 
 04-09-2020,Adults & Health,Bangladesh Parents And Carers Association,Daycare - Private Contractors Payment,176.4,0,VENDOR 
 04-09-2020,Adults & Health,Bangladesh Parents And Carers Association,Daycare - Private Contractors Payment,58.8,0,VENDOR 
 04-09-2020,Adults & Health,Bangladesh Parents And Carers Association,Daycare - Private Contractors Payment,176.4,0,VENDOR 
 04-09-2020,Adults & Health,Bangladesh Parents And Carers Association,Daycare - Private Contractors Payment,114,0,VENDOR 
 04-09-2020,Adults & Health,Bangladesh Parents And Carers Association,Daycare - Private Contractors Payment,114,0,VENDOR 
 04-09-2020,Adults & Health,Bangladesh Parents And Carers Association,Daycare - Private Contractors Payment,114,0,VENDOR 
 04-09-2020,Adults & Health,Bangladesh Parents And Carers Association,Daycare - Private Contractors Payment,114,0,VENDOR 
 04-09-2020,RMS,Rehau Ltd,"Purchase - Equipment, Furniture And Materials",406.8,0,VENDOR 
 04-09-2020,Environment and Sustainable Transport,Floglass Limited,"Purchase - Equipment, Furniture And Materials",328,0,COMMERCIAL SUPPLIER 
 04-09-2020,Children and Young People,National Fostering Agency,Residential Placements - Private Contractors Payment,622.74,0,COMMERCIAL SUPPLIER 
 04-09-2020,Adults & Health,Reed Employment Plc,Daycare - Private Contractors Payment,223.2,0,COMMERCIAL SUPPLIER 
 04-09-2020,Adults & Health,Reed Employment Plc,Daycare - Private Contractors Payment,182.4,0,COMMERCIAL SUPPLIER 
 04-09-2020,Adults & Health,Reed Employment Plc,Daycare - Private Contractors Payment,223.2,0,COMMERCIAL SUPPLIER 
 04-09-2020,Adults & Health,Reed Employment Plc,Daycare - Private Contractors Payment,223.2,0,COMMERCIAL SUPPLIER 
 04-09-2020,Adults & Health,Advance Housing & Support Ltd,Daycare - Private Contractors Payment,165,0,VENDOR 
 04-09-2020,Adults & Health,Advance Housing & Support Ltd,Daycare - Private Contractors Payment,165,0,VENDOR 
 04-09-2020,Adults & Health,Advance Housing & Support Ltd,Daycare - Private Contractors Payment,165,0,VENDOR 
 04-09-2020,Adults & Health,Advance Housing & Support Ltd,Daycare - Private Contractors Payment,165,0,VENDOR 
 04-09-2020,Adults & Health,Advance Housing & Support Ltd,Daycare - Private Contractors Payment,280.5,0,VENDOR 
 04-09-2020,Adults & Health,Advance Housing & Support Ltd,Daycare - Private Contractors Payment,280.5,0,VENDOR 
 04-09-2020,Adults & Health,Advance Housing & Support Ltd,Daycare - Private Contractors Payment,280.5,0,VENDOR 
 04-09-2020,Adults & Health,Advance Housing & Support Ltd,Daycare - Private Contractors Payment,280.5,0,VENDOR 
 04-09-2020,Adults & Health,Advance Housing & Support Ltd,Daycare - Private Contractors Payment,297,0,VENDOR 
 04-09-2020,Adults & Health,Advance Housing & Support Ltd,Daycare - Private Contractors Payment,297,0,VENDOR 
 04-09-2020,Adults & Health,Advance Housing & Support Ltd,Daycare - Private Contractors Payment,297,0,VENDOR 
 04-09-2020,Adults & Health,Advance Housing & Support Ltd,Daycare - Private Contractors Payment,297,0,VENDOR 
 04-09-2020,Inclusive Economy & Housing,T J Miller Ltd,Compensation,1542.96,0,COMMERCIAL SUPPLIER 
 04-09-2020,"People, Policy and Performance",Mr Lindsay G Knight t/a Human Stories,Events,1185,0,COMMERCIAL SUPPLIER 
 04-09-2020,"People, Policy and Performance",Mr Lindsay G Knight t/a Human Stories,Events,592.5,0,COMMERCIAL SUPPLIER 
 04-09-2020,Adults & Health,Action On Hearing Loss,Daycare - Private Contractors Payment,117.06,0,COMMERCIAL SUPPLIER 
 04-09-2020,Adults & Health,Action On Hearing Loss,Daycare - Private Contractors Payment,224.98,0,COMMERCIAL SUPPLIER 
 04-09-2020,Adults & Health,Action On Hearing Loss,Daycare - Private Contractors Payment,224.98,0,COMMERCIAL SUPPLIER 
 04-09-2020,Adults & Health,Action On Hearing Loss,Daycare - Private Contractors Payment,224.98,0,COMMERCIAL SUPPLIER 
 04-09-2020,Children and Young People,Early Start Group Ltd,Private Contractors Payment - Other,47555,0,COMMERCIAL SUPPLIER 
 04-09-2020,Adults & Health,Bettertogether Limited,Adult Placement Scheme - Private Contractors Payment,952,0,NON COMMERCIAL SUPPLIER 
 04-09-2020,Adults & Health,Bettertogether Limited,Adult Placement Scheme - Private Contractors Payment,680,0,NON COMMERCIAL SUPPLIER 
 04-09-2020,Adults & Health,Bettertogether Limited,Adult Placement Scheme - Private Contractors Payment,458,0,NON COMMERCIAL SUPPLIER 
 04-09-2020,Adults & Health,Bettertogether Limited,Adult Placement Scheme - Private Contractors Payment,458,0,NON COMMERCIAL SUPPLIER 
 04-09-2020,Adults & Health,Bettertogether Limited,Adult Placement Scheme - Private Contractors Payment,458,0,NON COMMERCIAL SUPPLIER 
 04-09-2020,Adults & Health,Bettertogether Limited,Adult Placement Scheme - Private Contractors Payment,458,0,NON COMMERCIAL SUPPLIER 
 04-09-2020,Adults & Health,Bettertogether Limited,Adult Placement Scheme - Private Contractors Payment,458,0,NON COMMERCIAL SUPPLIER 
 04-09-2020,Adults & Health,Bettertogether Limited,Adult Placement Scheme - Private Contractors Payment,458,0,NON COMMERCIAL SUPPLIER 
 04-09-2020,Adults & Health,Bettertogether Limited,Adult Placement Scheme - Private Contractors Payment,458,0,NON COMMERCIAL SUPPLIER 
 04-09-2020,Adults & Health,Bettertogether Limited,Adult Placement Scheme - Private Contractors Payment,458,0,NON COMMERCIAL SUPPLIER 
 04-09-2020,Adults & Health,Bettertogether Limited,Adult Placement Scheme - Private Contractors Payment,458,0,NON COMMERCIAL SUPPLIER 
 04-09-2020,Adults & Health,Bettertogether Limited,Adult Placement Scheme - Private Contractors Payment,458,0,NON COMMERCIAL SUPPLIER 
 04-09-2020,Adults & Health,Bettertogether Limited,Adult Placement Scheme - Private Contractors Payment,458,0,NON COMMERCIAL SUPPLIER 
 04-09-2020,Adults & Health,Bettertogether Limited,Adult Placement Scheme - Private Contractors Payment,458,0,NON COMMERCIAL SUPPLIER 
 04-09-2020,Adults & Health,Bettertogether Limited,Adult Placement Scheme - Private Contractors Payment,458,0,NON COMMERCIAL SUPPLIER 
 04-09-2020,Adults & Health,Bettertogether Limited,Adult Placement Scheme - Private Contractors Payment,458,0,NON COMMERCIAL SUPPLIER 
 04-09-2020,Adults & Health,Bettertogether Limited,Adult Placement Scheme - Private Contractors Payment,458,0,NON COMMERCIAL SUPPLIER 
 04-09-2020,Adults & Health,Bettertogether Limited,Adult Placement Scheme - Private Contractors Payment,458,0,NON COMMERCIAL SUPPLIER 
 04-09-2020,Adults & Health,Bettertogether Limited,Daycare - Private Contractors Payment,288,0,NON COMMERCIAL SUPPLIER 
 04-09-2020,Adults & Health,Bettertogether Limited,Adult Placement Scheme - Private Contractors Payment,514,0,NON COMMERCIAL SUPPLIER 
 04-09-2020,Adults & Health,Bettertogether Limited,Adult Placement Scheme - Private Contractors Payment,514,0,NON COMMERCIAL SUPPLIER 
 04-09-2020,Adults & Health,Bettertogether Limited,Adult Placement Scheme - Private Contractors Payment,514,0,NON COMMERCIAL SUPPLIER 
 04-09-2020,Adults & Health,Bettertogether Limited,Adult Placement Scheme - Private Contractors Payment,514,0,NON COMMERCIAL SUPPLIER 
 04-09-2020,Adults & Health,Bettertogether Limited,Daycare - Private Contractors Payment,288,0,NON COMMERCIAL SUPPLIER 
 04-09-2020,Adults & Health,Bettertogether Limited,Daycare - Private Contractors Payment,288,0,NON COMMERCIAL SUPPLIER 
 04-09-2020,Adults & Health,Bettertogether Limited,Daycare - Private Contractors Payment,288,0,NON COMMERCIAL SUPPLIER 
 04-09-2020,Adults & Health,Bettertogether Limited,Daycare - Private Contractors Payment,288,0,NON COMMERCIAL SUPPLIER 
 04-09-2020,Adults & Health,Bettertogether Limited,Daycare - Private Contractors Payment,288,0,NON COMMERCIAL SUPPLIER 
 04-09-2020,Adults & Health,Bettertogether Limited,Daycare - Private Contractors Payment,288,0,NON COMMERCIAL SUPPLIER 
 04-09-2020,Adults & Health,Bettertogether Limited,Daycare - Private Contractors Payment,288,0,NON COMMERCIAL SUPPLIER 
 04-09-2020,Adults & Health,Bettertogether Limited,Daycare - Private Contractors Payment,288,0,NON COMMERCIAL SUPPLIER 
 04-09-2020,RMS,Muckaway Company Grab Hire Ltd,Private Contractors Payment - Other,580,0,COMMERCIAL SUPPLIER 
 04-09-2020,Children and Young People,Care 4 Children Residential Services Ltd,Residential Placements - Private Contractors Payment,4490,0,COMMERCIAL SUPPLIER 
 04-09-2020,Children and Young People,Care 4 Children Residential Services Ltd,Residential Placements - Private Contractors Payment,4490,0,COMMERCIAL SUPPLIER 
 04-09-2020,Children and Young People,Care 4 Children Residential Services Ltd,Residential Placements - Private Contractors Payment,5772.9,0,COMMERCIAL SUPPLIER 
 04-09-2020,Children and Young People,Care 4 Children Residential Services Ltd,Residential Placements - Private Contractors Payment,4490,0,COMMERCIAL SUPPLIER 
 04-09-2020,RMS,Tgl,Private Contractors Payment - Other,625,0,VENDOR 
 04-09-2020,RMS,Tgl,Private Contractors Payment - Other,0,0,VENDOR 
 04-09-2020,RMS,Tgl,Private Contractors Payment - Other,730,0,VENDOR 
 04-09-2020,RMS,Tgl,Private Contractors Payment - Other,0,0,VENDOR 
 04-09-2020,RMS,Tgl,Private Contractors Payment - Other,1590,0,VENDOR 
 04-09-2020,RMS,Tgl,Private Contractors Payment - Other,467.83,0,VENDOR 
 04-09-2020,RMS,Tgl,Private Contractors Payment - Other,637.95,0,VENDOR 
 04-09-2020,RMS,Tgl,Private Contractors Payment - Other,510.3,0,VENDOR 
 04-09-2020,RMS,Tgl,Private Contractors Payment - Other,425.3,0,VENDOR 
 04-09-2020,RMS,Tgl,Private Contractors Payment - Other,382.77,0,VENDOR 
 04-09-2020,RMS,Tgl,Private Contractors Payment - Other,467.83,0,VENDOR 
 04-09-2020,RMS,Tgl,Private Contractors Payment - Other,297.71,0,VENDOR 
 04-09-2020,RMS,Tgl,Private Contractors Payment - Other,297.71,0,VENDOR 
 04-09-2020,RMS,Tgl,Private Contractors Payment - Other,510.36,0,VENDOR 
 04-09-2020,RMS,Tgl,Private Contractors Payment - Other,340.24,0,VENDOR 
 04-09-2020,RMS,Tgl,Private Contractors Payment - Other,381,0,VENDOR 
 04-09-2020,RMS,Tgl,Private Contractors Payment - Other,304.8,0,VENDOR 
 04-09-2020,RMS,Tgl,Private Contractors Payment - Other,533.4,0,VENDOR 
 04-09-2020,RMS,Tgl,Private Contractors Payment - Other,419.1,0,VENDOR 
 04-09-2020,RMS,Tgl,Private Contractors Payment - Other,342.9,0,VENDOR 
 04-09-2020,RMS,Tgl,Private Contractors Payment - Other,533.4,0,VENDOR 
 04-09-2020,RMS,Tgl,Private Contractors Payment - Other,304.4,0,VENDOR 
 04-09-2020,RMS,Tgl,Private Contractors Payment - Other,457.2,0,VENDOR 
 04-09-2020,Housing Revenue Account,Mr Edward Gordon-Saker,Legal Fees,250,0,LEGAL SERVICES 
 04-09-2020,Adults & Health,Golden Key Support Ltd,Home Care - Private Contractors Payment,358.05,0,COMMERCIAL SUPPLIER 
 04-09-2020,Adults & Health,Golden Key Support Ltd,Home Care - Private Contractors Payment,358.05,0,COMMERCIAL SUPPLIER 
 04-09-2020,Adults & Health,Golden Key Support Ltd,Respite Care - Private Contractors Payment,130.2,0,COMMERCIAL SUPPLIER 
 04-09-2020,Adults & Health,Golden Key Support Ltd,Respite Care - Private Contractors Payment,130.2,0,COMMERCIAL SUPPLIER 
 04-09-2020,Adults & Health,Golden Key Support Ltd,Respite Care - Private Contractors Payment,130.2,0,COMMERCIAL SUPPLIER 
 04-09-2020,Adults & Health,Golden Key Support Ltd,Home Care - Private Contractors Payment,358.05,0,COMMERCIAL SUPPLIER 
 04-09-2020,Adults & Health,Golden Key Support Ltd,Respite Care - Private Contractors Payment,130.2,0,COMMERCIAL SUPPLIER 
 04-09-2020,Adults & Health,Golden Key Support Ltd,Home Care - Private Contractors Payment,91.79,0,COMMERCIAL SUPPLIER 
 04-09-2020,"People, Policy and Performance",Personal Information - Redacted,"Advertising, Publicity And Marketing",-82.98,0,Employee 
 04-09-2020,"People, Policy and Performance",Personal Information - Redacted,"Advertising, Publicity And Marketing",609.96,0,Employee 
 04-09-2020,Children and Young People,The St Christopher School Academy Trust,Residential Placements - Private Contractors Payment,408,0,COMMERCIAL SUPPLIER 
 04-09-2020,Adults & Health,Lloyd Park Nursing Home,Nursing Homes - Private Contractors Payment,699.84,0,COMMERCIAL SUPPLIER 
 04-09-2020,Adults & Health,Lloyd Park Nursing Home,Nursing Homes - Private Contractors Payment,699.84,0,COMMERCIAL SUPPLIER 
 04-09-2020,Adults & Health,Lloyd Park Nursing Home,Nursing Homes - Private Contractors Payment,699.84,0,COMMERCIAL SUPPLIER 
 04-09-2020,Adults & Health,Lloyd Park Nursing Home,Nursing Homes - Private Contractors Payment,699.84,0,COMMERCIAL SUPPLIER 
 04-09-2020,Adults & Health,Westminster Health Care Limited,Residential Placements - Private Contractors Payment,595,0,COMMERCIAL SUPPLIER 
 04-09-2020,Adults & Health,Westminster Health Care Limited,Residential Placements - Private Contractors Payment,595,0,COMMERCIAL SUPPLIER 
 04-09-2020,Adults & Health,Westminster Health Care Limited,Residential Placements - Private Contractors Payment,595,0,COMMERCIAL SUPPLIER 
 04-09-2020,Adults & Health,Westminster Health Care Limited,Residential Placements - Private Contractors Payment,595,0,COMMERCIAL SUPPLIER 
 04-09-2020,Adults & Health,BNHL-Havering Court,Nursing Homes - Private Contractors Payment,1038,0,VENDOR 
 04-09-2020,Adults & Health,BNHL-Havering Court,Nursing Homes - Private Contractors Payment,1038,0,VENDOR 
 04-09-2020,Adults & Health,BNHL-Havering Court,Nursing Homes - Private Contractors Payment,1038,0,VENDOR 
 04-09-2020,Adults & Health,BNHL-Havering Court,Nursing Homes - Private Contractors Payment,1038,0,VENDOR 
 04-09-2020,Adults & Health,L & Q Living,Residential Placements - Private Contractors Payment,1095,0,VENDOR 
 04-09-2020,Adults & Health,L & Q Living,Residential Placements - Private Contractors Payment,1095,0,VENDOR 
 04-09-2020,Adults & Health,L & Q Living,Residential Placements - Private Contractors Payment,1095,0,VENDOR 
 04-09-2020,Adults & Health,L & Q Living,Residential Placements - Private Contractors Payment,1095,0,VENDOR 
 04-09-2020,Adults & Health,L & Q Living,Residential Placements - Private Contractors Payment,967,0,VENDOR 
 04-09-2020,Adults & Health,L & Q Living,Residential Placements - Private Contractors Payment,967,0,VENDOR 
 04-09-2020,Adults & Health,L & Q Living,Residential Placements - Private Contractors Payment,967,0,VENDOR 
 04-09-2020,Adults & Health,L & Q Living,Residential Placements - Private Contractors Payment,967,0,VENDOR 
 04-09-2020,Adults & Health,L & Q Living,Residential Placements - Private Contractors Payment,1091,0,VENDOR 
 04-09-2020,Adults & Health,L & Q Living,Residential Placements - Private Contractors Payment,1091,0,VENDOR 
 04-09-2020,Adults & Health,L & Q Living,Residential Placements - Private Contractors Payment,1091,0,VENDOR 
 04-09-2020,Adults & Health,L & Q Living,Residential Placements - Private Contractors Payment,1091,0,VENDOR 
 04-09-2020,Adults & Health,Maranatha Rest Home,Residential Placements - Private Contractors Payment,475,0,COMMERCIAL SUPPLIER 
 04-09-2020,Adults & Health,Maranatha Rest Home,Residential Placements - Private Contractors Payment,475,0,COMMERCIAL SUPPLIER 
 04-09-2020,Adults & Health,Maranatha Rest Home,Residential Placements - Private Contractors Payment,475,0,COMMERCIAL SUPPLIER 
 04-09-2020,Adults & Health,Maranatha Rest Home,Residential Placements - Private Contractors Payment,475,0,COMMERCIAL SUPPLIER 
 04-09-2020,Adults & Health,Folkestone Nursing Home,Nursing Homes - Private Contractors Payment,621,0,VENDOR 
 04-09-2020,Adults & Health,Folkestone Nursing Home,Nursing Homes - Private Contractors Payment,621,0,VENDOR 
 04-09-2020,Adults & Health,Folkestone Nursing Home,Nursing Homes - Private Contractors Payment,621,0,VENDOR 
 04-09-2020,Adults & Health,Folkestone Nursing Home,Nursing Homes - Private Contractors Payment,621,0,VENDOR 
 04-09-2020,Adults & Health,NAS Services Limited,Residential Placements - Private Contractors Payment,1023.94,0,COMMERCIAL SUPPLIER 
 04-09-2020,Adults & Health,NAS Services Limited,Residential Placements - Private Contractors Payment,1023.94,0,COMMERCIAL SUPPLIER 
 04-09-2020,Adults & Health,NAS Services Limited,Residential Placements - Private Contractors Payment,1023.94,0,COMMERCIAL SUPPLIER 
 04-09-2020,Adults & Health,NAS Services Limited,Residential Placements - Private Contractors Payment,1023.94,0,COMMERCIAL SUPPLIER 
 04-09-2020,Adults & Health,HC-One,Residential Placements - Private Contractors Payment,490.01,0,COMMERCIAL SUPPLIER 
 04-09-2020,Adults & Health,HC-One,Residential Placements - Private Contractors Payment,552.55,0,COMMERCIAL SUPPLIER 
 04-09-2020,Adults & Health,HC-One,Residential Placements - Private Contractors Payment,490.01,0,COMMERCIAL SUPPLIER 
 04-09-2020,Adults & Health,HC-One,Residential Placements - Private Contractors Payment,552.55,0,COMMERCIAL SUPPLIER 
 04-09-2020,Adults & Health,HC-One,Residential Placements - Private Contractors Payment,552.55,0,COMMERCIAL SUPPLIER 
 04-09-2020,Adults & Health,HC-One,Residential Placements - Private Contractors Payment,490.01,0,COMMERCIAL SUPPLIER 
 04-09-2020,Adults & Health,HC-One,Residential Placements - Private Contractors Payment,552.55,0,COMMERCIAL SUPPLIER 
 04-09-2020,Adults & Health,HC-One,Residential Placements - Private Contractors Payment,490.01,0,COMMERCIAL SUPPLIER 
 04-09-2020,Adults & Health,Endsleigh House,Residential Placements - Private Contractors Payment,875,0,COMMERCIAL SUPPLIER 
 04-09-2020,Adults & Health,Endsleigh House,Residential Placements - Private Contractors Payment,875,0,COMMERCIAL SUPPLIER 
 04-09-2020,Adults & Health,Endsleigh House,Residential Placements - Private Contractors Payment,875,0,COMMERCIAL SUPPLIER 
 04-09-2020,Adults & Health,Endsleigh House,Residential Placements - Private Contractors Payment,875,0,COMMERCIAL SUPPLIER 
 04-09-2020,Adults & Health,L & Q Living,Residential Placements - Private Contractors Payment,1206,0,VENDOR 
 04-09-2020,Adults & Health,L & Q Living,Residential Placements - Private Contractors Payment,1206,0,VENDOR 
 04-09-2020,Adults & Health,L & Q Living,Residential Placements - Private Contractors Payment,1206,0,VENDOR 
 04-09-2020,Adults & Health,L & Q Living,Residential Placements - Private Contractors Payment,1206,0,VENDOR 
 04-09-2020,Adults & Health,Four Seasons Healthcare Ltd,Residential Placements - Private Contractors Payment,568.6,0,COMMERCIAL SUPPLIER 
 04-09-2020,Adults & Health,Four Seasons Healthcare Ltd,Residential Placements - Private Contractors Payment,568.6,0,COMMERCIAL SUPPLIER 
 04-09-2020,Adults & Health,Four Seasons Healthcare Ltd,Residential Placements - Private Contractors Payment,568.6,0,COMMERCIAL SUPPLIER 
 04-09-2020,Adults & Health,Four Seasons Healthcare Ltd,Residential Placements - Private Contractors Payment,568.6,0,COMMERCIAL SUPPLIER 
 04-09-2020,Adults & Health,Forest Home,Residential Placements - Private Contractors Payment,521.43,0,COMMERCIAL SUPPLIER 
 04-09-2020,Adults & Health,Forest Home,Residential Care Income,-196.55,0,COMMERCIAL SUPPLIER 
 04-09-2020,Adults & Health,Forest Home,Residential Care Income,-196.55,0,COMMERCIAL SUPPLIER 
 04-09-2020,Adults & Health,Forest Home,Residential Placements - Private Contractors Payment,521.43,0,COMMERCIAL SUPPLIER 
 04-09-2020,Adults & Health,Forest Home,Residential Placements - Private Contractors Payment,521.43,0,COMMERCIAL SUPPLIER 
 04-09-2020,Adults & Health,Forest Home,Residential Care Income,-196.55,0,COMMERCIAL SUPPLIER 
 04-09-2020,Adults & Health,Forest Home,Residential Care Income,-196.55,0,COMMERCIAL SUPPLIER 
 04-09-2020,Adults & Health,Forest Home,Residential Placements - Private Contractors Payment,521.43,0,COMMERCIAL SUPPLIER 
 04-09-2020,Adults & Health,Leyton House Community Care Ltd,Residential Placements - Private Contractors Payment,950,0,COMMERCIAL SUPPLIER 
 04-09-2020,Adults & Health,Leyton House Community Care Ltd,Residential Placements - Private Contractors Payment,950,0,COMMERCIAL SUPPLIER 
 04-09-2020,Adults & Health,Leyton House Community Care Ltd,Residential Placements - Private Contractors Payment,950,0,COMMERCIAL SUPPLIER 
 04-09-2020,Adults & Health,Leyton House Community Care Ltd,Residential Placements - Private Contractors Payment,950,0,COMMERCIAL SUPPLIER 
 04-09-2020,Adults & Health,Ashling House,Residential Care Income,-205.76,0,COMMERCIAL SUPPLIER 
 04-09-2020,Adults & Health,Ashling House,Residential Placements - Private Contractors Payment,579,0,COMMERCIAL SUPPLIER 
 04-09-2020,Adults & Health,Ashling House,Residential Care Income,-205.76,0,COMMERCIAL SUPPLIER 
 04-09-2020,Adults & Health,Ashling House,Residential Placements - Private Contractors Payment,579,0,COMMERCIAL SUPPLIER 
 04-09-2020,Adults & Health,Ashling House,Residential Care Income,-205.76,0,COMMERCIAL SUPPLIER 
 04-09-2020,Adults & Health,Ashling House,Residential Placements - Private Contractors Payment,579,0,COMMERCIAL SUPPLIER 
 04-09-2020,Adults & Health,Ashling House,Residential Care Income,-205.76,0,COMMERCIAL SUPPLIER 
 04-09-2020,Adults & Health,Ashling House,Residential Placements - Private Contractors Payment,579,0,COMMERCIAL SUPPLIER 
 04-09-2020,Adults & Health,Bondcare(London)Beech Court,Residential Care Income,-241.7,0,NON COMMERCIAL SUPPLIER 
 04-09-2020,Adults & Health,Bondcare(London)Beech Court,Nursing Homes - Private Contractors Payment,565,0,NON COMMERCIAL SUPPLIER 
 04-09-2020,Adults & Health,Bondcare(London)Beech Court,Nursing Homes - Private Contractors Payment,565,0,NON COMMERCIAL SUPPLIER 
 04-09-2020,Adults & Health,Bondcare(London)Beech Court,Residential Care Income,-241.7,0,NON COMMERCIAL SUPPLIER 
 04-09-2020,Adults & Health,Bondcare(London)Beech Court,Residential Care Income,-241.7,0,NON COMMERCIAL SUPPLIER 
 04-09-2020,Adults & Health,Bondcare(London)Beech Court,Nursing Homes - Private Contractors Payment,565,0,NON COMMERCIAL SUPPLIER 
 04-09-2020,Adults & Health,Bondcare(London)Beech Court,Residential Care Income,-241.7,0,NON COMMERCIAL SUPPLIER 
 04-09-2020,Adults & Health,Bondcare(London)Beech Court,Nursing Homes - Private Contractors Payment,565,0,NON COMMERCIAL SUPPLIER 
 04-09-2020,Adults & Health,HC-One,Nursing Homes - Private Contractors Payment,516.85,0,COMMERCIAL SUPPLIER 
 04-09-2020,Adults & Health,HC-One,Nursing Homes - Private Contractors Payment,516.85,0,COMMERCIAL SUPPLIER 
 04-09-2020,Adults & Health,HC-One,Nursing Homes - Private Contractors Payment,516.85,0,COMMERCIAL SUPPLIER 
 04-09-2020,Adults & Health,HC-One,Nursing Homes - Private Contractors Payment,516.85,0,COMMERCIAL SUPPLIER 
 04-09-2020,Adults & Health,Churchill House,Residential Placements - Private Contractors Payment,950,0,NON COMMERCIAL SUPPLIER 
 04-09-2020,Adults & Health,Churchill House,Residential Placements - Private Contractors Payment,950,0,NON COMMERCIAL SUPPLIER 
 04-09-2020,Adults & Health,Churchill House,Residential Placements - Private Contractors Payment,950,0,NON COMMERCIAL SUPPLIER 
 04-09-2020,Adults & Health,Churchill House,Residential Placements - Private Contractors Payment,950,0,NON COMMERCIAL SUPPLIER 
 04-09-2020,Adults & Health,Consensus Support Services Ltd,Residential Placements - Private Contractors Payment,1680,0,COMMERCIAL SUPPLIER 
 04-09-2020,Adults & Health,Consensus Support Services Ltd,Residential Placements - Private Contractors Payment,1680,0,COMMERCIAL SUPPLIER 
 04-09-2020,Adults & Health,Consensus Support Services Ltd,Residential Placements - Private Contractors Payment,1680,0,COMMERCIAL SUPPLIER 
 04-09-2020,Adults & Health,Consensus Support Services Ltd,Residential Placements - Private Contractors Payment,1680,0,COMMERCIAL SUPPLIER 
 04-09-2020,Adults & Health,Westminster Health Care Limited,Nursing Homes - Private Contractors Payment,661.84,0,COMMERCIAL SUPPLIER 
 04-09-2020,Adults & Health,Westminster Health Care Limited,Nursing Homes - Private Contractors Payment,661.84,0,COMMERCIAL SUPPLIER 
 04-09-2020,Adults & Health,Westminster Health Care Limited,Nursing Homes - Private Contractors Payment,661.84,0,COMMERCIAL SUPPLIER 
 04-09-2020,Adults & Health,Westminster Health Care Limited,Nursing Homes - Private Contractors Payment,661.84,0,COMMERCIAL SUPPLIER 
 04-09-2020,Adults & Health,Westminster Health Care Limited,Residential Care Income,-126.85,0,COMMERCIAL SUPPLIER 
 04-09-2020,Adults & Health,Westminster Health Care Limited,Nursing Homes - Private Contractors Payment,590,0,COMMERCIAL SUPPLIER 
 04-09-2020,Adults & Health,Westminster Health Care Limited,Residential Care Income,-126.85,0,COMMERCIAL SUPPLIER 
 04-09-2020,Adults & Health,Westminster Health Care Limited,Nursing Homes - Private Contractors Payment,590,0,COMMERCIAL SUPPLIER 
 04-09-2020,Adults & Health,Westminster Health Care Limited,Residential Care Income,-126.85,0,COMMERCIAL SUPPLIER 
 04-09-2020,Adults & Health,Westminster Health Care Limited,Nursing Homes - Private Contractors Payment,590,0,COMMERCIAL SUPPLIER 
 04-09-2020,Adults & Health,Westminster Health Care Limited,Nursing Homes - Private Contractors Payment,590,0,COMMERCIAL SUPPLIER 
 04-09-2020,Adults & Health,Westminster Health Care Limited,Residential Care Income,-126.85,0,COMMERCIAL SUPPLIER 
 04-09-2020,Adults & Health,Endsleigh House,Residential Placements - Private Contractors Payment,600,0,COMMERCIAL SUPPLIER 
 04-09-2020,Adults & Health,Endsleigh House,Residential Placements - Private Contractors Payment,600,0,COMMERCIAL SUPPLIER 
 04-09-2020,Adults & Health,Endsleigh House,Residential Placements - Private Contractors Payment,600,0,COMMERCIAL SUPPLIER 
 04-09-2020,Adults & Health,Endsleigh House,Residential Placements - Private Contractors Payment,600,0,COMMERCIAL SUPPLIER 
 04-09-2020,Adults & Health,Alpam Homes,Residential Placements - Private Contractors Payment,1480,0,VENDOR 
 04-09-2020,Adults & Health,Alpam Homes,Residential Placements - Private Contractors Payment,1480,0,VENDOR 
 04-09-2020,Adults & Health,Alpam Homes,Residential Placements - Private Contractors Payment,1480,0,VENDOR 
 04-09-2020,Adults & Health,Alpam Homes,Residential Placements - Private Contractors Payment,1480,0,VENDOR 
 04-09-2020,Adults & Health,Consensus Support Services Ltd,Residential Placements - Private Contractors Payment,1640,0,COMMERCIAL SUPPLIER 
 04-09-2020,Adults & Health,Consensus Support Services Ltd,Residential Placements - Private Contractors Payment,1640,0,COMMERCIAL SUPPLIER 
 04-09-2020,Adults & Health,Consensus Support Services Ltd,Residential Placements - Private Contractors Payment,1640,0,COMMERCIAL SUPPLIER 
 04-09-2020,Adults & Health,Consensus Support Services Ltd,Residential Placements - Private Contractors Payment,1640,0,COMMERCIAL SUPPLIER 
 04-09-2020,Adults & Health,HC-One,Nursing Homes - Private Contractors Payment,516.84,0,COMMERCIAL SUPPLIER 
 04-09-2020,Adults & Health,HC-One,Nursing Homes - Private Contractors Payment,516.84,0,COMMERCIAL SUPPLIER 
 04-09-2020,Adults & Health,HC-One,Nursing Homes - Private Contractors Payment,516.84,0,COMMERCIAL SUPPLIER 
 04-09-2020,Adults & Health,HC-One,Nursing Homes - Private Contractors Payment,516.84,0,COMMERCIAL SUPPLIER 
 04-09-2020,Adults & Health,Lincolnshire House Association Ltd,Residential Placements - Private Contractors Payment,1029,0,COMMERCIAL SUPPLIER 
 04-09-2020,Adults & Health,Lincolnshire House Association Ltd,Residential Care Income,-103.55,0,COMMERCIAL SUPPLIER 
 04-09-2020,Adults & Health,Lincolnshire House Association Ltd,Residential Care Income,-103.55,0,COMMERCIAL SUPPLIER 
 04-09-2020,Adults & Health,Lincolnshire House Association Ltd,Residential Placements - Private Contractors Payment,1029,0,COMMERCIAL SUPPLIER 
 04-09-2020,Adults & Health,Lincolnshire House Association Ltd,Residential Care Income,-103.55,0,COMMERCIAL SUPPLIER 
 04-09-2020,Adults & Health,Lincolnshire House Association Ltd,Residential Placements - Private Contractors Payment,1029,0,COMMERCIAL SUPPLIER 
 04-09-2020,Adults & Health,Lincolnshire House Association Ltd,Residential Placements - Private Contractors Payment,1029,0,COMMERCIAL SUPPLIER 
 04-09-2020,Adults & Health,Lincolnshire House Association Ltd,Residential Care Income,-103.55,0,COMMERCIAL SUPPLIER 
 04-09-2020,Adults & Health,DMP Healthcare (Heatherbrook) Ltd,Nursing Homes - Private Contractors Payment,741.84,0,NON COMMERCIAL SUPPLIER 
 04-09-2020,Adults & Health,DMP Healthcare (Heatherbrook) Ltd,Residential Care Income,-143.67,0,NON COMMERCIAL SUPPLIER 
 04-09-2020,Adults & Health,DMP Healthcare (Heatherbrook) Ltd,Nursing Homes - Private Contractors Payment,741.84,0,NON COMMERCIAL SUPPLIER 
 04-09-2020,Adults & Health,DMP Healthcare (Heatherbrook) Ltd,Residential Care Income,-143.67,0,NON COMMERCIAL SUPPLIER 
 04-09-2020,Adults & Health,DMP Healthcare (Heatherbrook) Ltd,Residential Care Income,-143.67,0,NON COMMERCIAL SUPPLIER 
 04-09-2020,Adults & Health,DMP Healthcare (Heatherbrook) Ltd,Nursing Homes - Private Contractors Payment,741.84,0,NON COMMERCIAL SUPPLIER 
 04-09-2020,Adults & Health,DMP Healthcare (Heatherbrook) Ltd,Residential Care Income,-143.67,0,NON COMMERCIAL SUPPLIER 
 04-09-2020,Adults & Health,DMP Healthcare (Heatherbrook) Ltd,Nursing Homes - Private Contractors Payment,741.84,0,NON COMMERCIAL SUPPLIER 
 04-09-2020,Adults & Health,Chosen Care Group Ltd,Home Care - Private Contractors Payment,315.7,0,VENDOR 
 04-09-2020,Adults & Health,Chosen Care Group Ltd,Home Care - Private Contractors Payment,315.7,0,VENDOR 
 04-09-2020,Adults & Health,Chosen Care Group Ltd,Home Care - Private Contractors Payment,315.7,0,VENDOR 
 04-09-2020,Adults & Health,Chosen Care Group Ltd,Home Care - Private Contractors Payment,315.7,0,VENDOR 
 04-09-2020,Adults & Health,Hillsview Wood House- Eastwood House,Residential Placements - Private Contractors Payment,700,0,COMMERCIAL SUPPLIER 
 04-09-2020,Adults & Health,Hillsview Wood House- Eastwood House,Residential Placements - Private Contractors Payment,700,0,COMMERCIAL SUPPLIER 
 04-09-2020,Adults & Health,Hillsview Wood House- Eastwood House,Residential Placements - Private Contractors Payment,700,0,COMMERCIAL SUPPLIER 
 04-09-2020,Adults & Health,Hillsview Wood House- Eastwood House,Residential Placements - Private Contractors Payment,700,0,COMMERCIAL SUPPLIER 
 04-09-2020,Adults & Health,Care London Ltd,Supported Other Accommodation - Private Contractors Payment,650,0,VENDOR 
 04-09-2020,Adults & Health,Hillsview Wood House- Eastwood House,Residential Placements - Private Contractors Payment,650,0,COMMERCIAL SUPPLIER 
 04-09-2020,Adults & Health,Care London Ltd,Supported Other Accommodation - Private Contractors Payment,650,0,VENDOR 
 04-09-2020,Adults & Health,Hillsview Wood House- Eastwood House,Residential Placements - Private Contractors Payment,650,0,COMMERCIAL SUPPLIER 
 04-09-2020,Adults & Health,Hillsview Wood House- Eastwood House,Residential Placements - Private Contractors Payment,650,0,COMMERCIAL SUPPLIER 
 04-09-2020,Adults & Health,Care London Ltd,Supported Other Accommodation - Private Contractors Payment,650,0,VENDOR 
 04-09-2020,Adults & Health,Care London Ltd,Supported Other Accommodation - Private Contractors Payment,650,0,VENDOR 
 04-09-2020,Adults & Health,Hillsview Wood House- Eastwood House,Residential Placements - Private Contractors Payment,650,0,COMMERCIAL SUPPLIER 
 04-09-2020,Adults & Health,Care London Ltd,Supported Other Accommodation - Private Contractors Payment,665,0,VENDOR 
 04-09-2020,Adults & Health,Care London Ltd,Supported Other Accommodation - Private Contractors Payment,665,0,VENDOR 
 04-09-2020,Adults & Health,Care London Ltd,Supported Other Accommodation - Private Contractors Payment,665,0,VENDOR 
 04-09-2020,Adults & Health,Care London Ltd,Supported Other Accommodation - Private Contractors Payment,665,0,VENDOR 
 04-09-2020,Adults & Health,Independence Homes Limited,Residential Placements - Private Contractors Payment,3262,0,COMMERCIAL SUPPLIER 
 04-09-2020,Adults & Health,Independence Homes Limited,Residential Placements - Private Contractors Payment,3262,0,COMMERCIAL SUPPLIER 
 04-09-2020,Adults & Health,Independence Homes Limited,Residential Placements - Private Contractors Payment,3262,0,COMMERCIAL SUPPLIER 
 04-09-2020,Adults & Health,Independence Homes Limited,Residential Placements - Private Contractors Payment,3262,0,COMMERCIAL SUPPLIER 
 04-09-2020,Adults & Health,HC-One,Residential Care Income,-142.45,0,COMMERCIAL SUPPLIER 
 04-09-2020,Adults & Health,HC-One,Nursing Homes - Private Contractors Payment,734.65,0,COMMERCIAL SUPPLIER 
 04-09-2020,Adults & Health,HC-One,Residential Care Income,-142.45,0,COMMERCIAL SUPPLIER 
 04-09-2020,Adults & Health,HC-One,Nursing Homes - Private Contractors Payment,734.65,0,COMMERCIAL SUPPLIER 
 04-09-2020,Adults & Health,HC-One,Residential Care Income,-142.45,0,COMMERCIAL SUPPLIER 
 04-09-2020,Adults & Health,HC-One,Nursing Homes - Private Contractors Payment,734.65,0,COMMERCIAL SUPPLIER 
 04-09-2020,Adults & Health,HC-One,Nursing Homes - Private Contractors Payment,734.65,0,COMMERCIAL SUPPLIER 
 04-09-2020,Adults & Health,HC-One,Residential Care Income,-142.45,0,COMMERCIAL SUPPLIER 
 04-09-2020,Adults & Health,Moreland House,Residential Care Income,-165.6,0,COMMERCIAL SUPPLIER 
 04-09-2020,Adults & Health,Moreland House,Nursing Homes - Private Contractors Payment,528,0,COMMERCIAL SUPPLIER 
 04-09-2020,Adults & Health,Moreland House,Nursing Homes - Private Contractors Payment,528,0,COMMERCIAL SUPPLIER 
 04-09-2020,Adults & Health,Moreland House,Residential Care Income,-165.6,0,COMMERCIAL SUPPLIER 
 04-09-2020,Adults & Health,Moreland House,Nursing Homes - Private Contractors Payment,528,0,COMMERCIAL SUPPLIER 
 04-09-2020,Adults & Health,Moreland House,Residential Care Income,-165.6,0,COMMERCIAL SUPPLIER 
 04-09-2020,Adults & Health,Moreland House,Residential Care Income,-165.6,0,COMMERCIAL SUPPLIER 
 04-09-2020,Adults & Health,Moreland House,Nursing Homes - Private Contractors Payment,528,0,COMMERCIAL SUPPLIER 
 04-09-2020,Adults & Health,Action On Hearing Loss,Nursing Homes - Private Contractors Payment,2357.98,0,COMMERCIAL SUPPLIER 
 04-09-2020,Adults & Health,Action On Hearing Loss,Nursing Homes - Private Contractors Payment,2357.98,0,COMMERCIAL SUPPLIER 
 04-09-2020,Adults & Health,Action On Hearing Loss,Nursing Homes - Private Contractors Payment,2357.98,0,COMMERCIAL SUPPLIER 
 04-09-2020,Adults & Health,Action On Hearing Loss,Nursing Homes - Private Contractors Payment,2357.98,0,COMMERCIAL SUPPLIER 
 04-09-2020,Adults & Health,St Martin of Tours Housing Association,Residential Placements - Private Contractors Payment,950,0,COMMERCIAL SUPPLIER 
 04-09-2020,Adults & Health,St Martin of Tours Housing Association,Residential Placements - Private Contractors Payment,950,0,COMMERCIAL SUPPLIER 
 04-09-2020,Adults & Health,St Martin of Tours Housing Association,Residential Placements - Private Contractors Payment,950,0,COMMERCIAL SUPPLIER 
 04-09-2020,Adults & Health,St Martin of Tours Housing Association,Residential Placements - Private Contractors Payment,950,0,COMMERCIAL SUPPLIER 
 04-09-2020,Adults & Health,Forestview Care Ltd,Residential Care Income,-142.35,0,VENDOR 
 04-09-2020,Adults & Health,Forestview Care Ltd,Residential Placements - Private Contractors Payment,616.5,0,VENDOR 
 04-09-2020,Adults & Health,Forestview Care Ltd,Residential Placements - Private Contractors Payment,616.5,0,VENDOR 
 04-09-2020,Adults & Health,Forestview Care Ltd,Residential Care Income,-142.35,0,VENDOR 
 04-09-2020,Adults & Health,Forestview Care Ltd,Residential Care Income,-142.35,0,VENDOR 
 04-09-2020,Adults & Health,Forestview Care Ltd,Residential Placements - Private Contractors Payment,616.5,0,VENDOR 
 04-09-2020,Adults & Health,Forestview Care Ltd,Residential Placements - Private Contractors Payment,616.5,0,VENDOR 
 04-09-2020,Adults & Health,Forestview Care Ltd,Residential Care Income,-142.35,0,VENDOR 
 04-09-2020,Adults & Health,Dothan House-Genesis Residential Homes Ltd,Residential Placements - Private Contractors Payment,579,0,VENDOR 
 04-09-2020,Adults & Health,Dothan House-Genesis Residential Homes Ltd,Residential Placements - Private Contractors Payment,579,0,VENDOR 
 04-09-2020,Adults & Health,Dothan House-Genesis Residential Homes Ltd,Residential Placements - Private Contractors Payment,579,0,VENDOR 
 04-09-2020,Adults & Health,Dothan House-Genesis Residential Homes Ltd,Residential Placements - Private Contractors Payment,579,0,VENDOR 
 04-09-2020,Adults & Health,Orchid Lodge Ltd,Supported Other Accommodation - Private Contractors Payment,600,0,VENDOR 
 04-09-2020,Adults & Health,Orchid Lodge Ltd,Supported Other Accommodation - Private Contractors Payment,600,0,VENDOR 
 04-09-2020,Adults & Health,Orchid Lodge Ltd,Supported Other Accommodation - Private Contractors Payment,600,0,VENDOR 
 04-09-2020,Adults & Health,Orchid Lodge Ltd,Supported Other Accommodation - Private Contractors Payment,600,0,VENDOR 
 04-09-2020,Adults & Health,Hillsview Wood House- Eastwood House,Residential Placements - Private Contractors Payment,700,0,COMMERCIAL SUPPLIER 
 04-09-2020,Adults & Health,Hillsview Wood House- Eastwood House,Residential Placements - Private Contractors Payment,700,0,COMMERCIAL SUPPLIER 
 04-09-2020,Adults & Health,Hillsview Wood House- Eastwood House,Residential Placements - Private Contractors Payment,700,0,COMMERCIAL SUPPLIER 
 04-09-2020,Adults & Health,Hillsview Wood House- Eastwood House,Residential Placements - Private Contractors Payment,700,0,COMMERCIAL SUPPLIER 
 04-09-2020,Adults & Health,Home From Home Care Ltd,Residential Placements - Private Contractors Payment,4135.27,0,NON COMMERCIAL SUPPLIER 
 04-09-2020,Adults & Health,Home From Home Care Ltd,Residential Placements - Private Contractors Payment,4135.27,0,NON COMMERCIAL SUPPLIER 
 04-09-2020,Adults & Health,Home From Home Care Ltd,Residential Placements - Private Contractors Payment,4135.27,0,NON COMMERCIAL SUPPLIER 
 04-09-2020,Adults & Health,Home From Home Care Ltd,Residential Placements - Private Contractors Payment,4135.27,0,NON COMMERCIAL SUPPLIER 
